Workbook

Sheet POLE CAPACITY PROGRAM
F1: POLE CAPACITY PROGRAM | K1: by W. Szto Release - version Jul 2012 | W1: POLE SHAFT PULL DOWN MENU, Added by Carl Wong | AC1: TABLE, ADDED BY CARL WONG
A2: GENERAL | N2: [UPDATED BY CARL WONG, NOVEMBER 2010, TIAN WANG, JUNE 2012] | W2: T1 | X2: 2A | AC2: TOTAL POLE HEIGHT
D3: PROJECT DESIGNER: | I3: COMPANY NAME: | W3: T3 | X3: 2C
D4: PROJECT LOCATION: | I4: PROJECT CITY: | W4: T6 | AC4: POLE SHAFT | AE4: =VLOOKUP($A$10,'POLES DATA'!$A$81:$J$89,4,FALSE) -> 
D5: PROJECT NO.: | I5: DRAWING NO.: | W5: T7 | AC5: LUMINAIRE EXTENSION | AE5: =IF($A$12<>0,VLOOKUP($A$12,'POLES DATA'!$A$17:$J$77,4,FALSE),) -> 0
D6: DATE: | E6: =NOW() -> 2023-09-20T14:35:06.820 | I6: POLE NO.: | W6: L | AC6: LUMINAIRE | AE6: 2500
W7: M | AC7: TOTAL HEIGHT | AE7: =SUM(AE4:AE6) -> 
A8: WIND PRESSURE = | E8: 100 | F8: PASCALS | K8: COMBINED FORCE RATIOS | W8: S
A9: POLES | K9: BOTTOM OF POLE | M9: =IF(ISERROR($G$87)," ",G87) ->  | W9: H
B10: POLE SHAFT - | F10: T1, T3, T6, T7, S, L, M, H | K10: ANCHOR BOLTS | M10: =IF(ISERROR(R85),"",R85) -> 
B11: LUMINAIRE ARM - | F11: =IF(LEN($A$10)=0," ",VLOOKUP($A$10,'POLES DATA'!$A$4:$J$12,2,FALSE)) ->  | L11: ARM | M11: =IF(ISERROR(G98),"",G98) -> 
B12: LUMINAIRE ARM EXTENSION - | F12: =IF(LEN($A$10)=0," ",VLOOKUP($A$10,'POLES DATA'!$A$4:$J$12,3,FALSE)) ->  | K12: FLANGE BOLTS | M12: =IF($A$10="S",IF(ISERROR($P$109),"",$P$109),IF(ISERROR($P$98),"",$P$98)) -> 
A13: SIGNAL ARMS | K13: TOP OF POLE | M13: =IF(OR(OR(OR(A10="T1",A10="T3"),A10="T6"),A10="T7"),"N/A",IF(ISERROR(I85),"",I85)) ->  | W13: TABLE, ADDED BY CARL WONG
B14: FOR T1,T3,T6,T7,L, M & S | K14: Highlighted cells:RATIO>1.00 NO GOOD | P14: SUPERCEDED | W14: ARM LENGTH CALC. | Y14: SIGNAL ARM | Z14: SIGN ARM | AA14: LARGE RADIUS CHECK | AB14: SMALL. RADIUS | AC14: THK CHECK
B15: SIGNAL ARM ADAPTOR - | F15: =IF(LEN($A$10)=0," ",VLOOKUP($A$10,'POLES DATA'!$A$4:$J$12,6,FALSE)) ->  | P15: =IF(A15=0,0,0.3) -> 0 | Q15: (FOR | W15: SIGNAL ARM ADAPTOR | Y15: =IF($A$15<>0,VLOOKUP($A$15,'POLES DATA'!$A$17:$J$77,3,FALSE),0) -> 0 | AA15: =IF($A$15="","",VLOOKUP($A$15,'POLES DATA'!$A$17:$J$77,9,FALSE)/2) ->  | AB15: =IF($A$15="","",VLOOKUP($A$15,'POLES DATA'!$A$17:$J$77,10,FALSE)/2) ->  | AC15: =IF(AND($E$18<>0,$A$15<>0),VLOOKUP($A$15,'POLES DATA'!$A$17:$J$77,8,FALSE),"") -> 
B16: SIGNAL ARM EXTENSION - | F16: =IF(LEN($A$10)=0," ",VLOOKUP($A$10,'POLES DATA'!$A$4:$J$12,5,FALSE)) ->  | I16: APPROXIMATE DEAD LOAD DEFLECTIONS | P16: =IF(A16="3LE",3,IF(A16=0,0,IF(A16="6M",6,IF(A16="7A",0.24,IF(A16="7B",1.8,IF(A16="7C",2.5,4.8)))))) -> 0 | Q16: (SIGNAL | W16: SIGNAL ARM EXTENSION | Y16: =IF($A$16<>0,VLOOKUP($A$16,'POLES DATA'!$A$17:$J$77,3,FALSE),0) -> 0 | AA16: =IF($A$16="","",VLOOKUP($A$16,'POLES DATA'!$A$17:$J$77,9,FALSE)/2) ->  | AB16: =IF($A$16="","",VLOOKUP($A$16,'POLES DATA'!$A$17:$J$77,10,FALSE)/2) ->  | AC16: =IF(AND($E$18<>0,$A$15=0,$A$16<>0),VLOOKUP($A$16,'POLES DATA'!$A$17:$J$77,8,FALSE),"") ->  | AD16: =IF(OR($A$16="6M",$A$16="3LE"),"**",) -> 0
B17: SIGNAL ARM - | F17: =IF(LEN($A$10)=0," ",IF(OR($A$16="3LE",$A$16="6M"),VLOOKUP($A$10,'POLES DATA'!$A$4:$J$12,9,FALSE),VLOOKUP($A$10,'POLES DATA'!$A$4:$J$12,4,FALSE))) ->  | K17: OWN WT. | L17: WITH SIGNALS/SIGNS | P17: =IF(A17="3L",3,IF(A17="4L",4,IF(A17="5L",5,IF(A17="6L",6,IF(A17="7L",7,IF(A17="8L",8,IF(A17="9L",9,IF(A17="10L",10,0)))))))) -> 0 | Q17: (ARM | W17: SIGNAL ARM | Y17: =IF($A$17<>0,VLOOKUP($A$17,'POLES DATA'!$A$17:$J$77,3,FALSE),0) -> 0 | AA17: =IF($A$17="","",VLOOKUP($A$17,'POLES DATA'!$A$17:$J$77,9,FALSE)/2) ->  | AB17: =IF($A$17="","",VLOOKUP($A$17,'POLES DATA'!$A$17:$J$77,10,FALSE)/2) ->  | AC17: =IF(AND($E$18<>0,$A$15=0,$A$16=0,$A$17<>0),VLOOKUP($A$17,'POLES DATA'!$A$17:$J$77,8,FALSE),"") -> 
B18: TOTAL ARM REACH = | E18: =$Y$24 -> 0 | F18: =IF(AND($E$18<>0,$E$23<>0),"ARM CONFLICT","") ->  | I18: TOP OF POLE(HORI.) | K18: =IF(ISERROR(DEFLECTION!$C$49),"",DEFLECTION!$C$49) ->  | L18: =IF(ISERROR(DEFLECTION!$C$69),"",DEFLECTION!$C$69) ->  | P18: =IF(A17="11L",11,IF(A17="12L",12,IF(A17="13L",13,IF(A17="14L",14,0)))) -> 0 | Q18: (CALCULATION
A19: SIGN ARMS | I19: END OF ARM (VERT.) | K19: =IF(ISERROR(DEFLECTION!$C$50),"",DEFLECTION!$C$50) ->  | L19: =IF(ISERROR(DEFLECTION!$C$71),"",DEFLECTION!$C$71) ->  | P19: =IF(A17=0,0,IF(A17="3A",3,IF(A17="3C",1.8,IF(A17="3D",4.3,5.5))))+2.5 -> 2.5 | W19: POLE SHAFT ARM | Y19: =IF($A$17=0,0,VLOOKUP($A$10,'POLES DATA'!$A$81:$J$89,3,FALSE)) -> 0 | Z19: =IF($A$22=0,0,VLOOKUP($A$10,'POLES DATA'!$A$81:$J$89,3,FALSE)) -> 0 | AD19: (FOR T1, T3, T6, T7 ONLY)
B20: FOR T1,T3,T6,T7,L,M, H & S | K20: DEFLECTION > 600 IS NOT ACCEPTABLE | W20: SIGN ARM EXTENSION - INPUT | Z20: =IF(OR($A$21="LS", $A$21="SS"),$I$21*10^3,0) -> 0 | AD20: (FOR LS & SS ONLY, OTHERWISE ZERO)
B21: SIGN ARM EXTENSION - | F21: =IF(LEN($A$10)=0," ",VLOOKUP($A$10,'POLES DATA'!$A$4:$J$12,8,FALSE)) ->  | H21: LENGTH = | J21: (FOR LS & SS ONLY - USE 3SS, 4SS, 5SS FOR NOW) | P21: =IF(A22=0,0,IF(A21="7A",I22+0.25+2.5,IF(A21="7B",I22+1.8+2.5,IF(A21="7C",I22+2.5+2.5,IF(A21="7D",I22+4.8+2.5,I21+I22))))) -> 0 | Q21: (FOR SIGN ARM | W21: SIGN ARM EXTENSION - LOOKUP | Z21: =IF($A$21<>0,VLOOKUP($A$21,'POLES DATA'!$A$17:$J$77,3,FALSE),0) -> 0 | AA21: =IF($A$21="","",VLOOKUP($A$21,'POLES DATA'!$A$17:$J$77,9,FALSE)/2) ->  | AB21: =IF($A$21="","",VLOOKUP($A$21,'POLES DATA'!$A$17:$J$77,10,FALSE)/2) ->  | AC21: =IF(AND($E$23<>0,$A$21<>0),VLOOKUP($A$21,'POLES DATA'!$A$17:$J$77,8,FALSE),"") -> 
B22: SIGN ARM - | F22: =IF(LEN($A$10)=0," ",VLOOKUP($A$10,'POLES DATA'!$A$4:$J$12,7,FALSE)) ->  | H22: LENGTH = | J22: (FOR L, L1, L2,M1, M2, H1 & H2 ONLY) | P22: =IF(A22=0,0,IF(A21="7A",1.2+0.25+2.5,IF(A21="7B",1.2+1.8+2.5,IF(A21="7C",1.2+2.5+2.5,IF(A22="LB",1.2+I21,I22+I21))))) -> 0 | Q22: (CALCULATION | W22: SIGN ARM - LOOKUP | Z22: =IF($A$22<>0,VLOOKUP($A$22,'POLES DATA'!$A$17:$J$77,3,FALSE),0) -> 0 | AA22: =IF($A$22="","",VLOOKUP($A$22,'POLES DATA'!$A$17:$J$77,9,FALSE)/2) ->  | AB22: =IF($A$22="","",VLOOKUP($A$22,'POLES DATA'!$A$17:$J$77,10,FALSE)/2) ->  | AC22: =IF(AND($E$23<>0,$A$21=0,$A$22<>0),VLOOKUP($A$22,'POLES DATA'!$A$17:$J$77,8,FALSE),"") -> 
B23: TOTAL ARM REACH = | E23: =$Z$24 -> 0 | F23: =IF(AND($E$18<>0,$E$23<>0),"ARM CONFLICT","") ->  | J23: (FOR L,MAX.LENGTH=1.20) | W23: SIGN ARM - INPUT | Z23: =IF(OR($A$22="L", $A$22="L1",$A$22="L2",$A$22="M1", $A$22="M2",$A$22="H1",$A$22="H2"), $I$22*10^3, 0) -> 0 | AD23: (FOR L, L1, L2, M1, M2, H1 & H2 ONLY)
A24: SIGNAL HEADS | W24: TOTAL ARM REACH = | Y24: =SUM(Y15:Y23)/10^3 -> 0 | Z24: =SUM(Z15:Z23)/10^3 -> 0
B25: SIGNAL HEAD(S) WITH BACKBOARD (200-200-200) | I25: SPAN = | K25: SPAN = | M25: SPAN =
B26: SIGNAL HEAD(S) WITH BACKBOARD (300-200-200) | I26: SPAN = | K26: SPAN = | M26: SPAN =
B27: SIGNAL HEAD(S) WITH BACKBOARD (300-200-200-300) | I27: SPAN = | K27: SPAN = | M27: SPAN =
B28: SIGNAL HEAD(S) WITH BACKBOARD (300-300-300) | I28: SPAN = | K28: SPAN = | M28: SPAN =
B29: SIGNAL HEAD(S) WITH BACKBOARD (300-300-300-300) | I29: SPAN = | K29: SPAN = | M29: SPAN =
A30: SIGNS
C31: WIDTH = | E31: HEIGHT = | G31: SPAN = | I31: NO. OF LUMINAIRES PER SIGN =
C32: WIDTH = | E32: HEIGHT = | G32: SPAN = | I32: NO. OF LUMINAIRES PER SIGN =
C33: WIDTH = | E33: HEIGHT = | G33: SPAN = | I33: NO. OF LUMINAIRES PER SIGN =
B36: POLE DESIGN USING ONTARIO BRIDGE DESIGN CODE (1991) | AG36: TABLE VALUES FROM THIS TABLE WERE NOT CALLED-UP IN FINAL CALCULATION
B37: =================================================== | AG37: THIS TABLE WAS INTENDED FOR POLE TYPES T1, T3, T6, T7 (SIGNAL/SIGN ARMS START AT 2.5M AWAY FROM CENTRE OF POLE)
B38: POLE : | D38: =$A$10 -> 0 | F38: (H,M or L) | H38: LOCATION : | J38: STANDARD | S38: =NOW() -> 2023-09-20T14:35:06.820 | AG38: POLE : | AI38: =$A$10 -> 0 | AK38: (H,M or L) | AM38: LOCATION : | AO38: STANDARD | AX38: =NOW() -> 2023-09-20T14:35:06.820
B40: WIND PRESSURE = | F40: =$E$8/1000 -> 0.1 | G40: KPa(1/50) | H40: Fy = | I40: 300 | J40: MPa | K40: 18000/Fy= | L40: =18000/I40 -> 60 | AG40: WIND PRESSURE = | AK40: =$E$8/1000 -> 0.1 | AL40: KPa(1/50) | AM40: Fy = | AN40: 300 | AO40: MPa | AP40: 18000/Fy= | AQ40: =18000/AN40 -> 60
B41: ICE THICKNESS = | F41: 31 | G41: mm | H41: DLF = | I41: 1.1 | K41: Es= | L41: 200000 | M41: MPa | AG41: ICE THICKNESS = | AK41: 32 | AL41: mm | AM41: DLF = | AN41: 1.1
B42: GUST FACTOR = | F42: 2.5 | H42: WLF = | I42: 1.3 | J42: 0.7 | AG42: GUST FACTOR = | AK42: 2.5 | AM42: WLF = | AN42: 1.3 | AO42: 0.7
B43: HEIGHT FACTOR = | F43: 1 | H43: ILF = | I43: 1.3 | AG43: HEIGHT FACTOR = | AK43: 1 | AM43: ILF = | AN43: 1.3
B45: POLE SECTION | F45: =IF(OR(D38="H",D38="M"),12,8) -> 8 | G45: (R,16,12 or 8 SIDED) | AG45: POLE SECTION | AK45: =IF(OR(AI38="H",AI38="M"),12,8) -> 8 | AL45: (R,16,12 or 8 SIDED)
B46: ARM SECTION | F46: =IF(D38="H",12,8) -> 8 | G46: (R,16,12 or 8 SIDED) | Z46: Moment/Rotation about Axis: | AG46: ARM SECTION | AK46: =IF(AI38="H",12,8) -> 8 | AL46: (R,16,12 or 8 SIDED)
B47: EXTENSION | F47: =F45 -> 8 | G47: (R,16,12 or 8 SIDED) | Z47: My | AA47: My | AB47: Mx | AC47: My | AD47: Mz | AG47: EXTENSION | AK47: =AK45 -> 8 | AL47: (R,16,12 or 8 SIDED)
W48: LOADS AND MOMENTS THAT GET ACTIVATED BASED ON COMPONENTS INPUT
B49: if you have any questions or suggestions, please contact Alireza Ahmadnia, Ministry of Transportation, | E49: LENGTH | F49: RADIUS (mm) | H49: THICKNESS | I49: AREA | J49: DRAG | K49: LOAD (KN) | L49: (UNFACTORED) | O49: MOMENT ARM (m) | S49: FACTORED MOMENT | U49: (kN) | W49: LOAD (KN) | X49: (UNFACTORED) | AB49: FACTORED MOMENT (kNm) | AD49: (kNm) | AG49: MEMBER | AI49: LENGTH | AK49: RADIUS (mm) | AM49: THICKNESS | AN49: AREA | AO49: DRAG | AP49: LOAD (KN) | AT49: MOMENT ARM (m) | AX49: FACTORED MOMENT | AZ49: (kN)
B50: TYPE | E50: (m) | F50: LARGE | G50: SMALL | H50: (mm) | I50: (M^2) | J50: FACTOR | K50: DEAD | L50: WIND | M50: ICE | N50: DL,ICE | O50: WIND | P50: TORQUE | Q50: DL | R50: ICE | S50: WIND(L) | T50: WIND(T) | U50: TORQUE | W50: DEAD | X50: WIND | Y50: ICE | Z50: DL | AA50: ICE | AB50: WIND(L) | AC50: WIND(T) | AD50: TORQUE | AG50: TYPE | AI50: (m) | AK50: LARGE | AL50: SMALL | AM50: (mm) | AN50: (M^2) | AO50: FACTOR | AP50: DEAD | AQ50: WIND | AR50: ICE | AS50: DL,ICE | AT50: WIND | AU50: TORQUE | AV50: DL | AW50: ICE | AX50: WIND(L) | AY50: WIND(T) | AZ50: TORQUE
B51: -------------------------- | C51: -------------------------- | D51: -------------------------- | E51: -------------------------- | F51: -------------------------- | G51: -------------------------- | H51: -------------------------- | I51: -------------------------- | J51: -------------------------- | K51: -------------------------- | L51: -------------------------- | M51: -------------------------- | N51: -------------------------- | O51: -------------------------- | P51: -------------------------- | Q51: -------------------------- | R51: -------------------------- | S51: -------------------------- | T51: -------------------------- | U51: -------------------------- | AG51: -------------------------- | AH51: -------------------------- | AI51: -------------------------- | AJ51: -------------------------- | AK51: -------------------------- | AL51: -------------------------- | AM51: -------------------------- | AN51: -------------------------- | AO51: -------------------------- | AP51: -------------------------- | AQ51: -------------------------- | AR51: -------------------------- | AS51: -------------------------- | AT51: -------------------------- | AU51: -------------------------- | AV51: -------------------------- | AW51: -------------------------- | AX51: -------------------------- | AY51: -------------------------- | AZ51: --------------------------
A52: =IF($A$11<>0,1,0) -> 0 | B52: LUMINAIRE | I52: 0.25 | J52: 0.7 | K52: =IF(A54=1,0.42,0.21) -> 0.21 | L52: =IF(A54=1,(+F$40*F$42*I52*J52*1.1)*2,+F$40*F$42*I52*J52*1.1) -> 0.048125 | M52: =$F$41*9.8/1000*I52 -> 0.07595 | N52: =IF(A54=1,0,3.5) -> 3.5 | O52: =IF(AND(A10="T1",A12="2B"),11,IF(AND(A10="T1",A12=0),9,E74+E55+2.5)) ->  | P52: 3.5 | Q52: =K52*N52*I$41 -> 0.8085 | R52: =M52*N52*$I$43 -> 0.3455725 | S52: =L52*O52*I$42 ->  | T52: =0.2*S52 ->  | U52: =IF(A54=1,+L52*P52*I$42/2,+L52*P52*I$42) -> 0.21896875 | W52: =IF($A52=0,0,+K52) -> 0 | X52: 0 | Y52: =IF(A52=0,0,M52) -> 0 | Z52: =IF($A52=0,0,+Q52) -> 0 | AA52: =IF(A52=0,0,R52) -> 0 | AB52: =IF($A52=0,0,+S52) -> 0 | AC52: 0 | AD52: 0 | AF52: =IF($A$11<>0,1,0) -> 0 | AG52: LUMINAIRE | AN52: 0.25 | AO52: 0.7 | AP52: =IF(AF54=1,0.42,0.21) -> 0.21 | AQ52: =IF(AF54=1,(+AK$40*AK$42*AN52*AO52*1.1)*2,+AK$40*AK$42*AN52*AO52*1.1) -> 0.048125 | AR52: =$F$41*9.8/1000*AN52 -> 0.07595 | AS52: =IF(AF54=1,0,3.5) -> 3.5 | AT52: =IF(AC10="T1",10.5,AJ74+AJ55+2.5) ->  | AU52: 3.5 | AV52: =AP52*AS52*AN$41 -> 0.8085 | AW52: =AR52*AS52*$I$43 -> 0.3455725 | AX52: =AQ52*AT52*AN$42 ->  | AY52: =0.2*AX52 ->  | AZ52: =IF(AF54=1,+AQ52*AU52*AN$42/2,+AQ52*AU52*AN$42) -> 0.21896875 | BB52: =IF($A52=0,0,+AP52) -> 0 | BC52: 0 | BD52: =IF(AF52=0,0,AR52) -> 0 | BE52: =IF($A52=0,0,+AV52) -> 0 | BF52: =IF(AF52=0,0,AW52) -> 0 | BG52: =IF($A52=0,0,+AX52) -> 0 | BH52: 0 | BI52: 0
A53: =IF($A$11="2A",1,0) -> 0 | B53: DAVIT - 2A (S) | E53: 4.57 | F53: 60 | G53: 34 | H53: 3 | I53: =E53*(F53+G53)/1000 -> 0.42958 | J53: 1.4 | K53: =IF(F$45=8,6.63,IF(F$45=12,6.43,IF(F$45=16,6.37,6.28)))*E53*(F53+G53)/2*H53*77/1000000*1.3 -> 0.4276445273 | L53: =F$40*F$42*I53*J53*1.1 -> 0.1653883 | M53: 0.130506404 | N53: 1 | O53: =O52-0.8 ->  | P53: 1 | Q53: 0.47040898 | R53: 0.1696583252 | U53: =L53*P53*I$42 -> 0.21500479 | W53: 0 | X53: 0 | Y53: 0 | Z53: 0 | AA53: 0 | AB53: 0 | AC53: 0 | AD53: 0 | AF53: =IF($A$11="2A",1,0) -> 0 | AG53: DAVIT | AH53: (S) | AJ53: 4.57 | AK53: 60 | AL53: 34 | AM53: 3 | AN53: =AJ53*(AK53+AL53)/1000 -> 0.42958 | AO53: 1.4 | AP53: =IF(AK$45=8,6.63,IF(AK$45=12,6.43,IF(AK$45=16,6.37,6.28)))*AJ53*(AK53+AL53)/2*AM53*77/1000000 -> 0.3289573287 | AQ53: =AK$40*AK$42*AN53*AO53*1.1 -> 0.1653883 | AR53: 0.130506404 | AS53: 1 | AT53: =AT52-0.8 ->  | AU53: 1 | AV53: 0.3618530616 | AW53: 0.1696583252 | AZ53: =AQ53*AU53*AN$42 -> 0.21500479 | BB53: 0 | BC53: 0 | BD53: 0 | BE53: 0 | BF53: 0 | BG53: 0 | BH53: 0 | BI53: 0
A54: =IF($A$11="2C",1,0) -> 0 | B54: DAVIT - 2C (D) | E54: 9.14 | F54: 60 | G54: 34 | H54: 3 | I54: =E54*(F54+G54)/1000 -> 0.85916 | J54: 1.4 | K54: =IF(F$45=8,6.63,IF(F$45=12,6.43,IF(F$45=16,6.37,6.28)))*E54*(F54+G54)/2*H54*77/1000000*1.3 -> 0.8552890546 | L54: =F$40*F$42*I54*J54*1.1 -> 0.3307766 | M54: 0.261012808 | N54: 0 | O54: =O52-0.8 ->  | P54: 1 | Q54: 0 | R54: 0 | U54: =L54*P54*I$42/2 -> 0.21500479 | W54: 0 | X54: 0 | Y54: 0 | Z54: 0 | AA54: 0 | AB54: 0 | AC54: 0 | AD54: 0 | AF54: =IF($A$11="2C",1,0) -> 0 | AG54: DAVIT | AH54: (D) | AJ54: 9.14 | AK54: 60 | AL54: 34 | AM54: 3 | AN54: =AJ54*(AK54+AL54)/1000 -> 0.85916 | AO54: 1.4 | AP54: =IF(AK$45=8,6.63,IF(AK$45=12,6.43,IF(AK$45=16,6.37,6.28)))*AJ54*(AK54+AL54)/2*AM54*77/1000000 -> 0.6579146574 | AQ54: =AK$40*AK$42*AN54*AO54*1.1 -> 0.3307766 | AR54: 0.261012808 | AS54: 0 | AT54: =AT52-0.8 ->  | AU54: 1 | AV54: 0 | AW54: 0 | AZ54: =AQ54*AU54*AN$42/2 -> 0.21500479 | BB54: 0 | BC54: 0 | BD54: 0 | BE54: 0 | BF54: 0 | BG54: 0 | BH54: 0 | BI54: 0
A55: =IF($A$12<>0,1,0) -> 0 | B55: LUM. ARM EXTENSION | E55: =IF($A$12<>0,VLOOKUP($A$12,'POLES DATA'!$A$17:$J$77,4,FALSE)/10^3,0) -> 0 | F55: =IF($A$12<>0,VLOOKUP($A$12,'POLES DATA'!$A$17:$J$77,9,FALSE),0)/2 -> 0 | G55: =IF($A$12<>0,VLOOKUP($A$12,'POLES DATA'!$A$17:$J$77,10,FALSE),0)/2 -> 0 | H55: =IF($A$12<>0,VLOOKUP($A$12,'POLES DATA'!$A$17:$J$77,8,FALSE),0) -> 0 | I55: =E55*(F55+G55)/1000 -> 0 | J55: =IF(F$47=8,$BU$151,IF(F$47=12,$BU$152,IF(F$47=16,$BU$153,$BU$154))) -> 1.4 | K55: =IF(F$45=8,6.63,IF(F$45=12,6.43,IF(F$45=16,6.37,6.28)))*E55*(F55+G55)/2*H55*77/1000000*1.3 -> 0 | L55: =F$40*F$42*F$43*I55*J55 -> 0 | M55: 0 | N55: 0 | O55: =IF(E55=3.63,8.89,IF(E55=1.13,7.84,IF(E55=4.25,8.67,IF(AND(OR(A12="0.25M",A12="0.25L"),E55=0.25),6.86,IF(E55=4.8,8.46,IF(E55=1.8,7.05,IF(AND(A12="7A",E55=0.25),6.32,7.5))))))) -> 7.5 | P55: 0 | Q55: 0 | R55: 0 | S55: 0 | T55: 0 | U55: =L55*P55*I$42 -> 0 | W55: 0 | X55: 0 | Y55: 0 | Z55: 0 | AA55: 0 | AB55: 0 | AC55: 0 | AD55: 0 | AF55: =IF($A$12<>0,1,0) -> 0 | AG55: EXTENSION | AJ55: =IF(OR($A$12="0.25L",$A$12="0.25M"),0.25,IF(OR($A$12="1.75L",$A$12="1.75M"),1.75,IF(OR($A$12="4.25L",$A$12="4.25M"),4.25,IF($A$12="1.13H",1.13,IF($A$12="3.63H",3.63,IF($A$12="7A",0.24,IF($A$12="7C",2.5,4.8))))))) -> 4.8 | AK55: =IF($D$38="L",110,IF($D$38="M",137.5,IF($D$38="H",175,85))) -> 85 | AL55: 60 | AM55: =IF($D$38="T7",8,IF(OR(OR($A$12="4.25L",$A$12="4.25M"),$A$12="3.63H"),4.5,3)) -> 3 | AN55: =AJ55*(AK55+AL55)/1000 -> 0.696 | AO55: =IF(AK$47=8,$BU$151,IF(AK$47=12,$BU$152,IF(AK$47=16,$BU$153,$BU$154))) -> 1.4 | AP55: =IF(AK$45=8,6.63,IF(AK$45=12,6.43,IF(AK$45=16,6.37,6.28)))*AJ55*(AK55+AL55)/2*AM55*77/1000000 -> 0.53297244 | AQ55: =AK$40*AK$42*AK$43*AN55*AO55 -> 0.2436 | AR55: 0.2114448 | AS55: 0 | AT55: 6.85 | AU55: 0 | AV55: 0 | AW55: 0 | AX55: 2.169258 | AY55: 0.4338516 | AZ55: =AQ55*AU55*AN$42 -> 0 | BB55: 0 | BC55: 0 | BD55: 0 | BE55: 0 | BF55: 0 | BG55: 0 | BH55: 0 | BI55: 0
A56: 0 | B56: EXTENSION | E56: 0 | F56: =IF($D$38="L",110,IF($D$38="M",137.5,IF($D$38="H",175,85))) -> 85 | G56: 60 | H56: =IF($D$38="T7",8,3) -> 3 | I56: =E56*(F56+G56)/1000 -> 0 | J56: =IF(F$47=8,$BU$151,IF(F$47=12,$BU$152,IF(F$47=16,$BU$153,$BU$154))) -> 1.4 | K56: =IF(F$45=8,6.63,IF(F$45=12,6.43,IF(F$45=16,6.37,6.28)))*E56*(F56+G56)/2*H56*77/1000000 -> 0 | L56: 0 | M56: 0 | N56: 0 | O56: 7.43 | P56: 0 | Q56: 0 | R56: 0 | S56: 0 | T56: 0 | U56: 0 | W56: 0 | X56: 0 | Y56: 0 | Z56: 0 | AA56: 0 | AB56: 0 | AC56: 0 | AD56: 0 | AF56: 0 | AG56: EXTENSION | AJ56: 0 | AK56: =IF($D$38="L",110,IF($D$38="M",137.5,IF($D$38="H",175,85))) -> 85 | AL56: 60 | AM56: =IF($D$38="T7",8,3) -> 3 | AN56: =AJ56*(AK56+AL56)/1000 -> 0 | AO56: =IF(AK$47=8,$BU$151,IF(AK$47=12,$BU$152,IF(AK$47=16,$BU$153,$BU$154))) -> 1.4 | AP56: =IF(AK$45=8,6.63,IF(AK$45=12,6.43,IF(AK$45=16,6.37,6.28)))*AJ56*(AK56+AL56)/2*AM56*77/1000000 -> 0 | AQ56: 0 | AR56: 0 | AS56: 0 | AT56: 7.43 | AU56: 0 | AV56: 0 | AW56: 0 | AX56: 0 | AY56: 0 | AZ56: 0 | BB56: 0 | BC56: 0 | BD56: 0 | BE56: 0 | BF56: 0 | BG56: 0 | BH56: 0 | BI56: 0
A57: 0 | B57: EXTENSION | E57: 0 | F57: =IF($D$38="L",110,IF($D$38="M",137.5,IF($D$38="H",175,85))) -> 85 | G57: 60 | H57: =IF($D$38="T7",8,4.5) -> 4.5 | I57: =E57*(F57+G57)/1000 -> 0 | J57: =IF(F$47=8,$BV$151,IF(F$47=12,$BV$152,IF(F$47=16,$BV$153,$BV$154))) -> 1.4 | K57: =IF(F$45=8,6.63,IF(F$45=12,6.43,IF(F$45=16,6.37,6.28)))*E57*(F57+G57)/2*H57*77/1000000 -> 0 | L57: 0 | M57: 0 | N57: 0 | O57: 8.6 | P57: 0 | Q57: 0 | R57: 0 | S57: 0 | T57: 0 | U57: 0 | W57: 0 | X57: 0 | Y57: 0 | Z57: 0 | AA57: 0 | AB57: 0 | AC57: 0 | AD57: 0 | AF57: 0 | AG57: EXTENSION | AJ57: 0 | AK57: =IF($D$38="L",110,IF($D$38="M",137.5,IF($D$38="H",175,85))) -> 85 | AL57: 60 | AM57: =IF($D$38="T7",8,4.5) -> 4.5 | AN57: =AJ57*(AK57+AL57)/1000 -> 0 | AO57: =IF(AK$47=8,$BV$151,IF(AK$47=12,$BV$152,IF(AK$47=16,$BV$153,$BV$154))) -> 1.4 | AP57: =IF(AK$45=8,6.63,IF(AK$45=12,6.43,IF(AK$45=16,6.37,6.28)))*AJ57*(AK57+AL57)/2*AM57*77/1000000 -> 0 | AQ57: 0 | AR57: 0 | AS57: 0 | AT57: 8.6 | AU57: 0 | AV57: 0 | AW57: 0 | AX57: 0 | AY57: 0 | AZ57: 0 | BB57: 0 | BC57: 0 | BD57: 0 | BE57: 0 | BF57: 0 | BG57: 0 | BH57: 0 | BI57: 0
A58: =$A$25 -> 0 | B58: SIGNAL HEAD ( 200-200-200) | F58: =$J$25 -> 0 | G58: =$L$25 -> 0 | H58: =$N$25 -> 0 | I58: =0.55*A58 -> 0 | J58: 1.2 | K58: =0.12*A58 -> 0 | L58: 0 | M58: 0 | N58: =IF(A58=0,0,(F58+G58+H58)/A58) -> 0 | O58: =MAX($D$74,$E$74) ->  | P58: =N58 -> 0 | Q58: 0 | R58: 0 | U58: 0 | W58: 0 | X58: 0 | Y58: 0 | Z58: 0 | AA58: 0 | AB58: 0 | AC58: 0 | AD58: 0 | AF58: =$A$25 -> 0 | AG58: SIGNAL HEAD ( 200-200-200) | AK58: =IF($J$25=0,0,$J$25-2.5) -> 0 | AL58: =IF($L$25=0,0,$L$25-2.5) -> 0 | AM58: =IF($N$25=0,0,$N$25-2.5) -> 0 | AN58: =0.55*AF58 -> 0 | AO58: 1.2 | AP58: =0.12*AF58 -> 0 | AQ58: 0 | AR58: 0 | AS58: =IF(AF58=0,0,(AK58+AL58+AM58)/AF58) -> 0 | AT58: =AJ$74 ->  | AU58: =AS58 -> 0 | AV58: 0 | AW58: 0 | AZ58: 0 | BB58: 0 | BC58: 0 | BD58: 0 | BE58: 0 | BF58: 0 | BG58: 0 | BH58: 0 | BI58: 0
A59: =$A$26 -> 0 | B59: SIGNAL HEAD (300-200-200) | F59: =$J$26 -> 0 | G59: =$L$26 -> 0 | H59: =$N$26 -> 0 | I59: =0.78*A59 -> 0 | J59: 1.2 | K59: =0.14*A59 -> 0 | L59: 0 | M59: 0 | N59: =IF(A59=0,0,(F59+G59+H59)/A59) -> 0 | P59: 0 | Q59: 0 | R59: 0 | U59: 0 | W59: 0 | X59: 0 | Y59: 0 | Z59: 0 | AA59: 0 | AB59: 0 | AC59: 0 | AD59: 0 | AF59: =$A$26 -> 0 | AG59: SIGNAL HEAD (300-200-200) | AK59: =IF($J$26=0,0,$J$26-2.5) -> 0 | AL59: =IF($L$26=0,0,$L$26-2.5) -> 0 | AM59: =IF($N$26=0,0,$N$26-2.5) -> 0 | AN59: =0.7*AF59 -> 0 | AO59: 1.2 | AP59: =0.14*AF59 -> 0 | AQ59: 0 | AR59: 0 | AS59: =IF(AF59=0,0,(AK59+AL59+AM59)/AF59) -> 0 | AU59: 0 | AV59: 0 | AW59: 0 | AZ59: 0 | BB59: 0 | BC59: 0 | BD59: 0 | BE59: 0 | BF59: 0 | BG59: 0 | BH59: 0 | BI59: 0
A60: =$A$27 -> 0 | B60: SIGNAL HEAD (200-200-200-300) | F60: =$J$27 -> 0 | G60: =$L$27 -> 0 | H60: =$N$27 -> 0 | I60: =1.01*A60 -> 0 | J60: 1.2 | K60: =0.2*A60 -> 0 | L60: 0 | M60: 0 | N60: =IF(A60=0,0,(F60+G60+H60)/A60) -> 0 | P60: 0 | Q60: 0 | R60: 0 | U60: 0 | W60: 0 | X60: 0 | Y60: 0 | Z60: 0 | AA60: 0 | AB60: 0 | AC60: 0 | AD60: 0 | AF60: =$A$27 -> 0 | AG60: SIGNAL HEAD (200-200-200-300) | AK60: =IF($J$27=0,0,$J$27-2.5) -> 0 | AL60: =IF($L$27=0,0,$L$27-2.5) -> 0 | AM60: =IF($N$27=0,0,$N$27-2.5) -> 0 | AN60: =0.92*AF60 -> 0 | AO60: 1.2 | AP60: =0.2*AF60 -> 0 | AQ60: 0 | AR60: 0 | AS60: =IF(AF60=0,0,(AK60+AL60+AM60)/AF60) -> 0 | AU60: 0 | AV60: 0 | AW60: 0 | AZ60: 0 | BB60: 0 | BC60: 0 | BD60: 0 | BE60: 0 | BF60: 0 | BG60: 0 | BH60: 0 | BI60: 0
A61: =$A$28 -> 0 | B61: SIGNAL HEAD (300-300-300) | F61: =$J$28 -> 0 | G61: =$L$28 -> 0 | H61: =$N$28 -> 0 | I61: =0.9*A61 -> 0 | J61: 1.2 | K61: =0.18*A61 -> 0 | L61: 0 | M61: 0 | N61: =IF(A61=0,0,(F61+G61+H61)/A61) -> 0 | P61: 0 | Q61: 0 | R61: 0 | U61: 0 | W61: 0 | X61: 0 | Y61: 0 | Z61: 0 | AA61: 0 | AB61: 0 | AC61: 0 | AD61: 0 | AF61: =$A$28 -> 0 | AG61: SIGNAL HEAD (300-300-300) | AK61: =IF($J$28=0,0,$J$28-2.5) -> 0 | AL61: =IF($L$28=0,0,$L$28-2.5) -> 0 | AM61: =IF($N$28=0,0,$N$28-2.5) -> 0 | AN61: =0.8*AF61 -> 0 | AO61: 1.2 | AP61: =0.18*AF61 -> 0 | AQ61: 0 | AR61: 0 | AS61: =IF(AF61=0,0,(AK61+AL61+AM61)/AF61) -> 0 | AU61: 0 | AV61: 0 | AW61: 0 | AZ61: 0 | BB61: 0 | BC61: 0 | BD61: 0 | BE61: 0 | BF61: 0 | BG61: 0 | BH61: 0 | BI61: 0
A62: =$A$29 -> 0 | B62: SIGNAL HEAD (300-300-300-300) | F62: =$J$29 -> 0 | G62: =$L$29 -> 0 | H62: =$N$29 -> 0 | I62: =1.14*A62 -> 0 | J62: 1.2 | K62: =0.24*A62 -> 0 | L62: 0 | M62: 0 | N62: =IF(A62=0,0,(F62+G62+H62)/A62) -> 0 | P62: 0 | Q62: 0 | R62: 0 | U62: 0 | W62: 0 | X62: 0 | Y62: 0 | Z62: 0 | AA62: 0 | AB62: 0 | AC62: 0 | AD62: 0 | AF62: =$A$29 -> 0 | AG62: SIGNAL HEAD (300-300-300-300) | AK62: =IF($J$29=0,0,$J$29-2.5) -> 0 | AL62: =IF($L$29=0,0,$L$29-2.5) -> 0 | AM62: =IF($N$29=0,0,$N$29-2.5) -> 0 | AN62: =1*AF62 -> 0 | AO62: 1.2 | AP62: =0.24*AF62 -> 0 | AQ62: 0 | AR62: 0 | AS62: =IF(AF62=0,0,(AK62+AL62+AM62)/AF62) -> 0 | AU62: 0 | AV62: 0 | AW62: 0 | AZ62: 0 | BB62: 0 | BC62: 0 | BD62: 0 | BE62: 0 | BF62: 0 | BG62: 0 | BH62: 0 | BI62: 0
A63: 0 | B63: REG. SIGN | I63: 0.36 | J63: 1.2 | K63: 0.13 | L63: 0.108 | M63: 0.109368 | N63: =N58-1 -> -1 | O63: =MAX($D$74,$E$74) ->  | P63: -1 | Q63: -0.143 | R63: -0.1421784 | U63: -0.1404 | W63: 0 | X63: 0 | Y63: 0 | Z63: 0 | AA63: 0 | AB63: 0 | AC63: 0 | AD63: 0 | AF63: 0 | AG63: REG. SIGN | AN63: 0.36 | AO63: 1.2 | AP63: 0.13 | AQ63: 0.108 | AR63: 0.109368 | AS63: =AS58-1 -> -1 | AU63: -1 | AV63: -0.143 | AW63: -0.1421784 | AZ63: -0.1404 | BB63: 0 | BC63: 0 | BD63: 0 | BE63: 0 | BF63: 0 | BG63: 0 | BH63: 0 | BI63: 0
A64: 0 | B64: ALUM. SIGN | I64: 0.36 | J64: 1.2 | K64: 0.2 | L64: 0.108 | M64: 0.109368 | N64: =N58-2 -> -2 | P64: -2 | Q64: -0.44 | R64: -0.2843568 | U64: -0.2808 | W64: 0 | X64: 0 | Y64: 0 | Z64: 0 | AA64: 0 | AB64: 0 | AC64: 0 | AD64: 0 | AF64: 0 | AG64: ALUM. SIGN | AN64: 0.36 | AO64: 1.2 | AP64: 0.2 | AQ64: 0.108 | AR64: 0.109368 | AS64: =AS58-2 -> -2 | AU64: -2 | AV64: -0.44 | AW64: -0.2843568 | AZ64: -0.2808 | BB64: 0 | BC64: 0 | BD64: 0 | BE64: 0 | BF64: 0 | BG64: 0 | BH64: 0 | BI64: 0
A65: =$A$31 -> 0 | B65: SIGN | C65: =$D$31 -> 0 | D65: x | E65: =$F$31 -> 0 | I65: =C65*E65 -> 0 | J65: 1.2 | K65: =I65*0.45 -> 0 | L65: 0 | M65: 0 | N65: =$H$31 -> 0 | P65: 0 | Q65: 0 | R65: 0 | U65: 0 | W65: 0 | X65: 0 | Y65: 0 | Z65: 0 | AA65: 0 | AB65: 0 | AC65: 0 | AD65: 0 | AF65: =$A$31 -> 0 | AG65: SIGN | AH65: =$D$31 -> 0 | AI65: x | AJ65: =$F$31 -> 0 | AN65: =AH65*AJ65 -> 0 | AO65: 1.2 | AP65: =AN65*0.45 -> 0 | AQ65: 0 | AR65: 0 | AS65: =$H$31-2.5 -> -2.5 | AU65: -2.5 | AV65: 0 | AW65: 0 | AZ65: 0 | BB65: 0 | BC65: 0 | BD65: 0 | BE65: 0 | BF65: 0 | BG65: 0 | BH65: 0 | BI65: 0
A66: =$A$32 -> 0 | B66: SIGN | C66: =$D$32 -> 0 | D66: x | E66: =$F$32 -> 0 | I66: =C66*E66 -> 0 | J66: 1.2 | K66: =I66*0.45 -> 0 | L66: 0 | M66: 0 | N66: =$H$32 -> 0 | P66: 0 | Q66: 0 | R66: 0 | U66: 0 | W66: 0 | X66: 0 | Y66: 0 | Z66: 0 | AA66: 0 | AB66: 0 | AC66: 0 | AD66: 0 | AF66: =$A$32 -> 0 | AG66: SIGN | AH66: =$D$32 -> 0 | AI66: x | AJ66: =$F$32 -> 0 | AN66: =AH66*AJ66 -> 0 | AO66: 1.2 | AP66: =AN66*0.45 -> 0 | AQ66: 0 | AR66: 0 | AS66: =$H$32-2.5 -> -2.5 | AU66: -2.5 | AV66: 0 | AW66: 0 | AZ66: 0 | BB66: 0 | BC66: 0 | BD66: 0 | BE66: 0 | BF66: 0 | BG66: 0 | BH66: 0 | BI66: 0
A67: =$A$33 -> 0 | B67: SIGN | C67: =$D$33 -> 0 | D67: x | E67: =$F$33 -> 0 | I67: =C67*E67 -> 0 | J67: 1.2 | K67: =I67*0.45 -> 0 | L67: 0 | M67: 0 | N67: =$H$33 -> 0 | P67: 0 | Q67: 0 | R67: 0 | U67: 0 | W67: 0 | X67: 0 | Y67: 0 | Z67: 0 | AA67: 0 | AB67: 0 | AC67: 0 | AD67: 0 | AF67: =$A$33 -> 0 | AG67: SIGN | AH67: =$D$33 -> 0 | AI67: x | AJ67: =$F$33 -> 0 | AN67: =AH67*AJ67 -> 0 | AO67: 1.2 | AP67: =AN67*0.45 -> 0 | AQ67: 0 | AR67: 0 | AS67: =$H$33-2.5 -> -2.5 | AU67: -2.5 | AV67: 0 | AW67: 0 | AZ67: 0 | BB67: 0 | BC67: 0 | BD67: 0 | BE67: 0 | BF67: 0 | BG67: 0 | BH67: 0 | BI67: 0
A68: =$L$31 -> 0 | B68: SIGN LUMINAIRE | I68: =0.14*A68 -> 0 | J68: 1.2 | K68: =0.35*A68 -> 0 | L68: 0 | M68: 0 | N68: =N65 -> 0 | P68: 0 | Q68: 0 | R68: 0 | U68: 0 | W68: 0 | X68: 0 | Y68: 0 | Z68: 0 | AA68: 0 | AB68: 0 | AC68: 0 | AD68: 0 | AF68: =$L$31 -> 0 | AG68: SIGN LUMINAIRE | AN68: =0.36*AF68 -> 0 | AO68: 1.2 | AP68: =0.35*AF68 -> 0 | AQ68: 0 | AR68: 0 | AS68: =AS65 -> -2.5 | AU68: -2.5 | AV68: 0 | AW68: 0 | AZ68: 0 | BB68: 0 | BC68: 0 | BD68: 0 | BE68: 0 | BF68: 0 | BG68: 0 | BH68: 0 | BI68: 0
A69: =$L$32 -> 0 | B69: SIGN LUMINAIRE | I69: =0.14*A69 -> 0 | J69: 1.2 | K69: =0.35*A69 -> 0 | L69: 0 | M69: 0 | N69: =N66 -> 0 | P69: 0 | Q69: 0 | R69: 0 | U69: 0 | W69: 0 | X69: 0 | Y69: 0 | Z69: 0 | AA69: 0 | AB69: 0 | AC69: 0 | AD69: 0 | AF69: =$L$32 -> 0 | AG69: SIGN LUMINAIRE | AN69: =0.36*AF69 -> 0 | AO69: 1.2 | AP69: =0.35*AF69 -> 0 | AQ69: 0 | AR69: 0 | AS69: =AS66 -> -2.5 | AU69: -2.5 | AV69: 0 | AW69: 0 | AZ69: 0 | BB69: 0 | BC69: 0 | BD69: 0 | BE69: 0 | BF69: 0 | BG69: 0 | BH69: 0 | BI69: 0
A70: =$L$33 -> 0 | B70: SIGN LUMINAIRE | I70: =0.14*A70 -> 0 | J70: 1.2 | K70: =0.35*A70 -> 0 | L70: 0 | M70: 0 | N70: =N67 -> 0 | P70: 0 | Q70: 0 | R70: 0 | U70: 0 | W70: 0 | X70: 0 | Y70: 0 | Z70: 0 | AA70: 0 | AB70: 0 | AC70: 0 | AD70: 0 | AF70: =$L$33 -> 0 | AG70: SIGN LUMINAIRE | AN70: =0.36*AF70 -> 0 | AO70: 1.2 | AP70: =0.35*AF70 -> 0 | AQ70: 0 | AR70: 0 | AS70: =AS67 -> -2.5 | AU70: -2.5 | AV70: 0 | AW70: 0 | AZ70: 0 | BB70: 0 | BC70: 0 | BD70: 0 | BE70: 0 | BF70: 0 | BG70: 0 | BH70: 0 | BI70: 0
A71: 1 | B71: ARM | D71: =IF(OR(OR(AND(OR(OR(OR(OR($A$17="5L",$A$17="6L"),$A$17="7L"),$A$17="8L"),$A$17="9L"),$A$10="L"),$A$22="H1"),$A$22="M1"),6.4,IF(OR(OR(OR(AND(OR($A$17="3L",$A$17="4L"),$A$10="L"),$A$22="3D"),$A$16="7A"),$A$21="7A"),4.8,IF(OR(OR(AND(OR($A$17="3A",$A$17="3C"),$A$16=0),$A$22="3A"),$A$22="3C"),3,IF(AND(OR($A$17="3E",$A$17="3D"),$A$16=0),4.8,IF(AND(OR($A$10="T1",$A$10="T3"),$A$22<>0),4.8,IF($A$22="L1",6.4,8)))))) -> 8 | E71: =IF($A$22=0,$E$18,$E$23) -> 0 | F71: =VLOOKUP($A$10,'POLES DATA'!$A$81:$J$89,10,FALSE)/2 ->  | G71: =IF($A$22=0,VLOOKUP($A$17,'POLES DATA'!$A$17:$J$77,10,FALSE),VLOOKUP($A$22,'POLES DATA'!$A$17:$J$77,10,FALSE))/2 ->  | H71: =MAX($AC$15:$AC$17,$AC$21:$AC$22) -> 0 | I71: =E71*(F71+G71)/1000 ->  | J71: =IF(F$46=8,$BS$151,IF(F$46=12,$BS$152,IF(F$46=16,$BS$153,$BS$154))) -> 1.4 | K71: =IF(F$45=8,6.63,IF(F$45=12,6.43,IF(F$45=16,6.37,6.28)))*E71*(F71+G71)/2*H71*77/1000000*1.3 ->  | N71: =E$71/3*(2*G71+F71)/(G71+F71) ->  | O71: =MAX($D$74,$E$74) ->  | AF71: 1 | AG71: ARM | AJ71: =IF($A$22=0,$E$18,$E$23)-2.5 -> -2.5 | AK71: =VLOOKUP($A$10,'POLES DATA'!$A$81:$J$89,10,FALSE)/2 ->  | AL71: =IF($A$22=0,VLOOKUP($A$17,'POLES DATA'!$A$17:$J$77,10,FALSE),VLOOKUP($A$22,'POLES DATA'!$A$17:$J$77,10,FALSE))/2 ->  | AM71: =MAX($AC$15:$AC$17,$AC$21:$AC$22) -> 0 | AN71: =AJ71*(AK71+AL71)/1000 ->  | AO71: =IF(AK$46=8,$BS$151,IF(AK$46=12,$BS$152,IF(AK$46=16,$BS$153,$BS$154))) -> 1.4 | AP71: =IF(AK$45=8,6.63,IF(AK$45=12,6.43,IF(AK$45=16,6.37,6.28)))*AJ71*(AK71+AL71)/2*AM71*77/1000000 ->  | AS71: =AJ$71/3*(2*AL71+AK71)/(AL71+AK71) ->  | AT71: =AJ74 -> 
A72: 0 | B72: SIGNAL HEAD (5) | I72: 0.25 | J72: 1.2 | K72: 0.22 | L72: 0.075 | M72: 0.07595 | N72: 1 | O72: 3 | P72: 1 | Q72: 0.242 | R72: 0.098735 | S72: 0.2925 | T72: 0.0585 | U72: 0.0975 | W72: 0 | X72: 0 | Y72: 0 | Z72: 0 | AA72: 0 | AB72: 0 | AC72: 0 | AD72: 0 | AF72: 0 | AG72: SIGNAL HEAD (5) | AN72: 0.25 | AO72: 1.2 | AP72: 0.22 | AQ72: 0.075 | AR72: 0.07595 | AS72: 1 | AT72: 3 | AU72: 1 | AV72: 0.242 | AW72: 0.098735 | AX72: 0.2925 | AY72: 0.0585 | AZ72: 0.0975 | BB72: 0 | BC72: 0 | BD72: 0 | BE72: 0 | BF72: 0 | BG72: 0 | BH72: 0 | BI72: 0
A73: 0 | B73: PED. HEAD (1) | I73: 0.2 | J73: 1.2 | K73: 0.14 | L73: 0.06 | M73: 0.06076 | N73: 1 | O73: 2.5 | P73: 1 | Q73: 0.154 | R73: 0.078988 | S73: 0.195 | T73: 0.039 | U73: 0.078 | W73: 0 | X73: 0 | Y73: 0 | Z73: 0 | AA73: 0 | AB73: 0 | AC73: 0 | AD73: 0 | AF73: 0 | AG73: PED. HEAD (1) | AN73: 0.2 | AO73: 1.2 | AP73: 0.14 | AQ73: 0.06 | AR73: 0.06076 | AS73: 1 | AT73: 2.5 | AU73: 1 | AV73: 0.154 | AW73: 0.078988 | AX73: 0.195 | AY73: 0.039 | AZ73: 0.078 | BB73: 0 | BC73: 0 | BD73: 0 | BE73: 0 | BF73: 0 | BG73: 0 | BH73: 0 | BI73: 0
A74: =IF(D38=0,0,1) -> 0 | B74: POLE | D74: =CEILING(VLOOKUP($D$38,'POLES DATA'!$A$81:$J$89,5,FALSE),100)/10^3 ->  | E74: =CEILING(VLOOKUP($A$10,'POLES DATA'!$A$81:$J$89,4,FALSE),10)/10^3 ->  | F74: =VLOOKUP($A$10,'POLES DATA'!$A$81:$J$89,9,FALSE)/2 ->  | G74: =VLOOKUP($A$10,'POLES DATA'!$A$81:$J$89,10,FALSE)/2 ->  | H74: =VLOOKUP($A$10,'POLES DATA'!$A$81:$J$89,8,FALSE) ->  | I74: =E74*(F74+G74)/1000 ->  | J74: =IF(F$45=8,$BR$151,IF(F$45=12,$BR$152,IF(F$45=16,$BR$153,$BR$154))) -> 1.4 | K74: =IF(F$45=8,6.63,IF(F$45=12,6.43,IF(F$45=16,6.37,6.28)))*E74*(F74+G74)/2*H74*77/1000000*1.3 ->  | N74: 0 | O74: =E74/3*(2*G74+F74)/(G74+F74) ->  | P74: 0 | W74: 0 | X74: 0 | Y74: 0 | Z74: 0 | AA74: 0 | AB74: 0 | AC74: 0 | AD74: 0 | AF74: 1 | AG74: POLE | AJ74: =CEILING(VLOOKUP($D$38,'POLES DATA'!$A$81:$J$89,5,FALSE),100)/10^3 ->  | AK74: =VLOOKUP($A$10,'POLES DATA'!$A$81:$J$89,9,FALSE)/2 ->  | AL74: =VLOOKUP($A$10,'POLES DATA'!$A$81:$J$89,10,FALSE)/2 ->  | AM74: =VLOOKUP($A$10,'POLES DATA'!$A$81:$J$89,8,FALSE) ->  | AN74: =AJ74*(AK74+AL74)/1000 ->  | AO74: =IF(AK$45=8,$BR$151,IF(AK$45=12,$BR$152,IF(AK$45=16,$BR$153,$BR$154))) -> 1.4 | AP74: =IF(AK$45=8,6.63,IF(AK$45=12,6.43,IF(AK$45=16,6.37,6.28)))*AJ74*(AK74+AL74)/2*AM74*77/1000000 ->  | AS74: 0 | AT74: =AJ74/3*(2*AL74+AK74)/(AL74+AK74) ->  | AU74: 0 | BB74: 0 | BC74: 0 | BE74: 0 | BG74: 0 | BH74: 0 | BI74: 0
B75: --------------------------------------------- | C75: --------------------------------------------- | D75: --------------------------------------------- | E75: --------------------------------------------- | F75: --------------------------------------------- | G75: --------------------------------------------- | H75: --------------------------------------------- | I75: --------------------------------------------- | J75: --------------------------------------------- | K75: --------------------------------------------- | L75: --------------------------------------------- | M75: --------------------------------------------- | N75: --------------------------------------------- | O75: --------------------------------------------- | P75: --------------------------------------------- | Q75: --------------------------------------------- | R75: --------------------------------------------- | S75: --------------------------------------------- | T75: --------------------------------------------- | U75: --------------------------------------------- | AG75: --------------------------------------------- | AH75: --------------------------------------------- | AI75: --------------------------------------------- | AJ75: --------------------------------------------- | AK75: --------------------------------------------- | AL75: --------------------------------------------- | AM75: --------------------------------------------- | AN75: --------------------------------------------- | AO75: --------------------------------------------- | AP75: --------------------------------------------- | AQ75: --------------------------------------------- | AR75: --------------------------------------------- | AS75: --------------------------------------------- | AT75: --------------------------------------------- | AU75: --------------------------------------------- | AV75: --------------------------------------------- | AW75: --------------------------------------------- | AX75: --------------------------------------------- | AY75: --------------------------------------------- | AZ75: ---------------------------------------------
K76: =W76 ->  | L76: =X76 ->  | M76: =Y76 ->  | Q76: =Z76 ->  | R76: =AA76 ->  | S76: =AB76 ->  | T76: =AC76 ->  | U76: =AD76 ->  | W76: =SUM(W52:W74) ->  | AP76: =BB76 ->  | AQ76: =BC76 ->  | AR76: =BD76 ->  | AV76: =BE76 ->  | AW76: =BF76 ->  | AX76: =BG76 ->  | AY76: =BH76 ->  | AZ76: =BI76 ->  | BB76: =SUM(BB52:BB74) -> 
B78: POLE | L78: ANCHOR BOLTS
B79: ==== | L79: ============
B80: D/t = | C80: =2*F74/H74 ->  | E80: =IF(C80<L40,"COMPACT SECTION","NON-COMPACT SECTION") ->  | L80: NO. OF BOLTS= | N80: =IF($D$38="M",6,IF($D$38="H",8,4)) -> 4 | O80: (4,6 or 8)
L81: BOLT CIRCLE = | N81: =IF($D$38="L",390,IF($D$38="M",450,IF($D$38="H",575,IF(OR(OR(OR($D$38="T1",$D$38="M1"),$D$38="T3"),$D$38="M3"),280,343)))) -> 343 | O81: mm
B82: Mrn = | C82: =IF($F$45=8,$BQ$135,IF($F$45=12,$BP$135,IF($F$45=16,$BO$135,$BN$135)))*(0.95*$F$74^2*$H$74*$I$40/1000000) ->  | E82: Cf = | F82: =I$41*K76 ->  | H82: Cr/Tr | L82: BOLT DIA. = | N82: =IF(OR(OR($D$38="L",$D$38="M"),$D$38="H"),1.5,IF(OR(OR(OR($D$38="T1",$D$38="M1"),$D$38="T3"),$D$38="M3"),1,"D")) -> D | O82: inches | P82: (MIN. 1.125)
B83: Mrc = | C83: =IF($F$45=8,$BQ$138,IF($F$45=12,$BP$138,IF($F$45=16,$BO$138,$BN$138)))*(0.95*$F$74^2*$H$74*$I$40/1000000) ->  | E83: Mf = | F83: =IF($F$45=8,BM151,IF($F$45=12,BM152,IF($F$45=16,BM153,BM154))) ->  | G83: =IF($F$45=8,BN151,IF($F$45=12,BN152,IF($F$45=16,BN153,BN154))) ->  | H83: Mf/Mr = | I83: =IF(C80<L40,F83/$C83,F83/$C82) ->  | J83: =IF(C80<L40,G83/$C83,G83/$C82) ->  | L83: Tf = | M83: =IF($N$80=4,BQ172,IF($N$80=6,BQ173,IF($N$80=8,MAX(BQ174:BQ175),BQ176))) ->  | N83: =IF($N$80=4,BZ172,IF($N$80=6,BZ173,IF($N$80=8,MAX(BZ174:BZ175),BZ176))) ->  | O83: Tr = | P83: =IF(N82=1,220,IF(N82=1.125,243,IF(N82=1.25,300,IF(N82=2.25,750,IF(N82=1.5,431,313))))) -> 313 | Q83: Tf/Tr = | R83: =M83/P83 ->  | S83: =N83/P83 ->  | V83: (anchor bolt to be 20% stronger
B84: Qrb = | C84: =1.15*0.9*$I$40*$F$74^2*3.1416*$H$74/1000000 ->  | E84: Qfb = | F84: =U76 ->  | G84: =J42/I42*U76 ->  | H84: (Qf/Qr)^2 = | I84: =IF($C$80<$L$40,(F84/$C84)^2,(F84/$C84*1.26)^2) ->  | J84: =IF($C$80<$L$40,(G84/$C84)^2,(G84/$C84*1.26)^2) ->  | L84: Vf = | M84: =IF($N$80=4,BR172,IF($N$80=6,BR173,IF($N$80=8,BR174,BR176))) ->  | N84: =IF($N$80=4,CA172,IF($N$80=6,CA173,IF($N$80=8,CA174,CA176))) ->  | O84: Vr = | P84: =IF(N82=1,123,IF(N82="D",175,IF(N82=1.125,136,IF(N82=1.25,168,IF(N82=2.25,420,242))))) -> 175 | Q84: Vf/Vr = | R84: =M84/P84 ->  | S84: =N84/P84 ->  | V84: (than the base metal
B85: Qrt = | C85: =1.15*0.9*$I$40*$G$74^2*3.1416*$H$74/1000000 ->  | E85: Qft = | F85: =SUM($AD$58:$AD$71) ->  | G85: =$J42/I42*SUM($AD$58:$AD$71) ->  | H85: Qf/Qr = | I85: =IF($C$80<$L$40,(F85/$C85),(F85/$C85*1.26)) ->  | J85: =IF($C$80<$L$40,(G85/$C85),(G85/$C85*1.26)) ->  | R85: =MAX((R83^2+R84^2)*1.2,R83*1.2) ->  | S85: =MAX((S83^2+S84^2)*1.2,S83*1.2) -> 
C87: COMBINED FORCE RATIO = | G87: =MAX(I83+I84,J83+J84) ->  | M87: COMBINED FORCE RATIO = | P87: =MAX(R85,S85) -> 
B89: ARM | L89: FLANGE CONNECTION
B90: === | L90: =================
B91: D/t = | C91: =2*F71/H71 ->  | E91: =IF(C91<L40,"COMPACT SECTION","NON-COMPACT SECTION") ->  | L91: NO. OF BOLTS= | N91: =IF($D$38="H",8,IF(OR($D$38="M",D38="S"),6,4)) -> 4 | O91: (4,6 or 8)
L92: BOLT CIRCLE = | N92: =IF($D$38="L",345,IF($D$38="M",400,IF($D$38="H",460,IF(OR(OR(OR($D$38="T1",$D$38="M1"),$D$38="T3"),$D$38="M3"),170,242)))) -> 242 | O92: mm
B93: Mrn = | C93: =IF($F$46=8,$BQ$135,IF($F$46=12,$BP$135,IF($F$46=16,$BO$135,$BN$135)))*(0.95*$F$71^2*$H$71*$I$40/1000000) ->  | L93: BOLT DIA. = | N93: =IF(OR(OR($D$38="L",$D$38="M"),$D$38="H"),1.5,IF(OR(OR(OR($D$38="T1",$D$38="M1"),$D$38="T3"),$D$38="M3"),0.625,1)) -> 1 | O93: inches | P93: (MAX 1.5")
B94: Mrc = | C94: =IF($F$46=8,$BQ$138,IF($F$46=12,$BP$138,IF($F$46=16,$BO$138,$BN$138)))*(0.95*$F$71^2*$H$71*$I$40/1000000) ->  | E94: Mf = | F94: =IF($F$45=8,BO151,IF($F$45=12,BO152,IF($F$45=16,BO153,BO154))) ->  | G94: =IF($F$45=8,BP151,IF($F$45=12,BP152,IF($F$45=16,BP153,BP154))) ->  | L94: Tf = | M94: =IF($N$91=4,BQ162,IF($N$91=6,BQ163,MAX(BQ164:BQ165))) ->  | N94: =IF($N$91=4,BZ162,IF($N$91=6,BZ163,MAX(BZ164:BZ165))) ->  | O94: Tr = | P94: =IF($N$93=0.625,98,IF($N$93=0.75,141,IF($N$93=0.875,192,IF($N$93=1,251,IF($N$93=1.125,279,IF($N$93=1.25,345,496)))))) -> 251 | Q94: Tf/Tr = | R94: =M94/P94 ->  | S94: =N94/P94 -> 
L95: T = | M95: =IF(N91=4,BS162,IF(N91=6,BS163,BS164)) ->  | O95: T = | P95: =P94 -> 251
L96: Vf = | M96: =IF($N$91=4,BR162,IF($N$91=6,BR163,BR164)) ->  | N96: =IF($N$91=4,CA162,IF($N$91=6,CA163,CA164)) ->  | O96: Vr = | P96: =IF($N$93=0.625,54.9,IF($N$93=0.75,79,IF($N$93=0.875,108,IF($N$93=1,141,IF($N$93=1.125,156,IF($N$93=1.25,193,278)))))) -> 141 | Q96: Vf/Vr = | R96: =M96/P96 ->  | S96: =N96/P96 -> 
R97: =MAX(+(R94^2)+R96^2,R94) ->  | S97: =MAX(+(S94^2)+S96^2,S94) -> 
C98: COMBINED FORCE RATIO = | G98: =IF(C91<L40,MAX(+F94/C94,G94/C94),MAX(F94/C93,G94/C93)) ->  | M98: COMBINED FORCE RATIO = | P98: =MAX(R97,S97) -> 
L101: NEW FLANGE CONNECTION CHECK FOR TYPE S
L102: =================
L103: NO. OF BOLTS= | N103: 6 | O103: (4,6 or 8)
L104: BOLT DIA. = | N104: 1 | O104: inches | P104: (MAX 1.5")
L105: Tf = | M105: =$BQ$166 ->  | N105: =$BZ$166 ->  | O105: Tr = | P105: =IF($N$104=0.625,98,IF($N$104=0.75,141,IF($N$104=0.875,192,IF($N$104=1,251,IF($N$104=1.125,279,IF($N$104=1.25,345,496)))))) -> 251 | Q105: Tf/Tr = | R105: =M105/P105 ->  | S105: =N105/P105 -> 
L106: T = | M106: =$BS$166 ->  | O106: T = | P106: =$P$105 -> 251
L107: Vf = | M107: =$BR$163 ->  | N107: =$CA$166 ->  | O107: Vr = | P107: =IF($N$104=0.625,54.9,IF($N$104=0.75,79,IF($N$104=0.875,108,IF($N$104=1,141,IF($N$104=1.125,156,IF($N$104=1.25,193,278)))))) -> 141 | Q107: Vf/Vr = | R107: =M107/P107 ->  | S107: =N107/P107 -> 
R108: =MAX(+(R105^2)+R107^2,R105) ->  | S108: =MAX(+(S105^2)+S107^2,S105) -> 
M109: COMBINED FORCE RATIO = | P109: =MAX($R$108,$S$108) ->  | Q109: =IF($A$10="S","**FLANGE BOLT RATIO FOR TYPE S","") -> 
B121: ASSUMPTIONS
A122: 1) | B122: DEAD LOAD OF SIGN = 0.45 kN/m^2
A123: 2) | B123: WIND LOAD IN THE TRANSVERSE DIRECTION = 20% IN THE OTHER DIRECTION
A124: 3) | B124: ANCHOR BOLTS ARE 20% STRONGER THAN THE APPLIED LOADS
A125: 4) | B125: Cd for 8 sided member = 1.4
A128: ***** FOR 'USER GUIDE' AND 'PROGRAM ASSUMPTIONS' REFER TO OTHER WORKSHEETS OF THIS WORKBOOK
A129: Disclaimer: This spreadsheet does not check for fatigue and fatigue loading as per CAN/CSA-S6-19. This spreadsheet is recommended for preliminary design purposes only.
A130: For using this program, the user accepts and understands that no warranty is expressed on the accuracy or the reliability of the program.
A131: BASE LOADS
BM132: REFERENCE: AASHTO SPECS GUIDE, TABLE B-1
A133: Mx = | B133: =S76/I42 ->  | C133: Mtotal = | D133: =(B133^2+B134^2)^0.5 ->  | BM133: CONVERSION OF S to Z USING SHAPE FACTOR Kp
A134: My = | B134: =T76/I42+Q76/I41 ->  | BN134: R | BO134: 16 | BP134: 12 | BQ134: 8
A135: Mz = | B135: =U76/I42 ->  | BM135: S | BN135: 3.14 | BO135: 3.22 | BP135: 3.29 | BQ135: 3.5
A136: DL = | B136: =K76 ->  | BM136: A | BN136: 6.28 | BO136: 6.37 | BP136: 6.43 | BQ136: 6.63
A137: Vy = | B137: =L76 ->  | BM137: Kp | BN137: 1.27 | BO137: 1.27 | BP137: 1.26 | BQ137: 1.24
BM138: Z | BN138: =BN135*BN137 -> 3.9878 | BO138: =BO135*BO137 -> 4.0894 | BP138: =BP135*BP137 -> 4.1454 | BQ138: =BQ135*BQ137 -> 4.34
BM139: r | BN139: 0.707 | BO139: 0.711 | BP139: 0.715 | BQ139: 0.727
BL142: REFERENCE: AASHTO TABLE B.2 STRESSES FOR TUBULAR SECTIONS
BL143: BASE MOMENTS CALCULATIONS FOR POLES AND ARMS | BQ143: CAN/CSA-S6-06 TABLE A3.2.2
BO144: ARM | BQ144: CALCULATION FOR Ch = HORIZONTAL DRAG COEFFICIENT
BO145: WIND | BP145: ICE | BR145: D*(q*Ce)^.5
BN146: Fx = | BO146: =IF(OR(OR(OR($D$38="T1",$D$38="T7"),$D$38="T3"),$D$38="T6"),SUM($BE$58:$BE$71)+0.2*SUM($BI$58:$BI$71),SUM($Z$58:$Z$71)+0.2*SUM($AD$58:$AD$71)) ->  | BP146: =IF(OR(OR(OR($D$38="T1",$D$38="T7"),$D$38="T3"),$D$38="T6"),SUM($BE$58:$BE$71)+SUM($BF$58:$BF$71)+0.2*$J$42/$I$42*SUM($BI$58:$BI$71),SUM($Z$58:$Z$71)+SUM($AA$58:$AA$71)+0.2*$J$42/$I$42*SUM($AD$58:$AD$71)) ->  | BR146: =F74*2/1000*(F40*1000*F43)^0.5 ->  | BS146: =F71*2/1000*(F40*1000*F43)^0.5 ->  | BT146: =F53*2/1000*(F40*1000*F43)^0.5 -> 1.2 | BU146: =F56*2/1000*(F40*1000*F43)^0.5 -> 1.7 | BV146: =F57*2/1000*(F40*1000*F43)^0.5 -> 1.7
BN147: Fy = | BO147: =IF(OR(OR(OR($D$38="T1",$D$38="T7"),$D$38="T3"),$D$38="T6"),SUM($BI$58:$BI$71),SUM(AD58:AD71)) ->  | BP147: =$J$42/$I$42*BO147 ->  | BR147: (POLE) | BS147: (ARM) | BT147: (DAVIT) | BU147: (EXTENSIONS)
BL149: SIDED | BM149: Mf (POLE) | BO149: Mf (ARM) | BQ149: SIDED | BR149: Cd
BM150: WIND | BN150: ICE | BO150: WIND | BP150: ICE
BL151: 8 | BM151: =($Q$76+$T$76)*0.414+$S$76 ->  | BN151: =($Q$76+$R$76+0.7/1.3*$T$76)*0.414+$J$42/1.3*$S$76 ->  | BO151: =0.414*BO146+BO147 ->  | BP151: =0.414*BP146+BP147 ->  | BQ151: 8 | BR151: 1.4 | BS151: 1.4 | BT151: 1.4 | BU151: 1.4 | BV151: 1.4
BL152: 12 | BM152: =MAX(($Q$76+$T$76)*0.268+$S$76,0.732*($Q$76+$T$76+$S$76)) ->  | BN152: =MAX(($Q$76+$R$76+$J$42/$I$42*$T$76)*0.268+$J$42/$I$42*$S$76,0.732*($Q$76+$R$76+$J$42/$I$42*$T$76+$J$42/$I$42*$S$76)) ->  | BO152: =MAX(0.268*BO146+BO147,0.732*(BO146+BO147)) ->  | BP152: =MAX(0.268*BP146+BP147,0.732*(BP146+BP147)) ->  | BQ152: 12 | BR152: =IF(BR146<=3.6,1.2,IF(BR146>=7.2,0.8,2.6/(BR146^0.6))) ->  | BS152: =IF(BS146<=3.6,1.2,IF(BS146>=7.2,0.8,2.6/(BS146^0.6))) ->  | BT152: =IF(BT146<=3.6,1.2,IF(BT146>=7.2,0.8,2.6/(BT146^0.6))) -> 1.2 | BU152: =IF(BU146<=3.6,1.2,IF(BU146>=7.2,0.8,2.6/(BU146^0.6))) -> 1.2 | BV152: =IF(BV146<=3.6,1.2,IF(BV146>=7.2,0.8,2.6/(BV146^0.6))) -> 1.2
BL153: 16 | BM153: =MAX(($Q$76+$T$76)*0.199+$S$76,0.567*($Q$76+$T$76)+0.848*$S$76) ->  | BN153: =MAX(($Q$76+$R$76+$J$42/$I$42*$T$76)*0.199+$J$42/$I$42*$S$76,0.567*($Q$76+$R$76+$J$42/$I$42*$T$76)+0.848*$J$42/$I$42*$S$76) ->  | BO153: =MAX(0.199*BO146+BO147,0.567*BO146+0.848*BO147) ->  | BP153: =MAX(0.199*BP146+BP147,0.567*BP146+0.848*BP147) ->  | BQ153: 16 | BR153: =IF(BR146<=3.6,1.1,IF(BR146>=7.2,0.55,0.55+(7.2-BR146)/6.5)) ->  | BS153: =IF(BS146<=3.6,1.1,IF(BS146>=7.2,0.55,0.55+(7.2-BS146)/6.5)) ->  | BT153: =IF(BT146<=3.6,1.1,IF(BT146>=7.2,0.55,0.55+(7.2-BT146)/6.5)) -> 1.1 | BU153: =IF(BU146<=3.6,1.1,IF(BU146>=7.2,0.55,0.55+(7.2-BU146)/6.5)) -> 1.1 | BV153: =IF(BV146<=3.6,1.1,IF(BV146>=7.2,0.55,0.55+(7.2-BV146)/6.5)) -> 1.1
BL154: ROUND | BM154: =(($Q$76+$T$76)^2+$S$76^2)^0.5 ->  | BN154: =(($Q$76+$R$76+$J$42/$I$42*$T$76)^2+($J$42/$I$42*$S$76)^2)^0.5 ->  | BO154: =(BO146^2+BO147^2)^0.5 ->  | BP154: =(BP146^2+BP147^2)^0.5 ->  | BQ154: ROUND | BR154: =IF(BR146<=3.6,1.2,IF(BR146>=7.2,0.5,6.42/(BR146^1.3))) ->  | BS154: =IF(BS146<=3.6,1.2,IF(BS146>=7.2,0.5,6.42/(BS146^1.3))) ->  | BT154: =IF(BT146<=3.6,1.2,IF(BT146>=7.2,0.5,6.42/(BT146^1.3))) -> 1.2 | BU154: =IF(BU146<=3.6,1.2,IF(BU146>=7.2,0.5,6.42/(BU146^1.3))) -> 1.2 | BV154: =IF(BV146<=3.6,1.2,IF(BV146>=7.2,0.5,6.42/(BV146^1.3))) -> 1.2
BM157: FLANGE CONNECTION
BM158: =================
BM159: WIND | BN159: Mx | BO159: My | BP159: V | BQ159: Tf | BR159: Vf | BS159: T | BT159: V | BV159: ICE | BW159: Mx | BX159: My | BY159: V | BZ159: Tf | CA159: Vf | CB159: T | CC159: V
BM160: FACTORED | BN160: =BO147 ->  | BO160: =BO146 ->  | BP160: =$I$41*SUM($W$58:$W$71)+$I$42*0.2*SUM($X$58:$X$71) ->  | BV160: FACTORED | BW160: =BP147 ->  | BX160: =BP146 ->  | BY160: =$I$41*SUM($W$58:$W$71)+$I$43*SUM($Y$58:$Y$71)+$J$42*0.2*SUM($X$58:$X$71) -> 
BM161: SERVICE | BN161: =BN160/$I$42 ->  | BO161: =SUM($Z58:$Z71)/$I41+0.2*$BN160/$I$42 ->  | BP161: =SUM($W$58:$W$71)+0.2*SUM($X$58:$X$71) -> 
BM162: 4 | BN162: =1/(4*0.707*$N92/2) -> 0.002922370159 | BO162: =1/(4*0.707*$N92/2) -> 0.002922370159 | BP162: 4 | BQ162: =(BN160*BN162+BO160*BO162)*1000 ->  | BR162: =BY160/BP162 ->  | BS162: =(BN161*BN162+BO161*BO162)*1000 ->  | BT162: =BP161/BP162 ->  | BV162: 4 | BW162: =1/(4*0.707*$N92/2) -> 0.002922370159 | BX162: =1/(4*0.707*$N92/2) -> 0.002922370159 | BY162: 4 | BZ162: =(BW160*BW162+BX160*BX162)*1000 ->  | CA162: =BP160/BY162 ->  | CB162: =(BW161*BW162+BX161*BX162)*1000 -> 0 | CC162: =BY161/BY162 -> 0
BM163: 6 | BN163: =1/(4*0.866*$N92/2) -> 0.002385814899 | BO163: =0.5/(4*(0.5)^2*($N92/2)+2*($N92/2)) -> 0.001377410468 | BP163: 6 | BQ163: =(BN160*BN163+BO160*BO163)*1000 ->  | BR163: =BY160/BP163 ->  | BS163: =(BN161*BN163+BO161*BO163)*1000 ->  | BT163: =BP161/BP163 ->  | BV163: 6 | BW163: =1/(4*0.866*$N92/2) -> 0.002385814899 | BX163: =0.5/(4*(0.5)^2*($N92/2)+2*($N92/2)) -> 0.001377410468 | BY163: 6 | BZ163: =(BW160*BW163+BX160*BX163)*1000 ->  | CA163: =BP160/BY163 ->  | CB163: =(BW161*BW163+BX161*BX163)*1000 -> 0 | CC163: =BY161/BY163 -> 0
BM164: 8 | BN164: =0.707/(4*(0.707)^2*$N92/2+2*($N92/2)) -> 0.001460964407 | BO164: =0.707/(4*(0.707)^2*$N92/2+2*($N92/2)) -> 0.001460964407 | BP164: 8 | BQ164: =(BN160*BN164+BO160*BO164)*1000 ->  | BR164: =BY160/BP164 ->  | BS164: =(BN161*BN164+BO$161*BO164)*1000 ->  | BT164: =BP161/BP164 ->  | BV164: 8 | BW164: =0.707/(4*(0.707)^2*$N92/2+2*($N92/2)) -> 0.001460964407 | BX164: =0.707/(4*(0.707)^2*$N92/2+2*($N92/2)) -> 0.001460964407 | BY164: 8 | BZ164: =(BW160*BW164+BX160*BX164)*1000 ->  | CA164: =BP160/BY164 ->  | CB164: =(BW161*BW164+BX$161*BX164)*1000 -> 0 | CC164: =BY161/BY164 -> 0
BN165: =1/(4*(0.707)^2*$N92/2+2*($N92/2)) -> 0.002066427733 | BO165: 0 | BP165: 8 | BQ165: =(BN160*BN165+BO$160*BO165)*1000 ->  | BR165: =BY160/BP165 ->  | BS165: =(BN161*BN165+BO161*BO165)*1000 ->  | BT165: =BP161/BP165 ->  | BW165: =1/(4*(0.707)^2*$N92/2+2*($N92/2)) -> 0.002066427733 | BX165: 0 | BY165: 8 | BZ165: =(BW160*BW165+BX$160*BX165)*1000 ->  | CA165: =BP160/BY165 ->  | CB165: =(BW161*BW165+BX161*BX165)*1000 -> 0 | CC165: =BY161/BY165 -> 0
BM166: 6-TYPE S | BN166: =1/(6*(325/2)) -> 0.001025641026 | BO166: =0.25/(250/2) -> 0.002 | BP166: 6 | BQ166: =(BN160*BN166+BO160*BO166)*1000 ->  | BR166: =BR163 ->  | BS166: =(BN161*BN166+BO161*BO166)*1000 ->  | BT166: =BT163 ->  | BV166: 6-TYPE S | BW166: =1/(6*(325/2)) -> 0.001025641026 | BX166: =0.25/(250/2) -> 0.002 | BY166: 6 | BZ166: =(BW160*BW166+BX160*BX166)*1000 ->  | CA166: =CA163 ->  | CB166: =(BW161*BW166+BX161*BX166)*1000 -> 0 | CC166: =CC163 -> 0
BM167: ANCHOR BOLT
BM168: ===========
BM169: WIND | BN169: Mx | BO169: My | BP169: V | BQ169: Tf | BR169: Vf | BV169: ICE | BW169: Mx | BX169: My | BY169: V | BZ169: Tf | CA169: Vf
BM170: FACTORED | BN170: =AB76 ->  | BO170: =Z76+AC76 ->  | BP170: =AD76*2/$N$81*1000+$L$76 ->  | BV170: FACTORED | BW170: =$J$42/$I$42*AB76 ->  | BX170: =Z76+AA76+$J$42/$I$42*AC76 ->  | BY170: =$J$42/$I$42*AD76*2/$N$81*1000+$L$76 -> 
BM171: SERVICE | BN171: =BN170/I42 ->  | BO171: =AC76/I42+Z76/I41 ->  | BP171: =BP170/I42 -> 
BM172: 4 | BN172: =1/(4*0.707*$N81/2) -> 0.002061847168 | BO172: =1/(4*0.707*$N81/2) -> 0.002061847168 | BP172: 4 | BQ172: =(BN170*BN172+BO170*BO172)*1000 ->  | BR172: =BP170/BP172 ->  | BV172: 4 | BW172: =1/(4*0.707*$N81/2) -> 0.002061847168 | BX172: =1/(4*0.707*$N81/2) -> 0.002061847168 | BY172: 4 | BZ172: =(BW170*BW172+BX170*BX172)*1000 ->  | CA172: =BY170/BY172 -> 
BM173: 6 | BN173: =1/(4*0.866*$N81/2) -> 0.001683286314 | BO173: =0.5*($N81/2)/(4*(0.5*($N81/2))^2+2*($N81/2)^2) -> 0.0009718172983 | BP173: 6 | BQ173: =(BN170*BN173+BO170*BO173)*1000 ->  | BR173: =BP170/BP173 ->  | BV173: 6 | BW173: =1/(4*0.866*$N81/2) -> 0.001683286314 | BX173: =0.5*($N81/2)/(4*(0.5*($N81/2))^2+2*($N81/2)^2) -> 0.0009718172983 | BY173: 6 | BZ173: =(BW170*BW173+BX170*BX173)*1000 ->  | CA173: =BY170/BY173 -> 
BM174: 8 | BN174: =0.707/(4*(0.707)^2*$N81/2+2*($N81/2)) -> 0.001030767891 | BO174: =0.707/(4*(0.707)^2*$N81/2+2*($N81/2)) -> 0.001030767891 | BP174: 8 | BQ174: =($BN$170*BN174+$BO$170*BO174)*1000 ->  | BR174: =BP170/BP174 ->  | BV174: 8 | BW174: =0.707/(4*(0.707)^2*$N81/2+2*($N81/2)) -> 0.001030767891 | BX174: =0.707/(4*(0.707)^2*$N81/2+2*($N81/2)) -> 0.001030767891 | BY174: 8 | BZ174: =($BN$170*BW174+$BO$170*BX174)*1000 ->  | CA174: =BY170/BY174 -> 
BN175: =1/(4*(0.707)^2*$N81/2+2*($N81/2)) -> 0.001457946097 | BO175: 0 | BP175: 8 | BQ175: =($BN$170*BN175+$BO$170*BO175)*1000 ->  | BR175: =BP170/BP175 ->  | BW175: =1/(4*(0.707)^2*$N81/2+2*($N81/2)) -> 0.001457946097 | BX175: 0 | BY175: 8 | BZ175: =($BN$170*BW175+$BO$170*BX175)*1000 ->  | CA175: =BY170/BY175 -> 
BM176: 12 | BN176: =(0.866*$N81/2)/(2*($N81/2)^2+4*(0.866*$N81/2)^2+4*(0.5*$N81/2)^2) -> 0.0008416184678 | BO176: =(0.5*$N81/2)/(2*($N81/2)^2+4*(0.866*$N81/2)^2+4*(0.5*$N81/2)^2) -> 0.0004859229029 | BP176: 12 | BQ176: =(BN170*BN176+BO170*BO176)*1000 ->  | BR176: =BP170/BP176 ->  | BV176: 12 | BW176: =(0.866*$N81/2)/(2*($N81/2)^2+4*(0.866*$N81/2)^2+4*(0.5*$N81/2)^2) -> 0.0008416184678 | BX176: =(0.5*$N81/2)/(2*($N81/2)^2+4*(0.866*$N81/2)^2+4*(0.5*$N81/2)^2) -> 0.0004859229029 | BY176: 12 | BZ176: =(BW170*BW176+BX170*BX176)*1000 ->  | CA176: =BY170/BY176 -> 

Sheet USER GUIDE
A1: POLE CAPACITY PROGRAM USER GUIDE | K1: [EDITED]
A3: REFERENCES
A4: - | B4: Standard Specifications for Highway Construction, BCMoT
A5: - | B5: Electrical and Signing Material Standards, BCMoT
A7: GENERAL
A8: - | B8: Press "Control A" to clear all input cells
A9: - | B9: Use UPPERCASE only (lowercase will induce wrong results)
A10: - | B10: Enter general information (optional)
A12: WIND PRESSURE
A13: - | B13: Enter wind pressure
A14: - | B14: Wind pressure tables for various areas of the Province may be found in
B15: the Moth Electrical and Traffic Engineering Manual or the Canadian Highway Bridge Design Code.
B16: CAN/CSA-S6-06
A17: - | B17: If the location is not listed on the tables then use the nearest location listed
A18: - | B18: Use 25 year return period for signal poles and 50 year return period for sign poles
A20: POLES
A21: - | B21: Enter the pole part in column to the left
A22: - | B22: Pole parts are detailed in the current Standard Specifications for Highway Construction
A24: SIGNAL ARMS & SIGN ARMS
A25: - | B25: Enter the arm parts in column to the left
A26: - | B26: Arm parts are detailed in the current Standard Specifications for Highway Construction
A28: SIGNAL HEADS
A29: - | B29: Enter the number of each type of signal head in the column to the left
A30: - | B30: Enter the span of each signal head (from center of pole to center of signal head in meters) in the
B31: column to the right
A33: SIGNS
A34: - | B34: Enter "1" on left column for each sign selected (including street name sign)
A35: - | B35: Enter the sign width, height, span and number of sign luminaires for each sign. "Sign spans" are
B36: measured from the center of the sign to the center of the pole shaft in meters
A38: POLE CAPACITY
A39: - | B39: The program will calculate the combination force ratio for each part of pole. All parts must be less
B40: than 1.0 or the pole is not acceptable
A42: DEFLECTIONS
A43: - | B43: The program will calculate the deflections at the top of the pole and also the end of the arm with
B44: and without any signals or signs for checking purposes. Deflection greater than 600 is not acceptable
A46: NOTES
A47: - | B47: Print out a hard copy backup for each pole used for the project file
A48: - | B48: If a pole configuration or special circumstances not covered under this program, or
B49: if you have any questions or suggestions, please contact Alireza Ahmadnia, Ministry of Transportation,
B50: South Coast Region, Tel: (604) 323-3486, or Email: Alireza.Ahmadnia@gov.bc.ca

Sheet PROGRAM ASSUMPTIONS
A1: PROGRAM ASSUMPTIONS
A3: DESIGN CODE
A4: - | B4: Canadian Highway Bridge Design Code, CAN/CSA-S6-06
A5: - | B5: Ontario Highway Bridge Design Code, 3rd edition (1991)
A6: - | B6: Standard Specifications for Structural Supports for Highway Signs, Luminaires and Traffic Signals,
B7: AASHTO (1994)
A9: DESIGN PARAMETERS / ASSUMPTIONS
A10: - | B10: Wind pressure data used are summarized from page 81 and 82 of CHBDC
B11: 25 years return periods for traffic signal structures
B12: 50 years return periods for sign structures
A13: - | B13: Exposure coefficients as per cl. 3.10.1.3 of CHBDC
A14: - | B14: Gust effect coefficient = 2.5 as per cl. 3.10.1.2 of CHBDC
A15: - | B15: Drag coefficients as per table A3.2.2 of CHBDC
B16: 1.4 for octagonal sections with sharp corners
B17: 1.2 for signs and signals
A18: - | B18: Load cases for wind are 100% normal with 20% transverse or 60% normal with 30% transverse as
B19: per table A3.2.3 of CHBDC
A20: - | B20: Load combinations for ultimate limit state are 1.0 for dead load with 1.3 for wind load as per
B21: table A3.2.1 of CHBDC
A22: - | B22: Combined axial compression, flexure and torsion interaction as per cl. 10-24.3 OHBDC
A23: - | B23: Plastic moment coefficients, Kp are taken from table 1.3.1B(2) AASHTO
A24: - | B24: Maximum stresses in tubular shapes are taken from table 1.3.1B(3) AASHTO
A25: - | B25: No deduction on wind load area on the arm regardless of area covered by signals or signs
A26: - | B26: Anchor bolts are designed to withstand 120% of the applied loads
A28: DESIGN DATA
A30: SIGNALS
A31: TYPE | D31: AREA (m^2) | F31: WEIGHT (kn)
A32: (200-200-200) | D32: 0.55 | F32: 0.12
A33: (300-200-200) | D33: 0.78 | F33: 0.14
A34: (300-200-200-300) | D34: 1.01 | F34: 0.2
A35: (300-300-300) | D35: 0.9 | F35: 0.18
A36: (300-300-300-300) | D36: 1.14 | F36: 0.24
A38: SIGNS
A39: - | B39: All signs are assumed to have a unit weight of 0.45 kN/m^2 including mounting hardware
A41: LUMINAIRES
A42: - | B42: All pole mounted luminaires to have area = 0.25m^2, weight = 0.21kn, drag coefficient = 0.70
A43: - | B43: All sign mounted luminaires to have area = 0.14m^2, weight = 0.35kn, drag coefficient = 1.20
A45: ANCHOR BOLTS
D46: Factored Tensile | F46: Factored Shear
A47: TYPE | D47: Resistance, Tr (kn) | F47: Resistance, Vr (kn)
A48: 1" - 4140 | D48: 220 | F48: 123
A49: 1" Dywidag | B49: if you have any questions or suggestions, please contact Alireza Ahmadnia, Ministry of Transportation, | D49: 313 | F49: 175
A50: 1 1/2" - 4140 | D50: 495 | F50: 277
A53: JULY 2012 PROGRAM REVIEW
A54: The following changes have been made during the July 2012 Prgram Review by Tian Wang.
A56: Deflection
A57: - | B57: Radius of each section has been modified to meaure to the center of member wall.
B58: This change is made to conform to the formulae outlined in the 2001 edition of AASHTO
B59: Std. Spec for Structural Supports for Hwy Signs, Luminaires, and Traffic Signals
A60: - | B60: If-statements are added to reflect the difference in structural properties (I, A, S, Z) between members
B61: of different cross sectional shapes (8, 12, or 16 sdies)
A62: - | B62: Comments and explanation are added to the DEFLECTION tab to guide the next program review
A63: - | B63: Deflection calculations, especically for S-type pole, have been confirmed by a model using S-Frame
A65: Pole Capacity
A66: - | B66: Phi factors for bolts are updated to conform to S6-06 and S16-09
A67: - | B67: Bolt capacities in shear and tension are increased due to higher ultimate strength and higher phi
B68: factor as specified in S16-09
A69: - | B69: The rectangular bolt pattern of the S-type pole has been reviewed and corrected to output the correct
B70: capcity in shear and tension.
A71: - | B71: Confirmed that compact and non-compact sectional properties are accounted for.

Sheet POLES DATA (hidden)
A1: 1 | B1: 2 | C1: 3 | D1: 4 | E1: 5 | F1: 6 | G1: 7 | H1: 8 | I1: 9 | J1: 10 | K1: 11 | L1: 12 | M1: 13
A2: TABLE 1: COMPONENTS SELECTION - UPDATED NOVEMBER 9, 2009 | K2: Reference Drawings - SP635
A3: TYPES | B3: Luminaire Arm | C3: Luminaire Arm Extension | D3: Signal Arm | E3: Signal Arm Extension | F3: Signal Arm Adapter | G3: Sign Arm | H3: Sign Arm Extension | I3: Special Signal Arm | J3: Notes | K3: Signal Pole | L3: Sign Pole | M3: Condition
A4: T1 | B4: 2A, 2C | C4: 2B | D4: 3C, 3A, 3D, 3E | E4: (N/A) | F4: (N/A) | G4: L, LB | H4: (N/A) | I4: (INVALID EXTENSION) | J4: 6.5 POLE or 8.5 POLE; 2B for 6.5 POLE only; Signal Arm: 3F-300 to 3000mm max; L max 1200mm | K4: 2.1.1 | L4: 3.1.1
A5: T2 | B5: 2A, 2C | C5: (N/A) | D5: (N/A) | E5: (N/A) | F5: (N/A) | G5: (N/A) | H5: (N/A) | I5: (INVALID EXTENSION) | J5: (N/A) | K5: 2.1.3 / 2.1.5 | L5: N/A
A6: T3 | B6: (N/A) | C6: (N/A) | D6: 3C, 3A, 3D, 3E | E6: (N/A) | F6: (N/A) | G6: L, LB | H6: (N/A) | I6: (INVALID EXTENSION) | J6: L max 1200mm | K6: 2.1.7 | L6: 3.1.3
A7: T6 | B7: (N/A) | C7: (N/A) | D7: 3C, 3A, 3D, 3E | E7: 7A, 7B, 7C, 7D | F7: (N/A) | G7: L, LB | H7: 7A, 7B, 7C | I7: (INVALID EXTENSION) | J7: L max 1200mm | K7: 2.1.11 | L7: 3.1.6
A8: T7 | B8: 2A, 2C | C8: 7A, 7B, 7D | D8: 3C, 3A, 3D, 3E | E8: 7A, 7B, 7C, 7D | F8: (N/A) | G8: L, LB | H8: 7A, 7B, 7C | I8: (INVALID EXTENSION) | J8: L max 1200mm | K8: 2.1.13 | L8: 3.1.8
A9: L | B9: 2A, 2C | C9: 0.25L, 1.75L, 4.25L | D9: 3L - 11L | E9: 3LE | F9: (N/A) | G9: L, LB / L1, L2 | H9: LS, 3LS, 4LS, 5LS | I9: 9L - 11L | J9: Input sign arm & arm extension length; L max 1200mm | K9: 2.2.1 | L9: 3.1.10 | M9: L, LB
A10: M | B10: 2A, 2C | C10: 0.25M, 1.75M, 4.25M | D10: 3L - 11L | E10: 6M | F10: FA | G10: M1, M2 | H10: (N/A) | I10: 6L - 11L | J10: Sign Arm: 3000 to 11000mm max | K10: 2.2.4 | L10: 3.1.13
A11: H | B11: 2A, 2C | C11: 1.13H, 3.63H | D11: (N/A) | E11: (N/A) | F11: (N/A) | G11: H1, H2 | H11: (N/A) | I11: (INVALID EXTENSION) | J11: Sign Arm: H1-3000 to 8000mm max; H2-3000 to 11000mm max | K11: N/A | L11: 3.1.16
A12: S | B12: 2A, 2C | C12: 0.25L, 1.75L | D12: 5S - 11S | E12: (N/A) | F12: (N/A) | G12: L, LB | H12: SS, 3SS, 4SS, 5SS | I12: (INVALID EXTENSION) | J12: Input sign arm & arm extension length; L max 1200mm | K12: 2.2.7 | L12: 3.1.19
A15: TABLE 2: COMPONENTS PROPERTIES (POLE ARMS)
A16: Sections | B16: Type | C16: Lengths (mm) - horizontal | D16: Height (mm) - vertical | E16: Height of Arm (mm) | F16: Mass (kg) | G16: # of sides | H16: Plate Thk. (mm) | I16: Dia, Max (mm) | J16: Dia, Min (mm)
A17: 3C | B17: T1 | C17: 1800 | F17: 18 | G17: 8 | H17: 3 | I17: 120 | J17: 67
A18: 3A | B18: T1 | C18: 3000 | F18: 27 | G18: 8 | H18: 3 | I18: 120 | J18: 67
A19: 3D | B19: T1 | C19: 4300 | F19: 54 | G19: 8 | H19: 4.8 | I19: 120 | J19: 67
A20: 3E | B20: T1 | C20: 5500 | F20: 68 | G20: 8 | H20: 4.8 | I20: 120 | J20: 67
A21: 2A | B21: T1 | C21: 2500 | D21: 2500 | F21: 35 | G21: 8 | H21: 3 | I21: 120 | J21: 67
A22: 2B | B22: T1 | D22: 2000 | F22: 35 | G22: 8 | H22: 4.8 | I22: 120 | J22: 120
A23: 2C | B23: T1 | C23: 5000 | D23: 2500 | F23: 65 | G23: 8 | H23: 3 | I23: 120 | J23: 67
A24: 7A | B24: T6 | C24: 250 | D24: 250 | F24: 20 | G24: 8 | H24: 4.8 | I24: 170 | J24: 120
A25: 7B | B25: T6 | C25: 1800 | D25: 1800 | F25: 69 | G25: 8 | H25: 8 | I25: 170 | J25: 120
A26: 7C | B26: T6 | C26: 2500 | F26: 86 | G26: 8 | H26: 8 | I26: 170 | J26: 120
A27: 7D | B27: T6 | C27: 4800 | D27: 4800 | F27: 154 | G27: 8 | H27: 8 | I27: 170 | J27: 120
A28: H1 | B28: H | C28: (INPUT) | F28: (INPUT) | G28: 12 | H28: 6.4 | I28: 340 | J28: 340
A29: H2 | B29: H | C29: (INPUT) | F29: (INPUT) | G29: 12 | H29: 8 | I29: 340 | J29: 340
A30: 1.13H | B30: H | D30: 1130 | F30: 36 | G30: 12 | H30: 3 | I30: 350 | J30: 120
A31: 3.63H | B31: H | D31: 3630 | F31: 118 | G31: 12 | H31: 4.8 | I31: 350 | J31: 120
A32: 3L | B32: L | C32: 3000 | F32: 97 | G32: 8 | H32: 4.8 | I32: 220 | J32: 120
A33: 4L | B33: L | C33: 4000 | F33: 118 | G33: 8 | H33: 4.8 | I33: 220 | J33: 120
A34: 5L | B34: L | C34: 5000 | F34: 173 | G34: 8 | H34: 6.4 | I34: 220 | J34: 120
A35: 6L | B35: L | C35: 6000 | F35: 201 | G35: 8 | H35: 6.4 | I35: 220 | J35: 120
A36: 7L | B36: L | C36: 7000 | F36: 229 | G36: 8 | H36: 6.4 | I36: 220 | J36: 120
A37: 8L | B37: L | C37: 8000 | F37: 259 | G37: 8 | H37: 6.4 | I37: 220 | J37: 120
A38: 9L | B38: L | C38: 9000 | F38: 284 | G38: 8 | H38: 6.4 | I38: 220 | J38: 120
A39: 10L | B39: L | C39: 10000 | F39: 377 | G39: 8 | H39: 8 | I39: 220 | J39: 120
A40: 11L | B40: L | C40: 11000 | F40: 410 | G40: 8 | H40: 8 | I40: 220 | J40: 120
A41: 3LE | B41: L | C41: 3000 | F41: 114 | G41: 8 | H41: 8 | I41: 220 | J41: 220
A42: L | B42: L SIGN ARM | C42: (INPUT) | F42: (INPUT) | G42: 8 | H42: 4.8 | I42: 120 | J42: 120
A43: 1.2L | B43: L | C43: 1200 | F43: 24 | G43: 8 | H43: 4.8 | I43: 120 | J43: 120
A44: L1 | B44: L | C44: (INPUT) | F44: (INPUT) | G44: 8 | H44: 6.4 | I44: 220 | J44: 220
A45: L2 | B45: L | C45: (INPUT) | F45: (INPUT) | G45: 8 | H45: 8 | I45: 220 | J45: 220
A46: LB | B46: L | C46: 1200 | F46: 100 | G46: 8
A47: LS | B47: L | C47: (INPUT) | F47: (INPUT) | G47: 8 | H47: 8 | I47: 220 | J47: 120
A48: 3LS | B48: L | C48: 3000 | F48: 135 | G48: 8 | H48: 8 | I48: 220 | J48: 120
A49: 4LS | B49: L | C49: 4000 | F49: 180 | G49: 8 | H49: 8 | I49: 220 | J49: 120
A50: 5LS | B50: L | C50: 5000 | F50: 225 | G50: 8 | H50: 8 | I50: 220 | J50: 120
A51: 0.25L | B51: L | D51: 250 | F51: 10 | G51: 8 | H51: 3 | I51: 220 | J51: 120
A52: 1.75L | B52: L | D52: 1750 | F52: 29 | G52: 8 | H52: 3 | I52: 220 | J52: 120
A53: 4.25L | B53: L | D53: 4250 | F53: 82 | G53: 8 | H53: 4.8 | I53: 220 | J53: 120
A54: 6M | B54: M | C54: 6000 | F54: 360 | G54: 8 | H54: 8 | I54: 275 | J54: 220
A55: M1 | B55: M | C55: (INPUT) | F55: (INPUT) | G55: 8 | H55: 6.4 | I55: 275 | J55: 275
A56: M2 | B56: M | C56: (INPUT) | F56: (INPUT) | G56: 8 | H56: 8 | I56: 275 | J56: 275
A57: 0.25M | B57: M | D57: 250 | F57: 14 | G57: 12 | H57: 3 | I57: 275 | J57: 120
A58: 1.75M | B58: M | D58: 1750 | F58: 38 | G58: 12 | H58: 3 | I58: 275 | J58: 120
A59: 4.25M | B59: M | D59: 4250 | F59: 115 | G59: 12 | H59: 4.8 | I59: 275 | J59: 120
A60: FA | B60: M | C60: 300 | F60: 75 | G60: 8 | H60: 8 | I60: 275 | J60: 220
A61: SS | B61: S | C61: (INPUT) | F61: (INPUT) | G61: 8 | H61: 8 | I61: 220 | J61: 120
A62: 3SS | B62: S | C62: 3000 | F62: 135 | G62: 8 | H62: 8 | I62: 220 | J62: 120
A63: 4SS | B63: S | C63: 4000 | F63: 180 | G63: 8 | H63: 8 | I63: 220 | J63: 120
A64: 5SS | B64: S | C64: 5000 | F64: 225 | G64: 8 | H64: 8 | I64: 220 | J64: 120
A65: 5S | B65: S | C65: 5000 | F65: 104 | G65: 8 | H65: 3 | I65: 220 | J65: 120
A66: 5.5S | B66: S | C66: 5500 | F66: 111 | G66: 8 | H66: 3 | I66: 220 | J66: 120
A67: 6S | B67: S | C67: 6000 | F67: 118 | G67: 8 | H67: 3 | I67: 220 | J67: 120
A68: 6.5S | B68: S | C68: 6500 | F68: 125 | G68: 8 | H68: 3 | I68: 220 | J68: 120
A69: 7S | B69: S | C69: 7000 | F69: 132 | G69: 8 | H69: 3 | I69: 220 | J69: 120
A70: 7.5S | B70: S | C70: 7500 | F70: 192 | G70: 8 | H70: 4.76 | I70: 220 | J70: 120
A71: 8S | B71: S | C71: 8000 | F71: 204 | G71: 8 | H71: 4.76 | I71: 220 | J71: 120
A72: 8.5S | B72: S | C72: 8500 | F72: 214 | G72: 8 | H72: 4.76 | I72: 220 | J72: 120
A73: 9S | B73: S | C73: 9000 | F73: 224 | G73: 8 | H73: 4.76 | I73: 220 | J73: 120
A74: 9.5S | B74: S | C74: 9500 | F74: 292 | G74: 8 | H74: 6.35 | I74: 220 | J74: 120
A75: 10S | B75: S | C75: 10000 | F75: 306 | G75: 8 | H75: 6.35 | I75: 220 | J75: 120
A76: 10.5S | B76: S | C76: 10500 | F76: 320 | G76: 8 | H76: 6.35 | I76: 220 | J76: 120
A77: 11S | B77: S | C77: 11000 | F77: 340 | G77: 8 | H77: 6.35 | I77: 220 | J77: 120
A80: TABLE 3. Pole Shaft Properties Table | D80: Height of Shaft | E80: Height of Arm
A81: T1 | B81: T1 POLE 8.5M | C81: 2500 | D81: 6500 | E81: 6900 | F81: 209 | G81: 8 | H81: 4.8 | I81: 200 | J81: 120
A82: T1 | B82: T1 POLE 6.5M | C82: 2500 | D82: 6500 | E82: 6900 | F82: 195 | G82: 8 | H82: 4.8 | I82: 200 | J82: 120
A83: T3 | B83: T3 POLE | C83: 2500 | D83: 6900 | E83: 6900 | F83: 186 | G83: 8 | H83: 4.8 | I83: 200 | J83: 120
A84: T6 | B84: T6 POLE | C84: 2500 | D84: 6900 | E84: 6900 | F84: 412 | G84: 8 | H84: 8 | I84: 254 | J84: 170
A85: T7 | B85: T7 POLE | C85: 2500 | D85: 6200 | E85: 6900 | F85: 465 | G85: 8 | H85: 8 | I85: 254 | J85: 170
A86: H | B86: H POLE | D86: 7370 | E86: 7080 | F86: 870 | G86: 12 | H86: 8 | I86: 440 | J86: 350
A87: L | B87: L POLE | D87: 6750 | E87: 6538 | F87: 442 | G87: 8 | H87: 8 | I87: 270 | J87: 220
A88: M | B88: M POLE | D88: 6750 | E88: 6480 | F88: 565 | G88: 12 | H88: 8 | I88: 325 | J88: 275
A89: S | B89: S POLE | D89: 6750 | E89: 6541 | F89: 385 | G89: 8 | H89: 8 | I89: 250 | J89: 220
A92: TABLE 4. POLE BASE PLATE AND FLANGE PLATE - BOLT CIRCLE DIMENSIONS
A93: Sections | B93: Base Plate Type | C93: Bolt Circle Diameter (mm) | D93: # of Base Plate Bolts | E93: Bolts Size (in.) | F93: Flange Plate Type | G93: Flange Bolt Circle Diameter | H93: Flange Bolts Size (in.)
A94: T1 | C94: 280 | D94: 4 | E94: 1 | F94: Type 1 | G94: 170 | H94: 5/8
A95: T3 | C95: 280 | D95: 4 | E95: 1 | F95: Type 1 | G95: 170 | H95: 5/8
A96: T6 | C96: 343 | D96: 4 | E96: 1" Dywidag | F96: Type 8 | G96: 242 | H96: 1
A97: T7 | C97: 343 | D97: 4 | E97: 1" Dywidag | F97: Type 8 | G97: 242 | H97: 1
A98: H | C98: 575 | D98: 8 | E98: 1.5 | F98: Type 6 | G98: 460 | H98: 1.5
A99: L | C99: 390 | D99: 4 | E99: 1.5 | F99: Type 2 | G99: 345 | H99: 1.5
A100: M | C100: 450 | D100: 6 | E100: 1.5 | F100: Type 4 | G100: 400 | H100: 1.5
A101: S | C101: 343 | D101: 4 | E101: 1" Dywidag | F101: Type S | G101: bolts in rows, not bolt circle | H101: 1

Sheet DEFLECTION (hidden)
A1: APRIL 1995 | C1: DEFLECT1.XLW | D1: By P. Wong
A3: This spreadsheet approximates the tip vertical deflection and | G3: Calculation Assumptions:
A4: joint horizontal deflection of an inverted-L-shaped sign pole
A5: with an octagonal tube cross section. | G5: Each member is divided into equal pieces with uniform sectional properties approximate a tapered post. Note that the largest cross-section is taken for each piece.
G7: Table 1: Horizontal Deflections at joint.
A9: Material | G9: Table 2: Vertical Deflections at tip of cantilever
A10: E | B10: modulus of elasticity | C10: 200000 | D10: MPa
A11: G | B11: shear modulus | C11: 77000 | D11: MPa | G11: Each table is organized into two parts.
A12: u | B12: unit weight | C12: 7.7e-05 | D12: N/mm^3 | G12: First part calculates deflection caused by each of the 8 types of external weights (5 types of signal heads + 3 types of signage)
G13: Second Part calculates deflection cuased by the self weight of the post and cantilever
A14: ========= GEOMETRY AND LOADING =========
A15: CANTILEVERED POLE | G15: Total deflections presented in "POLE CAPACITY PROGRAM" sums the deflections from self weight and external loads.
A16: RCG | B16: greater radius | C16: ='POLE CAPACITY PROGRAM'!$F$71 ->  | D16: mm
A17: RCS | B17: smaller radius | C17: ='POLE CAPACITY PROGRAM'!$G$71 ->  | D17: mm | G17: Area and Moment of Intertia formulae taken from the design aid sections of AASHTO Standard Specifications for Structural Supports for Highway Signs, Luminaires, and Traffic Signals.
A18: t | B18: thickness | C18: ='POLE CAPACITY PROGRAM'!$H$71 -> 0 | D18: mm
A19: Lc | B19: total length of pole | C19: ='POLE CAPACITY PROGRAM'!$E$71*1000 -> 0 | D19: mm | G19: Spread sheet takes into account of the cross-sectional differences between S and L type (8 sides), to M and H type. (12 sides).
A20: ShpC | B20: Number of sides in cross-section | C20: ='POLE CAPACITY PROGRAM'!$F$46 -> 8 | D20: sides
G21: Analysis uses moment area method summing the deflections of each piece
A22: POST
A23: RPG | B23: greater radius | C23: ='POLE CAPACITY PROGRAM'!$F$74 ->  | D23: mm | G23: Linkage in formulae established to include S type poles.
A24: RPS | B24: smaller radius | C24: ='POLE CAPACITY PROGRAM'!$G$74 ->  | D24: mm
A25: tp | B25: thickness | C25: ='POLE CAPACITY PROGRAM'!$H$74 ->  | D25: mm | G25: Bolt capacities updated to comform with S16-01
A26: Lp | B26: height of post (to center of joint) | C26: ='POLE CAPACITY PROGRAM'!$E$74*1000 ->  | D26: mm
A27: ShpP | B27: Number of sides in cross-section | C27: ='POLE CAPACITY PROGRAM'!$F$45 -> 8 | D27: sides | G27: Factored shear and tension loads adjusted for flange bolts on S-Type pole to reflect its rectangular bolt pattern
A29: LOADS (Dead load is automatically calculated)
A30: WW1 | B30: point load 1 | C30: ='POLE CAPACITY PROGRAM'!$K$58*1000 -> 0 | D30: N
A31: Ls1 | B31: length from joint to load 1 | C31: ='POLE CAPACITY PROGRAM'!$N$58*1000 -> 0 | D31: mm
A32: WW2 | B32: point load 2 | C32: ='POLE CAPACITY PROGRAM'!$K$59*1000 -> 0 | D32: N
A33: Ls2 | B33: length from joint to load 2 | C33: ='POLE CAPACITY PROGRAM'!$N$59*1000 -> 0 | D33: mm
A34: WW3 | B34: point load 3 | C34: ='POLE CAPACITY PROGRAM'!$K$60*1000 -> 0 | D34: N
A35: Ls3 | B35: length from joint to load 3 | C35: ='POLE CAPACITY PROGRAM'!$N$60*1000 -> 0 | D35: mm
A36: WW4 | B36: point load 4 | C36: ='POLE CAPACITY PROGRAM'!$K$61*1000 -> 0 | D36: N
A37: Ls4 | B37: length from joint to load 4 | C37: ='POLE CAPACITY PROGRAM'!$N$61*1000 -> 0 | D37: mm
A38: WW5 | B38: point load 5 | C38: ='POLE CAPACITY PROGRAM'!$K$62*1000 -> 0 | D38: N
A39: Ls5 | B39: length from joint to load 5 | C39: ='POLE CAPACITY PROGRAM'!$N$62*1000 -> 0 | D39: mm
A40: WW6 | B40: point load 6 | C40: ='POLE CAPACITY PROGRAM'!$K$65*1000+'POLE CAPACITY PROGRAM'!$K$68*1000 -> 0 | D40: N
A41: Ls6 | B41: length from joint to load 6 | C41: ='POLE CAPACITY PROGRAM'!$N$65*1000 -> 0 | D41: mm
A42: WW7 | B42: point load 7 | C42: ='POLE CAPACITY PROGRAM'!$K$66*1000+'POLE CAPACITY PROGRAM'!$K$69*1000 -> 0 | D42: N
A43: Ls7 | B43: length from joint to load 7 | C43: ='POLE CAPACITY PROGRAM'!$N$66*1000 -> 0 | D43: mm
A44: WW8 | B44: point load 8 | C44: ='POLE CAPACITY PROGRAM'!$K$67*1000+'POLE CAPACITY PROGRAM'!$K$70*1000 -> 0 | D44: N
A45: Ls8 | B45: length from joint to load 8 | C45: ='POLE CAPACITY PROGRAM'!$N$67*1000 -> 0 | D45: mm
A47: ========= DEFLECTIONS =========
A49: HDL | B49: joint horiz. due to Dead Load | C49: =$BB$87+$BG$82 ->  | D49: mm
A50: VDL | B50: tip vert. deflect due to Dead Load | C50: =$EE$109+$AY$87+$C$19*TAN($BA$90) ->  | D50: mm
A51: H1H | B51: joint horiz. due to load 1 | C51: =Q89 ->  | D51: mm
A52: VV1 | B52: tip vertical due to load 1 | C52: =P90+$C$19*TAN(R90)+BS107 ->  | D52: mm
A53: H2H | B53: joint horiz. due to load 2 | C53: =U89 ->  | D53: mm
A54: VV2 | B54: tip vertical due to load 2 | C54: =T90+$C$19*TAN(V90)+BZ107 ->  | D54: mm
A55: H3H | B55: joint horiz. due to load 3 | C55: =Y89 ->  | D55: mm
A56: VV3 | B56: tip vertical due to load 3 | C56: =X90+$C$19*TAN(Z90)+CG107 ->  | D56: mm
A57: H4H | B57: joint horiz. due to load 4 | C57: =AC89 ->  | D57: mm
A58: VV4 | B58: tip vertical due to load 4 | C58: =AB90+$C$19*TAN(AD90)+CN107 ->  | D58: mm
A59: H5H | B59: joint horiz. due to load 5 | C59: =AG89 ->  | D59: mm
A60: VV5 | B60: tip vertical due to load 5 | C60: =AF90+$C$19*TAN(AH90)+CU107 ->  | D60: mm
A61: H6H | B61: joint horiz. due to load 6 | C61: =AK89 ->  | D61: mm
A62: VV6 | B62: tip vertical due to load 6 | C62: =AJ90+$C$19*TAN(AL90)+DB107 ->  | D62: mm
A63: H7H | B63: joint horiz. due to load 7 | C63: =AO89 ->  | D63: mm
A64: VV7 | B64: tip vertical due to load 7 | C64: =AN90+$C$19*TAN(AP90)+DI107 ->  | D64: mm
A65: H8H | B65: joint horiz. due to load 8 | C65: =AS89 ->  | D65: mm
A66: VV8 | B66: tip vertical due to load 8 | C66: =AR90+$C$19*TAN(AT90)+DP107 ->  | D66: mm
A69: TOT_H | B69: TOTAL JOINT HORIZ. DEFLECTION | C69: =SUM(C49,C51,C53,C55,C57,C59,C61,C63,C65) ->  | D69: mm
A71: TOT_V | B71: TOTAL TIP VERTICAL DEFLECTION | C71: =SUM(C50,C52,C54,C56,C58,C60,C62,VV7_,VV8_) ->  | D71: mm
A74: TABLE1_1 >>>>>>>> | K74: TABLE1 | Q74: >>>>>>> | Y74: >>>>>>> | AF74: >>>>>>>> | AL74: >>>>>>> | AR74: >>>>>>>> | AY74: >>>>>>> | BA74: >>>>>>>
K76: TAPERING POST
O77: | | P77: LOAD 1 | S77: | | T77: LOAD 2 | W77: | | X77: LOAD 3 | AA77: | | AB77: LOAD 4 | AE77: | | AF77: LOAD 5 | AI77: | | AJ77: LOAD 6 | AM77: | | AN77: LOAD 7 | AQ77: | | AR77: LOAD 8 | AU77: | | AV77: DEAD LOAD
K78: X | L78: ro | M78: A | N78: I | O78: | | P78: d_down | Q78: d_M | R78: angle_M | S78: | | T78: d_down | U78: d_M | V78: angle_M | W78: | | X78: d_down | Y78: d_M | Z78: angle_M | AA78: | | AB78: d_down | AC78: d_M | AD78: angle_M | AE78: | | AF78: d_down | AG78: d_M | AH78: angle_M | AI78: | | AJ78: d_down | AK78: d_M | AL78: angle_M | AM78: | | AN78: d_down | AO78: d_M | AP78: angle_M | AQ78: | | AR78: d_down | AS78: d_M | AT78: angle_M | AU78: | | AV78: wip | AW78: d_w | AX78: d_P | AY78: jt down | AZ78: d_M | BA78: angle_M | BB78: delta | BD78: P-delta | BE78: d_P-delta | BF78: angle
K79: mm | L79: mm | M79: mm^2 | N79: mm^4 | O79: | | P79: mm | Q79: mm | R79: rad | S79: | | T79: mm | U79: mm | V79: rad | W79: | | X79: mm | Y79: mm | Z79: rad | AA79: | | AB79: mm | AC79: mm | AD79: rad | AE79: | | AF79: mm | AG79: mm | AH79: rad | AI79: | | AJ79: mm | AK79: mm | AL79: rad | AM79: | | AN79: mm | AO79: mm | AP79: rad | AQ79: | | AR79: mm | AS79: mm | AT79: rad | AU79: | | AV79: N | AW79: mm | AX79: mm | AY79: mm | AZ79: mm | BA79: rad | BB79: mm | BD79: Nmm | BE79: mm | BF79: rad | BI79: Table2
K80: 0 | L80: =($C$23-($C$23-$C$24)/$C$26*K80)-($C$25/2) ->  | M80: =IF($C$27=8,6.63*$L80*$C$25,6.43*$L80*$C$25) ->  | N80: =IF($C$27=8,3.5*$L80^3*$C$25,3.29*$L80^3*$C$25) ->  | O80: | | S80: | | W80: | | AA80: | | AE80: | | AI80: | | AM80: | | AQ80: | | AU80: | | BI80: Below!!
K81: =LP/14 ->  | L81: =($C$23-($C$23-$C$24)/$C$26*K81)-($C$25/2) ->  | M81: =IF($C$27=8,6.63*$L81*$C$25,6.43*$L81*$C$25) ->  | N81: =IF($C$27=8,3.5*$L81^3*$C$25,3.29*$L81^3*$C$25) ->  | O81: | | P81: =$C$30*$C$26/7/($M81*$C$10) ->  | Q81: =$C$30*$C$31*($C$26/7)^2/(2*$C$10*$N81) ->  | R81: =$C$30*$C$31*$C$26/7/($C$10*$N81) ->  | S81: | | T81: =$C$32*$C$26/7/($M81*$C$10) ->  | U81: =$C$32*$C$33*($C$26/7)^2/(2*$C$10*$N81) ->  | V81: =$C$32*$C$33*$C$26/7/($C$10*$N81) ->  | W81: | | X81: =$C$34*$C$26/7/($M81*$C$10) ->  | Y81: =$C$34*$C$35*($C$26/7)^2/(2*$C$10*$N81) ->  | Z81: =$C$34*$C$35*$C$26/7/($C$10*$N81) ->  | AA81: | | AB81: =$C$36*$C$26/7/($M81*$C$10) ->  | AC81: =$C$36*$C$37*($C$26/7)^2/(2*$C$10*$N81) ->  | AD81: =$C$36*$C$37*$C$26/7/($C$10*$N81) ->  | AE81: | | AF81: =$C$38*$C$26/7/($M81*$C$10) ->  | AG81: =$C$38*$C$39*($C$26/7)^2/(2*$C$10*$N81) ->  | AH81: =$C$38*$C$39*$C$26/7/($C$10*$N81) ->  | AI81: | | AJ81: =$C$40*$C$26/7/($M81*$C$10) ->  | AK81: =$C$40*$C$41*($C$26/7)^2/(2*$C$10*$N81) ->  | AL81: =$C$40*$C$41*$C$26/7/($C$10*$N81) ->  | AM81: | | AN81: =$C$42*$C$26/7/($M81*$C$10) ->  | AO81: =$C$42*$C$43*($C$26/7)^2/(2*$C$10*$N81) ->  | AP81: =$C$42*$C$43*$C$26/7/($C$10*$N81) ->  | AQ81: | | AR81: =$C$44*$C$26/7/($M81*$C$10) ->  | AS81: =$C$44*$C$45*($C$26/7)^2/(2*$C$10*$N81) ->  | AT81: =$C$44*$C$45*$C$26/7/($C$10*$N81) ->  | AU81: | | AV81: =LP/7*M81*U ->  | AW81: =SUM(AV81:AV$87)*$C$26/7/(M81*$C$10) ->  | AX81: =$DR$112*$C$26/7/(M81*$C$10) ->  | AY81: =SUM(AX81)+SUM(AW81) ->  | AZ81: =$DZ$99*($C$26/7)^2/(2*$C$10*N81) ->  | BA81: =$DZ$99*$C$26/7/($C$10*N81) ->  | BB81: =SUM(AZ81) ->  | BC81: P | BD81: =(SUM(AV81:AV$87)+$BC$82)*BB87 ->  | BE81: =(SUM(AV81:AV$87)+$BC$82)*BB87*($C$26/7)^2/(2*$C$10*N81) ->  | BF81: =BD81*$C$26/7/($C$10*N81) ->  | BG81: delta
K82: =3*LP/14 ->  | L82: =($C$23-($C$23-$C$24)/$C$26*K82)-($C$25/2) ->  | M82: =IF($C$27=8,6.63*$L82*$C$25,6.43*$L82*$C$25) ->  | N82: =IF($C$27=8,3.5*$L82^3*$C$25,3.29*$L82^3*$C$25) ->  | O82: | | P82: =$C$30*$C$26/7/(M82*$C$10) ->  | Q82: =$C$30*$C$31*($C$26/7)^2/(2*$C$10*N82) ->  | R82: =$C$30*$C$31*$C$26/7/($C$10*N82) ->  | S82: | | W82: | | AA82: | | AE82: | | AI82: | | AM82: | | AQ82: | | AU82: | | AW82: =SUM(AV82:AV$87)*$C$26/7/(M82*$C$10) ->  | AY82: =SUM(AX$81:AX82)+SUM(AW$81:AW82) ->  | BB82: =SUM(AZ$81:AZ82)+$C$26/7*(BA81) ->  | BC82: =DR112 ->  | BD82: =(SUM(AV82:AV$87)+$BC$82)*(BB$87-BB81) ->  | BE82: =(SUM(AV82:AV$87)+$BC$82)*(BB87-BB81)*($C$26/7)^2/(2*$C$10*N82) ->  | BG82: =SUM(BE81:BE87)+$C$26/7*(6*BF81+5*BF82+4*BF83+3*BF84+2*BF85+BF86) -> 
K83: =5*LP/14 ->  | M83: =IF($C$27=8,6.63*$L83*$C$25,6.43*$L83*$C$25) ->  | O83: | | S83: | | W83: | | AA83: | | AE83: | | AI83: | | AM83: | | AQ83: | | AU83: | | AW83: =SUM(AV83:AV$87)*$C$26/7/(M83*$C$10) ->  | AY83: =SUM(AX$81:AX83)+SUM(AW$81:AW83) ->  | BB83: =SUM(AZ$81:AZ83)+$C$26/7*(2*BA81+BA82) ->  | BD83: =(SUM(AV83:AV$87)+$BC$82)*(BB$87-BB82) ->  | BE83: =(SUM(AV83:AV$87)+$BC$82)*(BB87-BB82)*($C$26/7)^2/(2*$C$10*N83) -> 
K84: =7*LP/14 ->  | O84: | | S84: | | W84: | | AA84: | | AE84: | | AI84: | | AM84: | | AQ84: | | AU84: | | AW84: =SUM(AV84:AV$87)*$C$26/7/(M84*$C$10) ->  | AY84: =SUM(AX$81:AX84)+SUM(AW$81:AW84) ->  | BB84: =SUM(AZ$81:AZ84)+$C$26/7*(3*BA81+2*BA82+BA83) ->  | BD84: =(SUM(AV84:AV$87)+$BC$82)*(BB$87-BB83) ->  | BE84: =(SUM(AV84:AV$87)+$BC$82)*(BB87-BB83)*($C$26/7)^2/(2*$C$10*N84) -> 
K85: =9*LP/14 ->  | O85: | | S85: | | W85: | | AA85: | | AE85: | | AI85: | | AM85: | | AQ85: | | AU85: | | AW85: =SUM(AV85:AV$87)*$C$26/7/(M85*$C$10) ->  | AY85: =SUM(AX$81:AX85)+SUM(AW$81:AW85) ->  | BB85: =SUM(AZ$81:AZ85)+$C$26/7*(4*BA81+3*BA82+2*BA83+BA84) ->  | BD85: =(SUM(AV85:AV$87)+$BC$82)*(BB$87-BB84) ->  | BE85: =(SUM(AV85:AV$87)+$BC$82)*(BB87-BB84)*($C$26/7)^2/(2*$C$10*N85) ->  | BG85: angle
K86: =11*LP/14 ->  | M86: =IF($C$27=8,6.63*$L86*$C$25,6.43*$L86*$C$25) ->  | O86: | | S86: | | W86: | | AA86: | | AE86: | | AI86: | | AM86: | | AQ86: | | AU86: | | AW86: =SUM(AV86:AV$87)*$C$26/7/(M86*$C$10) ->  | AY86: =SUM(AX$81:AX86)+SUM(AW$81:AW86) ->  | BB86: =SUM(AZ$81:AZ86)+$C$26/7*(5*BA81+4*BA82+3*BA83+2*BA84+BA85) ->  | BD86: =(SUM(AV86:AV$87)+$BC$82)*(BB$87-BB85) ->  | BE86: =(SUM(AV86:AV$87)+$BC$82)*(BB87-BB85)*($C$26/7)^2/(2*$C$10*N86) ->  | BG86: =BA90+BF90 -> 
K87: =13*LP/14 ->  | O87: | | S87: | | W87: | | AA87: | | AE87: | | AI87: | | AM87: | | AQ87: | | AU87: | | AW87: =SUM(AV$87)*$C$26/7/(M87*$C$10) ->  | AY87: =SUM(AX$81:AX87)+SUM(AW$81:AW87) ->  | BB87: =SUM(AZ81:AZ87)+$C$26/7*(6*BA81+5*BA82+4*BA83+3*BA84+2*BA85+BA86) ->  | BD87: =(SUM(AV$87)+$BC$82)*(BB$87-BB86) ->  | BE87: =(SUM(AV$87)+$BC$82)*(BB87-BB86)*($C$26/7)^2/(2*$C$10*N87) -> 
K88: =LP ->  | M88: =IF($C$27=8,6.63*$L88*$C$25,6.43*$L88*$C$25) ->  | O88: | | S88: | | W88: | | AA88: | | AE88: | | AI88: | | AM88: | | AQ88: | | AU88: |
O89: | | Q89: =SUM(Q81:Q87)+$C$26/7*(6*R81+5*R82+4*R83+3*R84+2*R85+R86) ->  | S89: | | U89: =SUM(U81:U87)+$C$26/7*(6*V81+5*V82+4*V83+3*V84+2*V85+V86) ->  | W89: | | Y89: =SUM(Y81:Y87)+$C$26/7*(6*Z81+5*Z82+4*Z83+3*Z84+2*Z85+Z86) ->  | AA89: | | AC89: =SUM(AC81:AC87)+$C$26/7*(6*AD81+5*AD82+4*AD83+3*AD84+2*AD85+AD86) ->  | AE89: | | AG89: =SUM(AG81:AG87)+$C$26/7*(6*AH81+5*AH82+4*AH83+3*AH84+2*AH85+AH86) ->  | AI89: | | AK89: =SUM(AK81:AK87)+$C$26/7*(6*AL81+5*AL82+4*AL83+3*AL84+2*AL85+AL86) ->  | AM89: | | AO89: =SUM(AO81:AO87)+$C$26/7*(6*AP81+5*AP82+4*AP83+3*AP84+2*AP85+AP86) ->  | AQ89: | | AS89: =SUM(AS81:AS87)+$C$26/7*(6*AT81+5*AT82+4*AT83+3*AT84+2*AT85+AT86) ->  | AU89: |
O90: | | P90: =SUM(P81:P87) ->  | R90: =SUM(R81:R87) ->  | S90: | | T90: =SUM(T81:T87) ->  | V90: =SUM(V81:V87) ->  | W90: | | X90: =SUM(X81:X87) ->  | Z90: =SUM(Z81:Z87) ->  | AA90: | | AB90: =SUM(AB81:AB87) ->  | AD90: =SUM(AD81:AD87) ->  | AE90: | | AF90: =SUM(AF81:AF87) ->  | AH90: =SUM(AH81:AH87) ->  | AI90: | | AJ90: =SUM(AJ81:AJ87) ->  | AL90: =SUM(AL81:AL87) ->  | AM90: | | AN90: =SUM(AN81:AN87) ->  | AP90: =SUM(AP81:AP87) ->  | AQ90: | | AR90: =SUM(AR81:AR87) ->  | AT90: =SUM(AT81:AT87) ->  | AU90: | | AV90: =SUM(AV81:AV87) ->  | AW90: =SUM(AW81:AW87) ->  | AX90: =SUM(AX81:AX87) ->  | BA90: =SUM(BA81:BA87) ->  | BF90: =SUM(BF81:BF87) -> 
K93: TABLE2 >>>>>> | BI93: TABLE2 | BO93: >>>>>> | BV93: >>>>>>>> | CC93: >>>>>>> | CJ93: >>>>>>>> | CQ93: >>>>>>> | CX93: >>>>>>>> | DS93: >>>>>>>> | DY93: >>>>>>>
DE94: >>>>>>> | DM94: >>>>>>>
BI95: TAPERING POLE
BM96: | | BN96: LOAD 1 | BT96: | | BU96: LOAD 2 | CA96: | | CB96: LOAD 3 | CH96: | | CI96: LOAD 4 | CO96: | | CP96: LOAD 5 | CV96: | | CW96: LOAD 6 | DC96: | | DD96: LOAD 7 | DJ96: | | DK96: LOAD 8 | DQ96: | | DR96: DEAD LOAD
BI97: X | BJ97: ro | BK97: A | BL97: I | BM97: | | BN97: moment arm | BO97: d_P | BP97: angle_P | BQ97: d_M | BR97: angle_M | BT97: | | BU97: moment arm | BV97: d_P | BW97: angle_P | BX97: d_M | BY97: angle_M | CA97: | | CB97: moment arm | CC97: d_P | CD97: angle_P | CE97: d_M | CF97: angle_M | CH97: | | CI97: moment arm | CJ97: d_P | CK97: angle_P | CL97: d_M | CM97: angle_M | CO97: | | CP97: moment arm | CQ97: d_P | CR97: angle_P | CS97: d_M | CT97: angle_M | CV97: | | CW97: moment arm | CX97: d_P | CY97: angle_P | CZ97: d_M | DA97: angle_M | DC97: | | DD97: moment arm | DE97: d_P | DF97: angle_P | DG97: d_M | DH97: angle_M | DJ97: | | DK97: moment arm | DL97: d_P | DM97: angle_P | DN97: d_M | DO97: angle_M | DQ97: | | DR97: wic | DS97: di | DT97: theta | DU97: A*wic*y | DV97: A*wic | DW97: P | DX97: angle_P | DY97: deflect_P | DZ97: Mi | EA97: angle_M | EB97: d_M | EC97: sum angles | ED97: sum deflect | EE97: jt deflect
BI98: mm | BJ98: mm | BK98: mm^2 | BL98: mm^4 | BM98: | | BN98: mm | BO98: mm | BP98: rad | BQ98: mm | BR98: rad | BT98: | | BU98: mm | BV98: mm | BW98: rad | BX98: mm | BY98: rad | CA98: | | CB98: mm | CC98: mm | CD98: rad | CE98: mm | CF98: rad | CH98: | | CI98: mm | CJ98: mm | CK98: rad | CL98: mm | CM98: rad | CO98: | | CP98: mm | CQ98: mm | CR98: rad | CS98: mm | CT98: rad | CV98: | | CW98: mm | CX98: mm | CY98: rad | CZ98: mm | DA98: rad | DC98: | | DD98: mm | DE98: mm | DF98: rad | DG98: mm | DH98: rad | DJ98: | | DK98: mm | DL98: mm | DM98: rad | DN98: mm | DO98: rad | DQ98: | | DR98: N | DS98: mm | DT98: rad*mm | DW98: N | DX98: rad | DY98: mm | DZ98: Nmm | EA98: rad | EB98: mm | EC98: rad | ED98: mm | EE98: mm
BM99: | | BT99: | | CA99: | | CH99: | | CO99: | | CV99: | | DC99: | | DJ99: | | DQ99: | | DZ99: =$C$19/20*(DR100+3*DR101+5*DR102+7*DR103+9*DR104+11*DR105+13*DR106+15*DR107+17*DR108+19*DR109) -> 
BI100: =C19/20 -> 0 | BJ100: =($C$16-($C$16-$C$17)/$C$19*BI100)-($C$18/2) ->  | BK100: =IF($C$20=8,6.63*$BJ100*$C$18,6.43*$BJ100*$C$18) ->  | BL100: =IF($C$20=8,3.5*$BJ100^3*$C$18,3.29*$BJ100^3*$C$18) ->  | BM100: | | BN100: =$C$31-$C$19/10 -> 0 | BO100: =IF(BN100>=0,$C$30*($C$19/10)^3/(3*$C$10*BL100),IF(BN100>(-$C$19/10),$C$30*($C$31-$C$19/10)^3/(3*$C$10*BL100)+$C$30*($C$31-$C$19/10)^2/(2*$C$10*BL100)*ABS($C$31-$C$19/10),0)) ->  | BP100: =IF(BN100>=0,$C$30*($C$19/10)^2/(2*$C$10*BL100),IF(BN100>(-$C$19/10),$C$30*($C$31-$C$19/10)^2/(2*$C$10*BL100),0)) ->  | BQ100: =IF(BN100<=0,0,$C$30*($C$31-$C$19/10)*($C$19/10)^2/(2*$C$10*BL100)) -> 0 | BR100: =IF(BN100<=0,0,$C$30*($C$31-$C$19/10)*$C$19/10/($C$10*BL100)) -> 0 | BS100: D_P | BT100: | | BU100: =$C$33-$C$19/10 -> 0 | BV100: =IF(BU100>=0,$C$32*($C$19/10)^3/(3*$C$10*BL100),IF(BU100>(-$C$19/10),$C$32*($C$33-$C$19/10)^3/(3*$C$10*BL100)+$C$32*($C$33-$C$19/10)^2/(2*$C$10*BL100)*ABS($C$33-$C$19/10),0)) ->  | BW100: =IF(BU100>=0,$C$32*($C$19/10)^2/(2*$C$10*BL100),IF(BU100>(-$C$19/10),$C$32*($C$33-$C$19/10)^2/(2*$C$10*BL100),0)) ->  | BX100: =IF(BU100<=0,0,$C$32*($C$33-$C$19/10)*($C$19/10)^2/(2*$C$10*BL100)) -> 0 | BY100: =IF(BU100<=0,0,$C$32*($C$33-$C$19/10)*$C$19/10/($C$10*BL100)) -> 0 | BZ100: D_P | CA100: | | CB100: =$C$35-$C$19/10 -> 0 | CC100: =IF(CB100>=0,$C$34*($C$19/10)^3/(3*$C$10*BL100),IF(CB100>(-$C$19/10),$C$34*($C$35-$C$19/10)^3/(3*$C$10*BL100)+$C$34*($C$35-$C$19/10)^2/(2*$C$10*BL100)*ABS($C$35-$C$19/10),0)) ->  | CD100: =IF(CB100>=0,$C$34*($C$19/10)^2/(2*$C$10*BL100),IF(CB100>(-$C$19/10),$C$34*($C$35-$C$19/10)^2/(2*$C$10*BL100),0)) ->  | CE100: =IF(CB100<=0,0,$C$34*($C$35-$C$19/10)*($C$19/10)^2/(2*$C$10*BL100)) -> 0 | CF100: =IF(CB100<=0,0,$C$34*($C$35-$C$19/10)*$C$19/10/($C$10*BL100)) -> 0 | CG100: D_P | CH100: | | CI100: =$C$37-$C$19/10 -> 0 | CJ100: =IF(CI100>=0,$C$36*($C$19/10)^3/(3*$C$10*BL100),IF(CI100>(-$C$19/10),$C$36*($C$37-$C$19/10)^3/(3*$C$10*BL100)+$C$36*($C$37-$C$19/10)^2/(2*$C$10*BL100)*ABS($C$37-$C$19/10),0)) ->  | CK100: =IF(CI100>=0,$C$36*($C$19/10)^2/(2*$C$10*BL100),IF(CI100>(-$C$19/10),$C$36*($C$37-$C$19/10)^2/(2*$C$10*BL100),0)) ->  | CL100: =IF(CI100<=0,0,$C$36*($C$37-$C$19/10)*($C$19/10)^2/(2*$C$10*BL100)) -> 0 | CM100: =IF(CI100<=0,0,$C$36*($C$37-$C$19/10)*$C$19/10/($C$10*BL100)) -> 0 | CN100: D_P | CO100: | | CP100: =$C$39-$C$19/10 -> 0 | CQ100: =IF(CP100>=0,$C$38*($C$19/10)^3/(3*$C$10*BL100),IF(CP100>(-$C$19/10),$C$38*($C$39-$C$19/10)^3/(3*$C$10*BL100)+$C$38*($C$39-$C$19/10)^2/(2*$C$10*BL100)*ABS($C$39-$C$19/10),0)) ->  | CR100: =IF(CP100>=0,$C$38*($C$19/10)^2/(2*$C$10*BL100),IF(CP100>(-$C$19/10),$C$38*($C$39-$C$19/10)^2/(2*$C$10*BL100),0)) ->  | CS100: =IF(CP100<=0,0,$C$38*($C$39-$C$19/10)*($C$19/10)^2/(2*$C$10*BL100)) -> 0 | CT100: =IF(CP100<=0,0,$C$38*($C$39-$C$19/10)*$C$19/10/($C$10*BL100)) -> 0 | CU100: D_P | CV100: | | CW100: =$C$41-$C$19/10 -> 0 | CX100: =IF(CW100>=0,$C$40*($C$19/10)^3/(3*$C$10*$BL100),IF(CW100>(-$C$19/10),$C$40*($C$41-$C$19/10)^3/(3*$C$10*$BL100)+$C$40*($C$41-$C$19/10)^2/(2*$C$10*$BL100)*ABS($C$41-$C$19/10),0)) ->  | CY100: =IF(CW100>=0,$C$40*($C$19/10)^2/(2*$C$10*$BL100),IF(CW100>(-$C$19/10),$C$40*($C$41-$C$19/10)^2/(2*$C$10*$BL100),0)) ->  | CZ100: =IF(CW100<=0,0,$C$40*($C$41-$C$19/10)*($C$19/10)^2/(2*$C$10*$BL100)) -> 0 | DA100: =IF(CW100<=0,0,$C$40*($C$41-$C$19/10)*$C$19/10/($C$10*$BL100)) -> 0 | DB100: D_P | DC100: | | DD100: =$C$43-$C$19/10 -> 0 | DE100: =IF(DD100>=0,$C$42*($C$19/10)^3/(3*$C$10*$BL100),IF(DD100>(-$C$19/10),$C$42*($C$43-$C$19/10)^3/(3*$C$10*$BL100)+$C$42*($C$43-$C$19/10)^2/(2*$C$10*$BL100)*ABS($C$43-$C$19/10),0)) ->  | DF100: =IF(DD100>=0,$C$42*($C$19/10)^2/(2*$C$10*$BL100),IF(DD100>(-$C$19/10),$C$42*($C$43-$C$19/10)^2/(2*$C$10*$BL100),0)) ->  | DG100: =IF(DD100<=0,0,$C$42*($C$43-$C$19/10)*($C$19/10)^2/(2*$C$10*$BL100)) -> 0 | DH100: =IF(DD100<=0,0,$C$42*($C$43-$C$19/10)*$C$19/10/($C$10*$BL100)) -> 0 | DI100: D_P | DJ100: | | DK100: =$C$45-$C$19/10 -> 0 | DL100: =IF(DK100>=0,$C$44*($C$19/10)^3/(3*$C$10*$BL100),IF(DK100>(-$C$19/10),$C$44*($C$45-$C$19/10)^3/(3*$C$10*$BL100)+$C$44*($C$45-$C$19/10)^2/(2*$C$10*$BL100)*ABS($C$45-$C$19/10),0)) ->  | DM100: =IF(DK100>=0,$C$44*($C$19/10)^2/(2*$C$10*$BL100),IF(DK100>(-$C$19/10),$C$44*($C$45-$C$19/10)^2/(2*$C$10*$BL100),0)) ->  | DN100: =IF(DK100<=0,0,$C$44*($C$45-$C$19/10)*($C$19/10)^2/(2*$C$10*$BL100)) -> 0 | DO100: =IF(DK100<=0,0,$C$44*($C$45-$C$19/10)*$C$19/10/($C$10*$BL100)) -> 0 | DP100: D_P | DQ100: | | DR100: =LC/10*BK100*U ->  | DS100: =DR100*(LC/10)^3/(8*E*$BL100) ->  | DT100: =DR100*($C$19/10)^2/(6*$C$10*BL100) ->  | DU100: =BK100*DR100*C19/20 ->  | DV100: =BK100*DR100 ->  | DW100: =SUM(DR101:DR109) ->  | DX100: =DW100*(LC/10)^2/(2*E*BL100) ->  | DY100: =DW100*(LC/10)^3/(3*E*BL100) ->  | DZ100: =$C$19/20*(DR101+3*DR102+5*DR103+7*DR104+9*DR105+11*DR106+13*DR107+15*DR108+17*DR109) ->  | EA100: =$DZ100*(LC/10)/(E*$BL100) ->  | EB100: =$DZ100*(LC/10)^2/(2*E*$BL100) ->  | EC100: =$DT100+$DX100+$EA100 ->  | ED100: =DS100+DY100+EB100 ->  | EE100: =SUM(ED100) -> 
BI101: =3*C19/20 -> 0 | BJ101: =($C$16-($C$16-$C$17)/$C$19*BI101)-($C$18/2) ->  | BK101: =IF($C$20=8,6.63*$BJ101*$C$18,6.43*$BJ101*$C$18) ->  | BL101: =IF($C$20=8,3.5*$BJ101^3*$C$18,3.29*$BJ101^3*$C$18) ->  | BM101: | | BN101: =$C$31-2*$C$19/10 -> 0 | BO101: =IF(BN101>=0,$C$30*($C$19/10)^3/(3*$C$10*BL101),IF(BN101>(-$C$19/10),$C$30*($C$31-2*$C$19/10)^3/(3*$C$10*BL101)+$C$30*($C$31-2*$C$19/10)^2/(2*$C$10*BL101)*ABS($C$31-2*$C$19/10),0)) ->  | BP101: =IF(BN101>=0,$C$30*($C$19/10)^2/(2*$C$10*BL101),IF(BN101>(-$C$19/10),$C$30*($C$31-2*$C$19/10)^2/(2*$C$10*BL101),0)) ->  | BQ101: =IF(BN101<=0,0,$C$30*($C$31-2*$C$19/10)*($C$19/10)^2/(2*$C$10*BL101)) -> 0 | BR101: =IF(BN101<=0,0,$C$30*($C$31-2*$C$19/10)*$C$19/10/($C$10*BL101)) -> 0 | BS101: =SUM(BO100:BO109)+$C$19/10*(9*BP100+8*BP101+7*BP102+6*BP103+5*BP104+4*BP105+3*BP106+2*BP107+BP108) ->  | BT101: | | BU101: =$C$33-2*$C$19/10 -> 0 | BV101: =IF(BU101>=0,$C$32*($C$19/10)^3/(3*$C$10*BL101),IF(BU101>(-$C$19/10),$C$32*($C$33-2*$C$19/10)^3/(3*$C$10*BL101)+$C$32*($C$33-2*$C$19/10)^2/(2*$C$10*BL101)*ABS($C$33-2*$C$19/10),0)) ->  | BW101: =IF(BU101>=0,$C$32*($C$19/10)^2/(2*$C$10*BL101),IF(BU101>(-$C$19/10),$C$32*($C$33-2*$C$19/10)^2/(2*$C$10*BL101),0)) ->  | BX101: =IF(BU101<=0,0,$C$32*($C$33-2*$C$19/10)*($C$19/10)^2/(2*$C$10*BL101)) -> 0 | BY101: =IF(BU101<=0,0,$C$32*($C$33-2*$C$19/10)*$C$19/10/($C$10*BL101)) -> 0 | BZ101: =SUM(BV100:BV109)+$C$19/10*(9*BW100+8*BW101+7*BW102+6*BW103+5*BW104+4*BW105+3*BW106+2*BW107+BW108) ->  | CA101: | | CB101: =$C$35-2*$C$19/10 -> 0 | CC101: =IF(CB101>=0,$C$34*($C$19/10)^3/(3*$C$10*BL101),IF(CB101>(-$C$19/10),$C$34*($C$35-2*$C$19/10)^3/(3*$C$10*BL101)+$C$34*($C$35-2*$C$19/10)^2/(2*$C$10*BL101)*ABS($C$35-2*$C$19/10),0)) ->  | CD101: =IF(CB101>=0,$C$34*($C$19/10)^2/(2*$C$10*BL101),IF(CB101>(-$C$19/10),$C$34*($C$35-2*$C$19/10)^2/(2*$C$10*BL101),0)) ->  | CE101: =IF(CB101<=0,0,$C$34*($C$35-2*$C$19/10)*($C$19/10)^2/(2*$C$10*BL101)) -> 0 | CF101: =IF(CB101<=0,0,$C$34*($C$35-2*$C$19/10)*$C$19/10/($C$10*BL101)) -> 0 | CG101: =SUM(CC100:CC109)+$C$19/10*(9*CD100+8*CD101+7*CD102+6*CD103+5*CD104+4*CD105+3*CD106+2*CD107+CD108) ->  | CH101: | | CI101: =$C$37-2*$C$19/10 -> 0 | CJ101: =IF(CI101>=0,$C$36*($C$19/10)^3/(3*$C$10*BL101),IF(CI101>(-$C$19/10),$C$36*($C$37-2*$C$19/10)^3/(3*$C$10*BL101)+$C$36*($C$37-2*$C$19/10)^2/(2*$C$10*BL101)*ABS($C$37-2*$C$19/10),0)) ->  | CK101: =IF(CI101>=0,$C$36*($C$19/10)^2/(2*$C$10*BL101),IF(CI101>(-$C$19/10),$C$36*($C$37-2*$C$19/10)^2/(2*$C$10*BL101),0)) ->  | CL101: =IF(CI101<=0,0,$C$36*($C$37-2*$C$19/10)*($C$19/10)^2/(2*$C$10*BL101)) -> 0 | CM101: =IF(CI101<=0,0,$C$36*($C$37-2*$C$19/10)*$C$19/10/($C$10*BL101)) -> 0 | CN101: =SUM(CJ100:CJ109)+$C$19/10*(9*CK100+8*CK101+7*CK102+6*CK103+5*CK104+4*CK105+3*CK106+2*CK107+CK108) ->  | CO101: | | CP101: =$C$39-2*$C$19/10 -> 0 | CQ101: =IF(CP101>=0,$C$38*($C$19/10)^3/(3*$C$10*BL101),IF(CP101>(-$C$19/10),$C$38*($C$39-2*$C$19/10)^3/(3*$C$10*BL101)+$C$38*($C$39-2*$C$19/10)^2/(2*$C$10*BL101)*ABS($C$39-2*$C$19/10),0)) ->  | CR101: =IF(CP101>=0,$C$38*($C$19/10)^2/(2*$C$10*BL101),IF(CP101>(-$C$19/10),$C$38*($C$39-2*$C$19/10)^2/(2*$C$10*BL101),0)) ->  | CS101: =IF(CP101<=0,0,$C$38*($C$39-2*$C$19/10)*($C$19/10)^2/(2*$C$10*BL101)) -> 0 | CT101: =IF(CP101<=0,0,$C$38*($C$39-2*$C$19/10)*$C$19/10/($C$10*BL101)) -> 0 | CU101: =SUM(CQ100:CQ109)+$C$19/10*(9*CR100+8*CR101+7*CR102+6*CR103+5*CR104+4*CR105+3*CR106+2*CR107+CR108) ->  | CV101: | | CW101: =$C$41-2*$C$19/10 -> 0 | CX101: =IF(CW101>=0,$C$40*($C$19/10)^3/(3*$C$10*$BL101),IF(CW101>(-$C$19/10),$C$40*($C$41-2*$C$19/10)^3/(3*$C$10*$BL101)+$C$40*($C$41-2*$C$19/10)^2/(2*$C$10*$BL101)*ABS($C$41-2*$C$19/10),0)) ->  | CY101: =IF(CW101>=0,$C$40*($C$19/10)^2/(2*$C$10*$BL101),IF(CW101>(-$C$19/10),$C$40*($C$41-2*$C$19/10)^2/(2*$C$10*$BL101),0)) ->  | CZ101: =IF(CW101<=0,0,$C$40*($C$41-2*$C$19/10)*($C$19/10)^2/(2*$C$10*$BL101)) -> 0 | DA101: =IF(CW101<=0,0,$C$40*($C$41-2*$C$19/10)*$C$19/10/($C$10*$BL101)) -> 0 | DB101: =SUM(CX100:CX109)+$C$19/10*(9*CY100+8*CY101+7*CY102+6*CY103+5*CY104+4*CY105+3*CY106+2*CY107+CY108) ->  | DC101: | | DD101: =$C$43-2*$C$19/10 -> 0 | DE101: =IF(DD101>=0,$C$42*($C$19/10)^3/(3*$C$10*$BL101),IF(DD101>(-$C$19/10),$C$42*($C$43-2*$C$19/10)^3/(3*$C$10*$BL101)+$C$42*($C$43-2*$C$19/10)^2/(2*$C$10*$BL101)*ABS($C$43-2*$C$19/10),0)) ->  | DF101: =IF(DD101>=0,$C$42*($C$19/10)^2/(2*$C$10*$BL101),IF(DD101>(-$C$19/10),$C$42*($C$43-2*$C$19/10)^2/(2*$C$10*$BL101),0)) ->  | DG101: =IF(DD101<=0,0,$C$42*($C$43-2*$C$19/10)*($C$19/10)^2/(2*$C$10*$BL101)) -> 0 | DH101: =IF(DD101<=0,0,$C$42*($C$43-2*$C$19/10)*$C$19/10/($C$10*$BL101)) -> 0 | DI101: =SUM(DE100:DE109)+$C$19/10*(9*DF100+8*DF101+7*DF102+6*DF103+5*DF104+4*DF105+3*DF106+2*DF107+DF108) ->  | DJ101: | | DK101: =$C$45-2*$C$19/10 -> 0 | DL101: =IF(DK101>=0,$C$44*($C$19/10)^3/(3*$C$10*$BL101),IF(DK101>(-$C$19/10),$C$44*($C$45-2*$C$19/10)^3/(3*$C$10*$BL101)+$C$44*($C$45-2*$C$19/10)^2/(2*$C$10*$BL101)*ABS($C$45-2*$C$19/10),0)) ->  | DM101: =IF(DK101>=0,$C$44*($C$19/10)^2/(2*$C$10*$BL101),IF(DK101>(-$C$19/10),$C$44*($C$45-2*$C$19/10)^2/(2*$C$10*$BL101),0)) ->  | DN101: =IF(DK101<=0,0,$C$44*($C$45-2*$C$19/10)*($C$19/10)^2/(2*$C$10*$BL101)) -> 0 | DO101: =IF(DK101<=0,0,$C$44*($C$45-2*$C$19/10)*$C$19/10/($C$10*$BL101)) -> 0 | DP101: =SUM(DL100:DL109)+$C$19/10*(9*DM100+8*DM101+7*DM102+6*DM103+5*DM104+4*DM105+3*DM106+2*DM107+DM108) ->  | DQ101: | | DU101: =BK101*DR101*3*LC/20 ->  | DW101: =SUM(DR102:DR$109) ->  | DX101: =DW101*(LC/10)^2/(2*E*BL101) ->  | DZ101: =$C$19/20*(DR102+3*DR103+5*DR104+7*DR105+9*DR106+11*DR107+13*DR108+15*DR109) ->  | EA101: =DZ101*(LC/10)/(E*BL101) ->  | EE101: =SUM(ED$100:ED101)+$C$19/10*(EC100) -> 
BI102: =5*C19/20 -> 0 | BM102: | | BN102: =$C$31-3*$C$19/10 -> 0 | BO102: =IF(BN102>=0,$C$30*($C$19/10)^3/(3*$C$10*BL102),IF(BN102>(-$C$19/10),$C$30*($C$31-3*$C$19/10)^3/(3*$C$10*BL102)+$C$30*($C$31-3*$C$19/10)^2/(2*$C$10*BL102)*ABS($C$31-3*$C$19/10),0)) ->  | BP102: =IF(BN102>=0,$C$30*($C$19/10)^2/(2*$C$10*BL102),IF(BN102>(-$C$19/10),$C$30*($C$31-3*$C$19/10)^2/(2*$C$10*BL102),0)) ->  | BQ102: =IF(BN102<=0,0,$C$30*($C$31-3*$C$19/10)*($C$19/10)^2/(2*$C$10*BL102)) -> 0 | BR102: =IF(BN102<=0,0,$C$30*($C$31-3*$C$19/10)*$C$19/10/($C$10*BL102)) -> 0 | BT102: | | BU102: =$C$33-3*$C$19/10 -> 0 | BV102: =IF(BU102>=0,$C$32*($C$19/10)^3/(3*$C$10*BL102),IF(BU102>(-$C$19/10),$C$32*($C$33-3*$C$19/10)^3/(3*$C$10*BL102)+$C$32*($C$33-3*$C$19/10)^2/(2*$C$10*BL102)*ABS($C$33-3*$C$19/10),0)) ->  | BW102: =IF(BU102>=0,$C$32*($C$19/10)^2/(2*$C$10*BL102),IF(BU102>(-$C$19/10),$C$32*($C$33-3*$C$19/10)^2/(2*$C$10*BL102),0)) ->  | BX102: =IF(BU102<=0,0,$C$32*($C$33-3*$C$19/10)*($C$19/10)^2/(2*$C$10*BL102)) -> 0 | BY102: =IF(BU102<=0,0,$C$32*($C$33-3*$C$19/10)*$C$19/10/($C$10*BL102)) -> 0 | CA102: | | CB102: =$C$35-3*$C$19/10 -> 0 | CC102: =IF(CB102>=0,$C$34*($C$19/10)^3/(3*$C$10*BL102),IF(CB102>(-$C$19/10),$C$34*($C$35-3*$C$19/10)^3/(3*$C$10*BL102)+$C$34*($C$35-3*$C$19/10)^2/(2*$C$10*BL102)*ABS($C$35-3*$C$19/10),0)) ->  | CD102: =IF(CB102>=0,$C$34*($C$19/10)^2/(2*$C$10*BL102),IF(CB102>(-$C$19/10),$C$34*($C$35-3*$C$19/10)^2/(2*$C$10*BL102),0)) ->  | CE102: =IF(CB102<=0,0,$C$34*($C$35-3*$C$19/10)*($C$19/10)^2/(2*$C$10*BL102)) -> 0 | CF102: =IF(CB102<=0,0,$C$34*($C$35-3*$C$19/10)*$C$19/10/($C$10*BL102)) -> 0 | CH102: | | CI102: =$C$37-3*$C$19/10 -> 0 | CJ102: =IF(CI102>=0,$C$36*($C$19/10)^3/(3*$C$10*BL102),IF(CI102>(-$C$19/10),$C$36*($C$37-3*$C$19/10)^3/(3*$C$10*BL102)+$C$36*($C$37-3*$C$19/10)^2/(2*$C$10*BL102)*ABS($C$37-3*$C$19/10),0)) ->  | CK102: =IF(CI102>=0,$C$36*($C$19/10)^2/(2*$C$10*BL102),IF(CI102>(-$C$19/10),$C$36*($C$37-3*$C$19/10)^2/(2*$C$10*BL102),0)) ->  | CL102: =IF(CI102<=0,0,$C$36*($C$37-3*$C$19/10)*($C$19/10)^2/(2*$C$10*BL102)) -> 0 | CM102: =IF(CI102<=0,0,$C$36*($C$37-3*$C$19/10)*$C$19/10/($C$10*BL102)) -> 0 | CO102: | | CP102: =$C$39-3*$C$19/10 -> 0 | CQ102: =IF(CP102>=0,$C$38*($C$19/10)^3/(3*$C$10*BL102),IF(CP102>(-$C$19/10),$C$38*($C$39-3*$C$19/10)^3/(3*$C$10*BL102)+$C$38*($C$39-3*$C$19/10)^2/(2*$C$10*BL102)*ABS($C$39-3*$C$19/10),0)) ->  | CR102: =IF(CP102>=0,$C$38*($C$19/10)^2/(2*$C$10*BL102),IF(CP102>(-$C$19/10),$C$38*($C$39-3*$C$19/10)^2/(2*$C$10*BL102),0)) ->  | CS102: =IF(CP102<=0,0,$C$38*($C$39-3*$C$19/10)*($C$19/10)^2/(2*$C$10*BL102)) -> 0 | CT102: =IF(CP102<=0,0,$C$38*($C$39-3*$C$19/10)*$C$19/10/($C$10*BL102)) -> 0 | CV102: | | CW102: =$C$41-3*$C$19/10 -> 0 | CX102: =IF(CW102>=0,$C$40*($C$19/10)^3/(3*$C$10*$BL102),IF(CW102>(-$C$19/10),$C$40*($C$41-3*$C$19/10)^3/(3*$C$10*$BL102)+$C$40*($C$41-3*$C$19/10)^2/(2*$C$10*$BL102)*ABS($C$41-3*$C$19/10),0)) ->  | CY102: =IF(CW102>=0,$C$40*($C$19/10)^2/(2*$C$10*$BL102),IF(CW102>(-$C$19/10),$C$40*($C$41-3*$C$19/10)^2/(2*$C$10*$BL102),0)) ->  | CZ102: =IF(CW102<=0,0,$C$40*($C$41-3*$C$19/10)*($C$19/10)^2/(2*$C$10*$BL102)) -> 0 | DA102: =IF(CW102<=0,0,$C$40*($C$41-3*$C$19/10)*$C$19/10/($C$10*$BL102)) -> 0 | DC102: | | DD102: =$C$43-3*$C$19/10 -> 0 | DE102: =IF(DD102>=0,$C$42*($C$19/10)^3/(3*$C$10*$BL102),IF(DD102>(-$C$19/10),$C$42*($C$43-3*$C$19/10)^3/(3*$C$10*$BL102)+$C$42*($C$43-3*$C$19/10)^2/(2*$C$10*$BL102)*ABS($C$43-3*$C$19/10),0)) ->  | DF102: =IF(DD102>=0,$C$42*($C$19/10)^2/(2*$C$10*$BL102),IF(DD102>(-$C$19/10),$C$42*($C$43-3*$C$19/10)^2/(2*$C$10*$BL102),0)) ->  | DG102: =IF(DD102<=0,0,$C$42*($C$43-3*$C$19/10)*($C$19/10)^2/(2*$C$10*$BL102)) -> 0 | DH102: =IF(DD102<=0,0,$C$42*($C$43-3*$C$19/10)*$C$19/10/($C$10*$BL102)) -> 0 | DJ102: | | DK102: =$C$45-3*$C$19/10 -> 0 | DL102: =IF(DK102>=0,$C$44*($C$19/10)^3/(3*$C$10*$BL102),IF(DK102>(-$C$19/10),$C$44*($C$45-3*$C$19/10)^3/(3*$C$10*$BL102)+$C$44*($C$45-3*$C$19/10)^2/(2*$C$10*$BL102)*ABS($C$45-3*$C$19/10),0)) ->  | DM102: =IF(DK102>=0,$C$44*($C$19/10)^2/(2*$C$10*$BL102),IF(DK102>(-$C$19/10),$C$44*($C$45-3*$C$19/10)^2/(2*$C$10*$BL102),0)) ->  | DN102: =IF(DK102<=0,0,$C$44*($C$45-3*$C$19/10)*($C$19/10)^2/(2*$C$10*$BL102)) -> 0 | DO102: =IF(DK102<=0,0,$C$44*($C$45-3*$C$19/10)*$C$19/10/($C$10*$BL102)) -> 0 | DQ102: | | DU102: =BK102*DR102*5*LC/20 ->  | DW102: =SUM(DR103:DR$109) ->  | DX102: =DW102*(LC/10)^2/(2*E*BL102) ->  | DZ102: =$C$19/20*(DR103+3*DR104+5*DR105+7*DR106+9*DR107+11*DR108+13*DR109) ->  | EE102: =SUM(ED$100:ED102)+$C$19/10*(EC100*2+EC101) -> 
BI103: =7*C19/20 -> 0 | BM103: | | BN103: =$C$31-4*$C$19/10 -> 0 | BO103: =IF(BN103>=0,$C$30*($C$19/10)^3/(3*$C$10*BL103),IF(BN103>(-$C$19/10),$C$30*($C$31-4*$C$19/10)^3/(3*$C$10*BL103)+$C$30*($C$31-4*$C$19/10)^2/(2*$C$10*BL103)*ABS($C$31-4*$C$19/10),0)) ->  | BP103: =IF(BN103>=0,$C$30*($C$19/10)^2/(2*$C$10*BL103),IF(BN103>(-$C$19/10),$C$30*($C$31-4*$C$19/10)^2/(2*$C$10*BL103),0)) ->  | BQ103: =IF(BN103<=0,0,$C$30*($C$31-4*$C$19/10)*($C$19/10)^2/(2*$C$10*BL103)) -> 0 | BR103: =IF(BN103<=0,0,$C$30*($C$31-4*$C$19/10)*$C$19/10/($C$10*BL103)) -> 0 | BS103: D_M | BT103: | | BU103: =$C$33-4*$C$19/10 -> 0 | BV103: =IF(BU103>=0,$C$32*($C$19/10)^3/(3*$C$10*BL103),IF(BU103>(-$C$19/10),$C$32*($C$33-4*$C$19/10)^3/(3*$C$10*BL103)+$C$32*($C$33-4*$C$19/10)^2/(2*$C$10*BL103)*ABS($C$33-4*$C$19/10),0)) ->  | BW103: =IF(BU103>=0,$C$32*($C$19/10)^2/(2*$C$10*BL103),IF(BU103>(-$C$19/10),$C$32*($C$33-4*$C$19/10)^2/(2*$C$10*BL103),0)) ->  | BX103: =IF(BU103<=0,0,$C$32*($C$33-4*$C$19/10)*($C$19/10)^2/(2*$C$10*BL103)) -> 0 | BY103: =IF(BU103<=0,0,$C$32*($C$33-4*$C$19/10)*$C$19/10/($C$10*BL103)) -> 0 | BZ103: D_M | CA103: | | CB103: =$C$35-4*$C$19/10 -> 0 | CC103: =IF(CB103>=0,$C$34*($C$19/10)^3/(3*$C$10*BL103),IF(CB103>(-$C$19/10),$C$34*($C$35-4*$C$19/10)^3/(3*$C$10*BL103)+$C$34*($C$35-4*$C$19/10)^2/(2*$C$10*BL103)*ABS($C$35-4*$C$19/10),0)) ->  | CD103: =IF(CB103>=0,$C$34*($C$19/10)^2/(2*$C$10*BL103),IF(CB103>(-$C$19/10),$C$34*($C$35-4*$C$19/10)^2/(2*$C$10*BL103),0)) ->  | CE103: =IF(CB103<=0,0,$C$34*($C$35-4*$C$19/10)*($C$19/10)^2/(2*$C$10*BL103)) -> 0 | CF103: =IF(CB103<=0,0,$C$34*($C$35-4*$C$19/10)*$C$19/10/($C$10*BL103)) -> 0 | CG103: D_M | CH103: | | CI103: =$C$37-4*$C$19/10 -> 0 | CJ103: =IF(CI103>=0,$C$36*($C$19/10)^3/(3*$C$10*BL103),IF(CI103>(-$C$19/10),$C$36*($C$37-4*$C$19/10)^3/(3*$C$10*BL103)+$C$36*($C$37-4*$C$19/10)^2/(2*$C$10*BL103)*ABS($C$37-4*$C$19/10),0)) ->  | CK103: =IF(CI103>=0,$C$36*($C$19/10)^2/(2*$C$10*BL103),IF(CI103>(-$C$19/10),$C$36*($C$37-4*$C$19/10)^2/(2*$C$10*BL103),0)) ->  | CL103: =IF(CI103<=0,0,$C$36*($C$37-4*$C$19/10)*($C$19/10)^2/(2*$C$10*BL103)) -> 0 | CM103: =IF(CI103<=0,0,$C$36*($C$37-4*$C$19/10)*$C$19/10/($C$10*BL103)) -> 0 | CN103: D_M | CO103: | | CP103: =$C$39-4*$C$19/10 -> 0 | CQ103: =IF(CP103>=0,$C$38*($C$19/10)^3/(3*$C$10*BL103),IF(CP103>(-$C$19/10),$C$38*($C$39-4*$C$19/10)^3/(3*$C$10*BL103)+$C$38*($C$39-4*$C$19/10)^2/(2*$C$10*BL103)*ABS($C$39-4*$C$19/10),0)) ->  | CR103: =IF(CP103>=0,$C$38*($C$19/10)^2/(2*$C$10*BL103),IF(CP103>(-$C$19/10),$C$38*($C$39-4*$C$19/10)^2/(2*$C$10*BL103),0)) ->  | CS103: =IF(CP103<=0,0,$C$38*($C$39-4*$C$19/10)*($C$19/10)^2/(2*$C$10*BL103)) -> 0 | CT103: =IF(CP103<=0,0,$C$38*($C$39-4*$C$19/10)*$C$19/10/($C$10*BL103)) -> 0 | CU103: D_M | CV103: | | CW103: =$C$41-4*$C$19/10 -> 0 | CX103: =IF(CW103>=0,$C$40*($C$19/10)^3/(3*$C$10*$BL103),IF(CW103>(-$C$19/10),$C$40*($C$41-4*$C$19/10)^3/(3*$C$10*$BL103)+$C$40*($C$41-4*$C$19/10)^2/(2*$C$10*$BL103)*ABS($C$41-4*$C$19/10),0)) ->  | CY103: =IF(CW103>=0,$C$40*($C$19/10)^2/(2*$C$10*$BL103),IF(CW103>(-$C$19/10),$C$40*($C$41-4*$C$19/10)^2/(2*$C$10*$BL103),0)) ->  | CZ103: =IF(CW103<=0,0,$C$40*($C$41-4*$C$19/10)*($C$19/10)^2/(2*$C$10*$BL103)) -> 0 | DA103: =IF(CW103<=0,0,$C$40*($C$41-4*$C$19/10)*$C$19/10/($C$10*$BL103)) -> 0 | DB103: D_M | DC103: | | DD103: =$C$43-4*$C$19/10 -> 0 | DE103: =IF(DD103>=0,$C$42*($C$19/10)^3/(3*$C$10*$BL103),IF(DD103>(-$C$19/10),$C$42*($C$43-4*$C$19/10)^3/(3*$C$10*$BL103)+$C$42*($C$43-4*$C$19/10)^2/(2*$C$10*$BL103)*ABS($C$43-4*$C$19/10),0)) ->  | DF103: =IF(DD103>=0,$C$42*($C$19/10)^2/(2*$C$10*$BL103),IF(DD103>(-$C$19/10),$C$42*($C$43-4*$C$19/10)^2/(2*$C$10*$BL103),0)) ->  | DG103: =IF(DD103<=0,0,$C$42*($C$43-4*$C$19/10)*($C$19/10)^2/(2*$C$10*$BL103)) -> 0 | DH103: =IF(DD103<=0,0,$C$42*($C$43-4*$C$19/10)*$C$19/10/($C$10*$BL103)) -> 0 | DI103: D_M | DJ103: | | DK103: =C45-4*$C$19/10 -> 0 | DL103: =IF(DK103>=0,$C$44*($C$19/10)^3/(3*$C$10*$BL103),IF(DK103>(-$C$19/10),$C$44*($C$45-4*$C$19/10)^3/(3*$C$10*$BL103)+$C$44*($C$45-4*$C$19/10)^2/(2*$C$10*$BL103)*ABS($C$45-4*$C$19/10),0)) ->  | DM103: =IF(DK103>=0,$C$44*($C$19/10)^2/(2*$C$10*$BL103),IF(DK103>(-$C$19/10),$C$44*($C$45-4*$C$19/10)^2/(2*$C$10*$BL103),0)) ->  | DN103: =IF(DK103<=0,0,$C$44*($C$45-4*$C$19/10)*($C$19/10)^2/(2*$C$10*$BL103)) -> 0 | DO103: =IF(DK103<=0,0,$C$44*($C$45-4*$C$19/10)*$C$19/10/($C$10*$BL103)) -> 0 | DP103: D_M | DQ103: | | DU103: =BK103*DR103*7*LC/20 ->  | DW103: =SUM(DR104:DR$109) ->  | DX103: =DW103*(LC/10)^2/(2*E*BL103) ->  | DZ103: =$C$19/20*(DR104+3*DR105+5*DR106+7*DR107+9*DR108+11*DR109) ->  | EE103: =SUM(ED$100:ED103)+$C$19/10*(EC100*3+EC101*2+EC102) -> 
BI104: =9*C19/20 -> 0 | BM104: | | BN104: =$C$31-5*$C$19/10 -> 0 | BO104: =IF(BN104>=0,$C$30*($C$19/10)^3/(3*$C$10*BL104),IF(BN104>(-$C$19/10),$C$30*($C$31-5*$C$19/10)^3/(3*$C$10*BL104)+$C$30*($C$31-5*$C$19/10)^2/(2*$C$10*BL104)*ABS($C$31-5*$C$19/10),0)) ->  | BP104: =IF(BN104>=0,$C$30*($C$19/10)^2/(2*$C$10*BL104),IF(BN104>(-$C$19/10),$C$30*($C$31-5*$C$19/10)^2/(2*$C$10*BL104),0)) ->  | BQ104: =IF(BN104<=0,0,$C$30*($C$31-5*$C$19/10)*($C$19/10)^2/(2*$C$10*BL104)) -> 0 | BR104: =IF(BN104<=0,0,$C$30*($C$31-5*$C$19/10)*$C$19/10/($C$10*BL104)) -> 0 | BS104: =SUM(BQ100:BQ109)+$C$19/10*(9*BR100+8*BR101+7*BR102+6*BR103+5*BR104+4*BR105+3*BR106+2*BR107+BR108) -> 0 | BT104: | | BU104: =$C$33-5*$C$19/10 -> 0 | BV104: =IF(BU104>=0,$C$32*($C$19/10)^3/(3*$C$10*BL104),IF(BU104>(-$C$19/10),$C$32*($C$33-5*$C$19/10)^3/(3*$C$10*BL104)+$C$32*($C$33-5*$C$19/10)^2/(2*$C$10*BL104)*ABS($C$33-5*$C$19/10),0)) ->  | BW104: =IF(BU104>=0,$C$32*($C$19/10)^2/(2*$C$10*BL104),IF(BU104>(-$C$19/10),$C$32*($C$33-5*$C$19/10)^2/(2*$C$10*BL104),0)) ->  | BX104: =IF(BU104<=0,0,$C$32*($C$33-5*$C$19/10)*($C$19/10)^2/(2*$C$10*BL104)) -> 0 | BY104: =IF(BU104<=0,0,$C$32*($C$33-5*$C$19/10)*$C$19/10/($C$10*BL104)) -> 0 | BZ104: =SUM(BX100:BX109)+$C$19/10*(9*BY100+8*BY101+7*BY102+6*BY103+5*BY104+4*BY105+3*BY106+2*BY107+BY108) -> 0 | CA104: | | CB104: =$C$35-5*$C$19/10 -> 0 | CC104: =IF(CB104>=0,$C$34*($C$19/10)^3/(3*$C$10*BL104),IF(CB104>(-$C$19/10),$C$34*($C$35-5*$C$19/10)^3/(3*$C$10*BL104)+$C$34*($C$35-5*$C$19/10)^2/(2*$C$10*BL104)*ABS($C$35-5*$C$19/10),0)) ->  | CD104: =IF(CB104>=0,$C$34*($C$19/10)^2/(2*$C$10*BL104),IF(CB104>(-$C$19/10),$C$34*($C$35-5*$C$19/10)^2/(2*$C$10*BL104),0)) ->  | CE104: =IF(CB104<=0,0,$C$34*($C$35-5*$C$19/10)*($C$19/10)^2/(2*$C$10*BL104)) -> 0 | CF104: =IF(CB104<=0,0,$C$34*($C$35-5*$C$19/10)*$C$19/10/($C$10*BL104)) -> 0 | CG104: =SUM(CE100:CE109)+$C$19/10*(9*CF100+8*CF101+7*CF102+6*CF103+5*CF104+4*CF105+3*CF106+2*CF107+CF108) -> 0 | CH104: | | CI104: =$C$37-5*$C$19/10 -> 0 | CJ104: =IF(CI104>=0,$C$36*($C$19/10)^3/(3*$C$10*BL104),IF(CI104>(-$C$19/10),$C$36*($C$37-5*$C$19/10)^3/(3*$C$10*BL104)+$C$36*($C$37-5*$C$19/10)^2/(2*$C$10*BL104)*ABS($C$37-5*$C$19/10),0)) ->  | CK104: =IF(CI104>=0,$C$36*($C$19/10)^2/(2*$C$10*BL104),IF(CI104>(-$C$19/10),$C$36*($C$37-5*$C$19/10)^2/(2*$C$10*BL104),0)) ->  | CL104: =IF(CI104<=0,0,$C$36*($C$37-5*$C$19/10)*($C$19/10)^2/(2*$C$10*BL104)) -> 0 | CM104: =IF(CI104<=0,0,$C$36*($C$37-5*$C$19/10)*$C$19/10/($C$10*BL104)) -> 0 | CN104: =SUM(CL100:CL109)+$C$19/10*(9*CM100+8*CM101+7*CM102+6*CM103+5*CM104+4*CM105+3*CM106+2*CM107+CM108) -> 0 | CO104: | | CP104: =$C$39-5*$C$19/10 -> 0 | CQ104: =IF(CP104>=0,$C$38*($C$19/10)^3/(3*$C$10*BL104),IF(CP104>(-$C$19/10),$C$38*($C$39-5*$C$19/10)^3/(3*$C$10*BL104)+$C$38*($C$39-5*$C$19/10)^2/(2*$C$10*BL104)*ABS($C$39-5*$C$19/10),0)) ->  | CR104: =IF(CP104>=0,$C$38*($C$19/10)^2/(2*$C$10*BL104),IF(CP104>(-$C$19/10),$C$38*($C$39-5*$C$19/10)^2/(2*$C$10*BL104),0)) ->  | CS104: =IF(CP104<=0,0,$C$38*($C$39-5*$C$19/10)*($C$19/10)^2/(2*$C$10*BL104)) -> 0 | CT104: =IF(CP104<=0,0,$C$38*($C$39-5*$C$19/10)*$C$19/10/($C$10*BL104)) -> 0 | CU104: =SUM(CS100:CS109)+$C$19/10*(9*CT100+8*CT101+7*CT102+6*CT103+5*CT104+4*CT105+3*CT106+2*CT107+CT108) -> 0 | CV104: | | CW104: =$C$41-5*$C$19/10 -> 0 | CX104: =IF(CW104>=0,$C$40*($C$19/10)^3/(3*$C$10*$BL104),IF(CW104>(-$C$19/10),$C$40*($C$41-5*$C$19/10)^3/(3*$C$10*$BL104)+$C$40*($C$41-5*$C$19/10)^2/(2*$C$10*$BL104)*ABS($C$41-5*$C$19/10),0)) ->  | CY104: =IF(CW104>=0,$C$40*($C$19/10)^2/(2*$C$10*$BL104),IF(CW104>(-$C$19/10),$C$40*($C$41-5*$C$19/10)^2/(2*$C$10*$BL104),0)) ->  | CZ104: =IF(CW104<=0,0,$C$40*($C$41-5*$C$19/10)*($C$19/10)^2/(2*$C$10*$BL104)) -> 0 | DA104: =IF(CW104<=0,0,$C$40*($C$41-5*$C$19/10)*$C$19/10/($C$10*$BL104)) -> 0 | DB104: =SUM(CZ100:CZ109)+$C$19/10*(9*DA100+8*DA101+7*DA102+6*DA103+5*DA104+4*DA105+3*DA106+2*DA107+DA108) -> 0 | DC104: | | DD104: =$C$43-5*$C$19/10 -> 0 | DE104: =IF(DD104>=0,$C$42*($C$19/10)^3/(3*$C$10*$BL104),IF(DD104>(-$C$19/10),$C$42*($C$43-5*$C$19/10)^3/(3*$C$10*$BL104)+$C$42*($C$43-5*$C$19/10)^2/(2*$C$10*$BL104)*ABS($C$43-5*$C$19/10),0)) ->  | DF104: =IF(DD104>=0,$C$42*($C$19/10)^2/(2*$C$10*$BL104),IF(DD104>(-$C$19/10),$C$42*($C$43-5*$C$19/10)^2/(2*$C$10*$BL104),0)) ->  | DG104: =IF(DD104<=0,0,$C$42*($C$43-5*$C$19/10)*($C$19/10)^2/(2*$C$10*$BL104)) -> 0 | DH104: =IF(DD104<=0,0,$C$42*($C$43-5*$C$19/10)*$C$19/10/($C$10*$BL104)) -> 0 | DI104: =SUM(DG100:DG109)+$C$19/10*(9*DH100+8*DH101+7*DH102+6*DH103+5*DH104+4*DH105+3*DH106+2*DH107+DH108) -> 0 | DJ104: | | DK104: =$C$45-5*$C$19/10 -> 0 | DL104: =IF(DK104>=0,$C$44*($C$19/10)^3/(3*$C$10*$BL104),IF(DK104>(-$C$19/10),$C$44*($C$45-5*$C$19/10)^3/(3*$C$10*$BL104)+$C$44*($C$45-5*$C$19/10)^2/(2*$C$10*$BL104)*ABS($C$45-5*$C$19/10),0)) ->  | DM104: =IF(DK104>=0,$C$44*($C$19/10)^2/(2*$C$10*$BL104),IF(DK104>(-$C$19/10),$C$44*($C$45-5*$C$19/10)^2/(2*$C$10*$BL104),0)) ->  | DN104: =IF(DK104<=0,0,$C$44*($C$45-5*$C$19/10)*($C$19/10)^2/(2*$C$10*$BL104)) -> 0 | DO104: =IF(DK104<=0,0,$C$44*($C$45-5*$C$19/10)*$C$19/10/($C$10*$BL104)) -> 0 | DP104: =SUM(DN100:DN109)+$C$19/10*(9*DO100+8*DO101+7*DO102+6*DO103+5*DO104+4*DO105+3*DO106+2*DO107+DO108) -> 0 | DQ104: | | DU104: =BK104*DR104*9*LC/20 ->  | DW104: =SUM(DR105:DR$109) ->  | DX104: =(DW104*(C19/10)^2)/(2*C10*BL104) ->  | DZ104: =$C$19/20*(DR105+3*DR106+5*DR107+7*DR108+9*DR109) ->  | EE104: =SUM(ED$100:ED104)+$C$19/10*(EC100*4+EC101*3+EC102*2+EC103) -> 
BI105: =11*C19/20 -> 0 | BM105: | | BN105: =$C$31-6*$C$19/10 -> 0 | BO105: =IF(BN105>=0,$C$30*($C$19/10)^3/(3*$C$10*BL105),IF(BN105>(-$C$19/10),$C$30*($C$31-6*$C$19/10)^3/(3*$C$10*BL105)+$C$30*($C$31-6*$C$19/10)^2/(2*$C$10*BL105)*ABS($C$31-6*$C$19/10),0)) ->  | BP105: =IF(BN105>=0,$C$30*($C$19/10)^2/(2*$C$10*BL105),IF(BN105>(-$C$19/10),$C$30*($C$31-6*$C$19/10)^2/(2*$C$10*BL105),0)) ->  | BQ105: =IF(BN105<=0,0,$C$30*($C$31-6*$C$19/10)*($C$19/10)^2/(2*$C$10*BL105)) -> 0 | BR105: =IF(BN105<=0,0,$C$30*($C$31-6*$C$19/10)*$C$19/10/($C$10*BL105)) -> 0 | BT105: | | BU105: =$C$33-6*$C$19/10 -> 0 | BV105: =IF(BU105>=0,$C$32*($C$19/10)^3/(3*$C$10*BL105),IF(BU105>(-$C$19/10),$C$32*($C$33-6*$C$19/10)^3/(3*$C$10*BL105)+$C$32*($C$33-6*$C$19/10)^2/(2*$C$10*BL105)*ABS($C$33-6*$C$19/10),0)) ->  | BW105: =IF(BU105>=0,$C$32*($C$19/10)^2/(2*$C$10*BL105),IF(BU105>(-$C$19/10),$C$32*($C$33-6*$C$19/10)^2/(2*$C$10*BL105),0)) ->  | BX105: =IF(BU105<=0,0,$C$32*($C$33-6*$C$19/10)*($C$19/10)^2/(2*$C$10*BL105)) -> 0 | BY105: =IF(BU105<=0,0,$C$32*($C$33-6*$C$19/10)*$C$19/10/($C$10*BL105)) -> 0 | CA105: | | CB105: =$C$35-6*$C$19/10 -> 0 | CC105: =IF(CB105>=0,$C$34*($C$19/10)^3/(3*$C$10*BL105),IF(CB105>(-$C$19/10),$C$34*($C$35-6*$C$19/10)^3/(3*$C$10*BL105)+$C$34*($C$35-6*$C$19/10)^2/(2*$C$10*BL105)*ABS($C$35-6*$C$19/10),0)) ->  | CD105: =IF(CB105>=0,$C$34*($C$19/10)^2/(2*$C$10*BL105),IF(CB105>(-$C$19/10),$C$34*($C$35-6*$C$19/10)^2/(2*$C$10*BL105),0)) ->  | CE105: =IF(CB105<=0,0,$C$34*($C$35-6*$C$19/10)*($C$19/10)^2/(2*$C$10*BL105)) -> 0 | CF105: =IF(CB105<=0,0,$C$34*($C$35-6*$C$19/10)*$C$19/10/($C$10*BL105)) -> 0 | CH105: | | CI105: =$C$37-6*$C$19/10 -> 0 | CJ105: =IF(CI105>=0,$C$36*($C$19/10)^3/(3*$C$10*BL105),IF(CI105>(-$C$19/10),$C$36*($C$37-6*$C$19/10)^3/(3*$C$10*BL105)+$C$36*($C$37-6*$C$19/10)^2/(2*$C$10*BL105)*ABS($C$37-6*$C$19/10),0)) ->  | CK105: =IF(CI105>=0,$C$36*($C$19/10)^2/(2*$C$10*BL105),IF(CI105>(-$C$19/10),$C$36*($C$37-6*$C$19/10)^2/(2*$C$10*BL105),0)) ->  | CL105: =IF(CI105<=0,0,$C$36*($C$37-6*$C$19/10)*($C$19/10)^2/(2*$C$10*BL105)) -> 0 | CM105: =IF(CI105<=0,0,$C$36*($C$37-6*$C$19/10)*$C$19/10/($C$10*BL105)) -> 0 | CO105: | | CP105: =$C$39-6*$C$19/10 -> 0 | CQ105: =IF(CP105>=0,$C$38*($C$19/10)^3/(3*$C$10*BL105),IF(CP105>(-$C$19/10),$C$38*($C$39-6*$C$19/10)^3/(3*$C$10*BL105)+$C$38*($C$39-6*$C$19/10)^2/(2*$C$10*BL105)*ABS($C$39-6*$C$19/10),0)) ->  | CR105: =IF(CP105>=0,$C$38*($C$19/10)^2/(2*$C$10*BL105),IF(CP105>(-$C$19/10),$C$38*($C$39-6*$C$19/10)^2/(2*$C$10*BL105),0)) ->  | CS105: =IF(CP105<=0,0,$C$38*($C$39-6*$C$19/10)*($C$19/10)^2/(2*$C$10*BL105)) -> 0 | CT105: =IF(CP105<=0,0,$C$38*($C$39-6*$C$19/10)*$C$19/10/($C$10*BL105)) -> 0 | CV105: | | CW105: =$C$41-6*$C$19/10 -> 0 | CX105: =IF(CW105>=0,$C$40*($C$19/10)^3/(3*$C$10*$BL105),IF(CW105>(-$C$19/10),$C$40*($C$41-6*$C$19/10)^3/(3*$C$10*$BL105)+$C$40*($C$41-6*$C$19/10)^2/(2*$C$10*$BL105)*ABS($C$41-6*$C$19/10),0)) ->  | CY105: =IF(CW105>=0,$C$40*($C$19/10)^2/(2*$C$10*$BL105),IF(CW105>(-$C$19/10),$C$40*($C$41-6*$C$19/10)^2/(2*$C$10*$BL105),0)) ->  | CZ105: =IF(CW105<=0,0,$C$40*($C$41-6*$C$19/10)*($C$19/10)^2/(2*$C$10*$BL105)) -> 0 | DA105: =IF(CW105<=0,0,$C$40*($C$41-6*$C$19/10)*$C$19/10/($C$10*$BL105)) -> 0 | DC105: | | DD105: =$C$43-6*$C$19/10 -> 0 | DE105: =IF(DD105>=0,$C$42*($C$19/10)^3/(3*$C$10*$BL105),IF(DD105>(-$C$19/10),$C$42*($C$43-6*$C$19/10)^3/(3*$C$10*$BL105)+$C$42*($C$43-6*$C$19/10)^2/(2*$C$10*$BL105)*ABS($C$43-6*$C$19/10),0)) ->  | DF105: =IF(DD105>=0,$C$42*($C$19/10)^2/(2*$C$10*$BL105),IF(DD105>(-$C$19/10),$C$42*($C$43-6*$C$19/10)^2/(2*$C$10*$BL105),0)) ->  | DG105: =IF(DD105<=0,0,$C$42*($C$43-6*$C$19/10)*($C$19/10)^2/(2*$C$10*$BL105)) -> 0 | DH105: =IF(DD105<=0,0,$C$42*($C$43-6*$C$19/10)*$C$19/10/($C$10*$BL105)) -> 0 | DJ105: | | DK105: =$C$45-6*$C$19/10 -> 0 | DL105: =IF(DK105>=0,$C$44*($C$19/10)^3/(3*$C$10*$BL105),IF(DK105>(-$C$19/10),$C$44*($C$45-6*$C$19/10)^3/(3*$C$10*$BL105)+$C$44*($C$45-6*$C$19/10)^2/(2*$C$10*$BL105)*ABS($C$45-6*$C$19/10),0)) ->  | DM105: =IF(DK105>=0,$C$44*($C$19/10)^2/(2*$C$10*$BL105),IF(DK105>(-$C$19/10),$C$44*($C$45-6*$C$19/10)^2/(2*$C$10*$BL105),0)) ->  | DN105: =IF(DK105<=0,0,$C$44*($C$45-6*$C$19/10)*($C$19/10)^2/(2*$C$10*$BL105)) -> 0 | DO105: =IF(DK105<=0,0,$C$44*($C$45-6*$C$19/10)*$C$19/10/($C$10*$BL105)) -> 0 | DQ105: | | DU105: =BK105*DR105*11*LC/20 ->  | DW105: =SUM(DR106:DR$109) ->  | DX105: =DW105*(LC/10)^2/(2*E*BL105) ->  | DZ105: =$C$19/20*(DR106+3*DR107+5*DR108+7*DR109) ->  | EE105: =SUM(ED$100:ED105)+$C$19/10*(EC100*5+EC101*4+EC102*3+EC103*2+EC104) -> 
BI106: =13*C19/20 -> 0 | BM106: | | BN106: =$C$31-7*$C$19/10 -> 0 | BO106: =IF(BN106>=0,$C$30*($C$19/10)^3/(3*$C$10*BL106),IF(BN106>(-$C$19/10),$C$30*($C$31-7*$C$19/10)^3/(3*$C$10*BL106)+$C$30*($C$31-7*$C$19/10)^2/(2*$C$10*BL106)*ABS($C$31-7*$C$19/10),0)) ->  | BP106: =IF(BN106>=0,$C$30*($C$19/10)^2/(2*$C$10*BL106),IF(BN106>(-$C$19/10),$C$30*($C$31-7*$C$19/10)^2/(2*$C$10*BL106),0)) ->  | BQ106: =IF(BN106<=0,0,$C$30*($C$31-7*$C$19/10)*($C$19/10)^2/(2*$C$10*BL106)) -> 0 | BR106: =IF(BN106<=0,0,$C$30*($C$31-7*$C$19/10)*$C$19/10/($C$10*BL106)) -> 0 | BS106: D1 | BT106: | | BU106: =$C$33-7*$C$19/10 -> 0 | BV106: =IF(BU106>=0,$C$32*($C$19/10)^3/(3*$C$10*BL106),IF(BU106>(-$C$19/10),$C$32*($C$33-7*$C$19/10)^3/(3*$C$10*BL106)+$C$32*($C$33-7*$C$19/10)^2/(2*$C$10*BL106)*ABS($C$33-7*$C$19/10),0)) ->  | BW106: =IF(BU106>=0,$C$32*($C$19/10)^2/(2*$C$10*BL106),IF(BU106>(-$C$19/10),$C$32*($C$33-7*$C$19/10)^2/(2*$C$10*BL106),0)) ->  | BX106: =IF(BU106<=0,0,$C$32*($C$33-7*$C$19/10)*($C$19/10)^2/(2*$C$10*BL106)) -> 0 | BY106: =IF(BU106<=0,0,$C$32*($C$33-7*$C$19/10)*$C$19/10/($C$10*BL106)) -> 0 | BZ106: D2 | CA106: | | CB106: =$C$35-7*$C$19/10 -> 0 | CC106: =IF(CB106>=0,$C$34*($C$19/10)^3/(3*$C$10*BL106),IF(CB106>(-$C$19/10),$C$34*($C$35-7*$C$19/10)^3/(3*$C$10*BL106)+$C$34*($C$35-7*$C$19/10)^2/(2*$C$10*BL106)*ABS($C$35-7*$C$19/10),0)) ->  | CD106: =IF(CB106>=0,$C$34*($C$19/10)^2/(2*$C$10*BL106),IF(CB106>(-$C$19/10),$C$34*($C$35-7*$C$19/10)^2/(2*$C$10*BL106),0)) ->  | CE106: =IF(CB106<=0,0,$C$34*($C$35-7*$C$19/10)*($C$19/10)^2/(2*$C$10*BL106)) -> 0 | CF106: =IF(CB106<=0,0,$C$34*($C$35-7*$C$19/10)*$C$19/10/($C$10*BL106)) -> 0 | CG106: D3 | CH106: | | CI106: =$C$37-7*$C$19/10 -> 0 | CJ106: =IF(CI106>=0,$C$36*($C$19/10)^3/(3*$C$10*BL106),IF(CI106>(-$C$19/10),$C$36*($C$37-7*$C$19/10)^3/(3*$C$10*BL106)+$C$36*($C$37-7*$C$19/10)^2/(2*$C$10*BL106)*ABS($C$37-7*$C$19/10),0)) ->  | CK106: =IF(CI106>=0,$C$36*($C$19/10)^2/(2*$C$10*BL106),IF(CI106>(-$C$19/10),$C$36*($C$37-7*$C$19/10)^2/(2*$C$10*BL106),0)) ->  | CL106: =IF(CI106<=0,0,$C$36*($C$37-7*$C$19/10)*($C$19/10)^2/(2*$C$10*BL106)) -> 0 | CM106: =IF(CI106<=0,0,$C$36*($C$37-7*$C$19/10)*$C$19/10/($C$10*BL106)) -> 0 | CN106: D4 | CO106: | | CP106: =$C$39-7*$C$19/10 -> 0 | CQ106: =IF(CP106>=0,$C$38*($C$19/10)^3/(3*$C$10*BL106),IF(CP106>(-$C$19/10),$C$38*($C$39-7*$C$19/10)^3/(3*$C$10*BL106)+$C$38*($C$39-7*$C$19/10)^2/(2*$C$10*BL106)*ABS($C$39-7*$C$19/10),0)) ->  | CR106: =IF(CP106>=0,$C$38*($C$19/10)^2/(2*$C$10*BL106),IF(CP106>(-$C$19/10),$C$38*($C$39-7*$C$19/10)^2/(2*$C$10*BL106),0)) ->  | CS106: =IF(CP106<=0,0,$C$38*($C$39-7*$C$19/10)*($C$19/10)^2/(2*$C$10*BL106)) -> 0 | CT106: =IF(CP106<=0,0,$C$38*($C$39-7*$C$19/10)*$C$19/10/($C$10*BL106)) -> 0 | CU106: D5 | CV106: | | CW106: =$C$41-7*$C$19/10 -> 0 | CX106: =IF(CW106>=0,$C$40*($C$19/10)^3/(3*$C$10*$BL106),IF(CW106>(-$C$19/10),$C$40*($C$41-7*$C$19/10)^3/(3*$C$10*$BL106)+$C$40*($C$41-7*$C$19/10)^2/(2*$C$10*$BL106)*ABS($C$41-7*$C$19/10),0)) ->  | CY106: =IF(CW106>=0,$C$40*($C$19/10)^2/(2*$C$10*$BL106),IF(CW106>(-$C$19/10),$C$40*($C$41-7*$C$19/10)^2/(2*$C$10*$BL106),0)) ->  | CZ106: =IF(CW106<=0,0,$C$40*($C$41-7*$C$19/10)*($C$19/10)^2/(2*$C$10*$BL106)) -> 0 | DA106: =IF(CW106<=0,0,$C$40*($C$41-7*$C$19/10)*$C$19/10/($C$10*$BL106)) -> 0 | DB106: D6 | DC106: | | DD106: =$C$43-7*$C$19/10 -> 0 | DE106: =IF(DD106>=0,$C$42*($C$19/10)^3/(3*$C$10*$BL106),IF(DD106>(-$C$19/10),$C$42*($C$43-7*$C$19/10)^3/(3*$C$10*$BL106)+$C$42*($C$43-7*$C$19/10)^2/(2*$C$10*$BL106)*ABS($C$43-7*$C$19/10),0)) ->  | DF106: =IF(DD106>=0,$C$42*($C$19/10)^2/(2*$C$10*$BL106),IF(DD106>(-$C$19/10),$C$42*($C$43-7*$C$19/10)^2/(2*$C$10*$BL106),0)) ->  | DG106: =IF(DD106<=0,0,$C$42*($C$43-7*$C$19/10)*($C$19/10)^2/(2*$C$10*$BL106)) -> 0 | DH106: =IF(DD106<=0,0,$C$42*($C$43-7*$C$19/10)*$C$19/10/($C$10*$BL106)) -> 0 | DI106: D7 | DJ106: | | DK106: =$C$45-7*$C$19/10 -> 0 | DL106: =IF(DK106>=0,$C$44*($C$19/10)^3/(3*$C$10*$BL106),IF(DK106>(-$C$19/10),$C$44*($C$45-7*$C$19/10)^3/(3*$C$10*$BL106)+$C$44*($C$45-7*$C$19/10)^2/(2*$C$10*$BL106)*ABS($C$45-7*$C$19/10),0)) ->  | DM106: =IF(DK106>=0,$C$44*($C$19/10)^2/(2*$C$10*$BL106),IF(DK106>(-$C$19/10),$C$44*($C$45-7*$C$19/10)^2/(2*$C$10*$BL106),0)) ->  | DN106: =IF(DK106<=0,0,$C$44*($C$45-7*$C$19/10)*($C$19/10)^2/(2*$C$10*$BL106)) -> 0 | DO106: =IF(DK106<=0,0,$C$44*($C$45-7*$C$19/10)*$C$19/10/($C$10*$BL106)) -> 0 | DP106: D8 | DQ106: | | DU106: =BK106*DR106*13*LC/20 ->  | DW106: =SUM(DR107:DR$109) ->  | DX106: =DW106*(LC/10)^2/(2*E*BL106) ->  | DZ106: =$C$19/20*(DR107+3*DR108+5*DR109) ->  | EE106: =SUM(ED$100:ED106)+$C$19/10*(EC100*6+EC101*5+EC102*4+EC103*3+EC104*2+EC105) -> 
BI107: =15*C19/20 -> 0 | BM107: | | BN107: =$C$31-8*$C$19/10 -> 0 | BO107: =IF(BN107>=0,$C$30*($C$19/10)^3/(3*$C$10*BL107),IF(BN107>(-$C$19/10),$C$30*($C$31-8*$C$19/10)^3/(3*$C$10*BL107)+$C$30*($C$31-8*$C$19/10)^2/(2*$C$10*BL107)*ABS($C$31-8*$C$19/10),0)) ->  | BP107: =IF(BN107>=0,$C$30*($C$19/10)^2/(2*$C$10*BL107),IF(BN107>(-$C$19/10),$C$30*($C$31-8*$C$19/10)^2/(2*$C$10*BL107),0)) ->  | BQ107: =IF(BN107<=0,0,$C$30*($C$31-8*$C$19/10)*($C$19/10)^2/(2*$C$10*BL107)) -> 0 | BR107: =IF(BN107<=0,0,$C$30*($C$31-8*$C$19/10)*$C$19/10/($C$10*BL107)) -> 0 | BS107: =BS101+BS104 ->  | BT107: | | BU107: =$C$33-8*$C$19/10 -> 0 | BV107: =IF(BU107>=0,$C$32*($C$19/10)^3/(3*$C$10*BL107),IF(BU107>(-$C$19/10),$C$32*($C$33-8*$C$19/10)^3/(3*$C$10*BL107)+$C$32*($C$33-8*$C$19/10)^2/(2*$C$10*BL107)*ABS($C$33-8*$C$19/10),0)) ->  | BW107: =IF(BU107>=0,$C$32*($C$19/10)^2/(2*$C$10*BL107),IF(BU107>(-$C$19/10),$C$32*($C$33-8*$C$19/10)^2/(2*$C$10*BL107),0)) ->  | BX107: =IF(BU107<=0,0,$C$32*($C$33-8*$C$19/10)*($C$19/10)^2/(2*$C$10*BL107)) -> 0 | BY107: =IF(BU107<=0,0,$C$32*($C$33-8*$C$19/10)*$C$19/10/($C$10*BL107)) -> 0 | BZ107: =BZ101+BZ104 ->  | CA107: | | CB107: =$C$35-8*$C$19/10 -> 0 | CC107: =IF(CB107>=0,$C$34*($C$19/10)^3/(3*$C$10*BL107),IF(CB107>(-$C$19/10),$C$34*($C$35-8*$C$19/10)^3/(3*$C$10*BL107)+$C$34*($C$35-8*$C$19/10)^2/(2*$C$10*BL107)*ABS($C$35-8*$C$19/10),0)) ->  | CD107: =IF(CB107>=0,$C$34*($C$19/10)^2/(2*$C$10*BL107),IF(CB107>(-$C$19/10),$C$34*($C$35-8*$C$19/10)^2/(2*$C$10*BL107),0)) ->  | CE107: =IF(CB107<=0,0,$C$34*($C$35-8*$C$19/10)*($C$19/10)^2/(2*$C$10*BL107)) -> 0 | CF107: =IF(CB107<=0,0,$C$34*($C$35-8*$C$19/10)*$C$19/10/($C$10*BL107)) -> 0 | CG107: =CG101+CG104 ->  | CH107: | | CI107: =$C$37-8*$C$19/10 -> 0 | CJ107: =IF(CI107>=0,$C$36*($C$19/10)^3/(3*$C$10*BL107),IF(CI107>(-$C$19/10),$C$36*($C$37-8*$C$19/10)^3/(3*$C$10*BL107)+$C$36*($C$37-8*$C$19/10)^2/(2*$C$10*BL107)*ABS($C$37-8*$C$19/10),0)) ->  | CK107: =IF(CI107>=0,$C$36*($C$19/10)^2/(2*$C$10*BL107),IF(CI107>(-$C$19/10),$C$36*($C$37-8*$C$19/10)^2/(2*$C$10*BL107),0)) ->  | CL107: =IF(CI107<=0,0,$C$36*($C$37-8*$C$19/10)*($C$19/10)^2/(2*$C$10*BL107)) -> 0 | CM107: =IF(CI107<=0,0,$C$36*($C$37-8*$C$19/10)*$C$19/10/($C$10*BL107)) -> 0 | CN107: =CN101+CN104 ->  | CO107: | | CP107: =$C$39-8*$C$19/10 -> 0 | CQ107: =IF(CP107>=0,$C$38*($C$19/10)^3/(3*$C$10*BL107),IF(CP107>(-$C$19/10),$C$38*($C$39-8*$C$19/10)^3/(3*$C$10*BL107)+$C$38*($C$39-8*$C$19/10)^2/(2*$C$10*BL107)*ABS($C$39-8*$C$19/10),0)) ->  | CR107: =IF(CP107>=0,$C$38*($C$19/10)^2/(2*$C$10*BL107),IF(CP107>(-$C$19/10),$C$38*($C$39-8*$C$19/10)^2/(2*$C$10*BL107),0)) ->  | CS107: =IF(CP107<=0,0,$C$38*($C$39-8*$C$19/10)*($C$19/10)^2/(2*$C$10*BL107)) -> 0 | CT107: =IF(CP107<=0,0,$C$38*($C$39-8*$C$19/10)*$C$19/10/($C$10*BL107)) -> 0 | CU107: =CU101+CU104 ->  | CV107: | | CW107: =$C$41-8*$C$19/10 -> 0 | CX107: =IF(CW107>=0,$C$40*($C$19/10)^3/(3*$C$10*$BL107),IF(CW107>(-$C$19/10),$C$40*($C$41-8*$C$19/10)^3/(3*$C$10*$BL107)+$C$40*($C$41-8*$C$19/10)^2/(2*$C$10*$BL107)*ABS($C$41-8*$C$19/10),0)) ->  | CY107: =IF(CW107>=0,$C$40*($C$19/10)^2/(2*$C$10*$BL107),IF(CW107>(-$C$19/10),$C$40*($C$41-8*$C$19/10)^2/(2*$C$10*$BL107),0)) ->  | CZ107: =IF(CW107<=0,0,$C$40*($C$41-8*$C$19/10)*($C$19/10)^2/(2*$C$10*$BL107)) -> 0 | DA107: =IF(CW107<=0,0,$C$40*($C$41-8*$C$19/10)*$C$19/10/($C$10*$BL107)) -> 0 | DB107: =DB101+DB104 ->  | DC107: | | DD107: =$C$43-8*$C$19/10 -> 0 | DE107: =IF(DD107>=0,$C$42*($C$19/10)^3/(3*$C$10*$BL107),IF(DD107>(-$C$19/10),$C$42*($C$43-8*$C$19/10)^3/(3*$C$10*$BL107)+$C$42*($C$43-8*$C$19/10)^2/(2*$C$10*$BL107)*ABS($C$43-8*$C$19/10),0)) ->  | DF107: =IF(DD107>=0,$C$42*($C$19/10)^2/(2*$C$10*$BL107),IF(DD107>(-$C$19/10),$C$42*($C$43-8*$C$19/10)^2/(2*$C$10*$BL107),0)) ->  | DG107: =IF(DD107<=0,0,$C$42*($C$43-8*$C$19/10)*($C$19/10)^2/(2*$C$10*$BL107)) -> 0 | DH107: =IF(DD107<=0,0,$C$42*($C$43-8*$C$19/10)*$C$19/10/($C$10*$BL107)) -> 0 | DI107: =DI101+DI104 ->  | DJ107: | | DK107: =$C$45-8*$C$19/10 -> 0 | DL107: =IF(DK107>=0,$C$44*($C$19/10)^3/(3*$C$10*$BL107),IF(DK107>(-$C$19/10),$C$44*($C$45-8*$C$19/10)^3/(3*$C$10*$BL107)+$C$44*($C$45-8*$C$19/10)^2/(2*$C$10*$BL107)*ABS($C$45-8*$C$19/10),0)) ->  | DM107: =IF(DK107>=0,$C$44*($C$19/10)^2/(2*$C$10*$BL107),IF(DK107>(-$C$19/10),$C$44*($C$45-8*$C$19/10)^2/(2*$C$10*$BL107),0)) ->  | DN107: =IF(DK107<=0,0,$C$44*($C$45-8*$C$19/10)*($C$19/10)^2/(2*$C$10*$BL107)) -> 0 | DO107: =IF(DK107<=0,0,$C$44*($C$45-8*$C$19/10)*$C$19/10/($C$10*$BL107)) -> 0 | DP107: =DP101+DP104 ->  | DQ107: | | DU107: =BK107*DR107*15*LC/20 ->  | DW107: =SUM(DR108:DR$109) ->  | DX107: =DW107*(LC/10)^2/(2*E*BL107) ->  | DZ107: =$C$19/20*(DR108+3*DR109) ->  | EE107: =SUM(ED$100:ED107)+$C$19/10*(EC100*7+EC101*6+EC102*5+EC103*4+EC104*3+EC105*2+EC106) -> 
BI108: =17*C19/20 -> 0 | BM108: | | BN108: =$C$31-9*$C$19/10 -> 0 | BO108: =IF(BN108>=0,$C$30*($C$19/10)^3/(3*$C$10*BL108),IF(BN108>(-$C$19/10),$C$30*($C$31-9*$C$19/10)^3/(3*$C$10*BL108)+$C$30*($C$31-9*$C$19/10)^2/(2*$C$10*BL108)*ABS($C$31-9*$C$19/10),0)) ->  | BP108: =IF(BN108>=0,$C$30*($C$19/10)^2/(2*$C$10*BL108),IF(BN108>(-$C$19/10),$C$30*($C$31-9*$C$19/10)^2/(2*$C$10*BL108),0)) ->  | BQ108: =IF(BN108<=0,0,$C$30*($C$31-9*$C$19/10)*($C$19/10)^2/(2*$C$10*BL108)) -> 0 | BR108: =IF(BN108<=0,0,$C$30*($C$31-9*$C$19/10)*$C$19/10/($C$10*BL108)) -> 0 | BT108: | | BU108: =$C$33-9*$C$19/10 -> 0 | BV108: =IF(BU108>=0,$C$32*($C$19/10)^3/(3*$C$10*BL108),IF(BU108>(-$C$19/10),$C$32*($C$33-9*$C$19/10)^3/(3*$C$10*BL108)+$C$32*($C$33-9*$C$19/10)^2/(2*$C$10*BL108)*ABS($C$33-9*$C$19/10),0)) ->  | BW108: =IF(BU108>=0,$C$32*($C$19/10)^2/(2*$C$10*BL108),IF(BU108>(-$C$19/10),$C$32*($C$33-9*$C$19/10)^2/(2*$C$10*BL108),0)) ->  | BX108: =IF(BU108<=0,0,$C$32*($C$33-9*$C$19/10)*($C$19/10)^2/(2*$C$10*BL108)) -> 0 | BY108: =IF(BU108<=0,0,$C$32*($C$33-9*$C$19/10)*$C$19/10/($C$10*BL108)) -> 0 | CA108: | | CB108: =$C$35-9*$C$19/10 -> 0 | CC108: =IF(CB108>=0,$C$34*($C$19/10)^3/(3*$C$10*BL108),IF(CB108>(-$C$19/10),$C$34*($C$35-9*$C$19/10)^3/(3*$C$10*BL108)+$C$34*($C$35-9*$C$19/10)^2/(2*$C$10*BL108)*ABS($C$35-9*$C$19/10),0)) ->  | CD108: =IF(CB108>=0,$C$34*($C$19/10)^2/(2*$C$10*BL108),IF(CB108>(-$C$19/10),$C$34*($C$35-9*$C$19/10)^2/(2*$C$10*BL108),0)) ->  | CE108: =IF(CB108<=0,0,$C$34*($C$35-9*$C$19/10)*($C$19/10)^2/(2*$C$10*BL108)) -> 0 | CF108: =IF(CB108<=0,0,$C$34*($C$35-9*$C$19/10)*$C$19/10/($C$10*BL108)) -> 0 | CH108: | | CI108: =$C$37-9*$C$19/10 -> 0 | CJ108: =IF(CI108>=0,$C$36*($C$19/10)^3/(3*$C$10*BL108),IF(CI108>(-$C$19/10),$C$36*($C$37-9*$C$19/10)^3/(3*$C$10*BL108)+$C$36*($C$37-9*$C$19/10)^2/(2*$C$10*BL108)*ABS($C$37-9*$C$19/10),0)) ->  | CK108: =IF(CI108>=0,$C$36*($C$19/10)^2/(2*$C$10*BL108),IF(CI108>(-$C$19/10),$C$36*($C$37-9*$C$19/10)^2/(2*$C$10*BL108),0)) ->  | CL108: =IF(CI108<=0,0,$C$36*($C$37-9*$C$19/10)*($C$19/10)^2/(2*$C$10*BL108)) -> 0 | CM108: =IF(CI108<=0,0,$C$36*($C$37-9*$C$19/10)*$C$19/10/($C$10*BL108)) -> 0 | CO108: | | CP108: =$C$39-9*$C$19/10 -> 0 | CQ108: =IF(CP108>=0,$C$38*($C$19/10)^3/(3*$C$10*BL108),IF(CP108>(-$C$19/10),$C$38*($C$39-9*$C$19/10)^3/(3*$C$10*BL108)+$C$38*($C$39-9*$C$19/10)^2/(2*$C$10*BL108)*ABS($C$39-9*$C$19/10),0)) ->  | CR108: =IF(CP108>=0,$C$38*($C$19/10)^2/(2*$C$10*BL108),IF(CP108>(-$C$19/10),$C$38*($C$39-9*$C$19/10)^2/(2*$C$10*BL108),0)) ->  | CS108: =IF(CP108<=0,0,$C$38*($C$39-9*$C$19/10)*($C$19/10)^2/(2*$C$10*BL108)) -> 0 | CT108: =IF(CP108<=0,0,$C$38*($C$39-9*$C$19/10)*$C$19/10/($C$10*BL108)) -> 0 | CV108: | | CW108: =$C$41-9*$C$19/10 -> 0 | CX108: =IF(CW108>=0,$C$40*($C$19/10)^3/(3*$C$10*$BL108),IF(CW108>(-$C$19/10),$C$40*($C$41-9*$C$19/10)^3/(3*$C$10*$BL108)+$C$40*($C$41-9*$C$19/10)^2/(2*$C$10*$BL108)*ABS($C$41-9*$C$19/10),0)) ->  | CY108: =IF(CW108>=0,$C$40*($C$19/10)^2/(2*$C$10*$BL108),IF(CW108>(-$C$19/10),$C$40*($C$41-9*$C$19/10)^2/(2*$C$10*$BL108),0)) ->  | CZ108: =IF(CW108<=0,0,$C$40*($C$41-9*$C$19/10)*($C$19/10)^2/(2*$C$10*$BL108)) -> 0 | DA108: =IF(CW108<=0,0,$C$40*($C$41-9*$C$19/10)*$C$19/10/($C$10*$BL108)) -> 0 | DC108: | | DD108: =$C$43-9*$C$19/10 -> 0 | DE108: =IF(DD108>=0,$C$42*($C$19/10)^3/(3*$C$10*$BL108),IF(DD108>(-$C$19/10),$C$42*($C$43-9*$C$19/10)^3/(3*$C$10*$BL108)+$C$42*($C$41-9*$C$19/10)^2/(2*$C$10*$BL108)*ABS($C$43-9*$C$19/10),0)) ->  | DF108: =IF(DD108>=0,$C$42*($C$19/10)^2/(2*$C$10*$BL108),IF(DD108>(-$C$19/10),$C$42*($C$43-9*$C$19/10)^2/(2*$C$10*$BL108),0)) ->  | DG108: =IF(DD108<=0,0,$C$42*($C$43-9*$C$19/10)*($C$19/10)^2/(2*$C$10*$BL108)) -> 0 | DH108: =IF(DD108<=0,0,$C$42*($C$43-9*$C$19/10)*$C$19/10/($C$10*$BL108)) -> 0 | DJ108: | | DK108: =$C$45-9*$C$19/10 -> 0 | DL108: =IF(DK108>=0,$C$44*($C$19/10)^3/(3*$C$10*$BL108),IF(DK108>(-$C$19/10),$C$44*($C$45-9*$C$19/10)^3/(3*$C$10*$BL108)+$C$44*($C$45-9*$C$19/10)^2/(2*$C$10*$BL108)*ABS($C$45-9*$C$19/10),0)) ->  | DM108: =IF(DK108>=0,$C$44*($C$19/10)^2/(2*$C$10*$BL108),IF(DK108>(-$C$19/10),$C$44*($C$45-9*$C$19/10)^2/(2*$C$10*$BL108),0)) ->  | DN108: =IF(DK108<=0,0,$C$44*($C$45-9*$C$19/10)*($C$19/10)^2/(2*$C$10*$BL108)) -> 0 | DO108: =IF(DK108<=0,0,$C$44*($C$45-9*$C$19/10)*$C$19/10/($C$10*$BL108)) -> 0 | DQ108: | | DU108: =BK108*DR108*17*LC/20 ->  | DW108: =SUM(DR$109) ->  | DX108: =DW108*(LC/10)^2/(2*E*BL108) ->  | DZ108: =$C$19/20*(DR109) ->  | EE108: =SUM(ED$100:ED108)+$C$19/10*(EC100*8+EC101*7+EC102*6+EC103*5+EC104*4+EC105*3+EC106*2+EC107) -> 
BI109: =19*C19/20 -> 0 | BM109: | | BN109: =$C$31-10*$C$19/10 -> 0 | BO109: =IF(BN109>=0,$C$30*($C$19/10)^3/(3*$C$10*BL109),IF(BN109>(-$C$19/10),$C$30*($C$31-10*$C$19/10)^3/(3*$C$10*BL109)+$C$30*($C$31-10*$C$19/10)^2/(2*$C$10*BL109)*ABS($C$31-10*$C$19/10),0)) ->  | BP109: =IF(BN109>=0,$C$30*($C$19/10)^2/(2*$C$10*BL109),IF(BN109>(-$C$19/10),$C$30*($C$31-10*$C$19/10)^2/(2*$C$10*BL109),0)) ->  | BQ109: =IF(BN109<=0,0,$C$30*($C$31-10*$C$19/10)*($C$19/10)^2/(2*$C$10*BL109)) -> 0 | BR109: =IF(BN109<=0,0,$C$30*($C$31-10*$C$19/10)*$C$19/10/($C$10*BL109)) -> 0 | BT109: | | BU109: =$C$33-10*$C$19/10 -> 0 | BV109: =IF(BU109>=0,$C$32*($C$19/10)^3/(3*$C$10*BL109),IF(BU109>(-$C$19/10),$C$32*($C$33-10*$C$19/10)^3/(3*$C$10*BL109)+$C$32*($C$33-10*$C$19/10)^2/(2*$C$10*BL109)*ABS($C$33-10*$C$19/10),0)) ->  | BW109: =IF(BU109>=0,$C$32*($C$19/10)^2/(2*$C$10*BL109),IF(BU109>(-$C$19/10),$C$32*($C$33-10*$C$19/10)^2/(2*$C$10*BL109),0)) ->  | BX109: =IF(BU109<=0,0,$C$32*($C$33-10*$C$19/10)*($C$19/10)^2/(2*$C$10*BL109)) -> 0 | BY109: =IF(BU109<=0,0,$C$32*($C$33-10*$C$19/10)*$C$19/10/($C$10*BL109)) -> 0 | CA109: | | CB109: =$C$35-10*$C$19/10 -> 0 | CC109: =IF(CB109>=0,$C$34*($C$19/10)^3/(3*$C$10*BL109),IF(CB109>(-$C$19/10),$C$34*($C$35-10*$C$19/10)^3/(3*$C$10*BL109)+$C$34*($C$35-10*$C$19/10)^2/(2*$C$10*BL109)*ABS($C$35-10*$C$19/10),0)) ->  | CD109: =IF(CB109>=0,$C$34*($C$19/10)^2/(2*$C$10*BL109),IF(CB109>(-$C$19/10),$C$34*($C$35-10*$C$19/10)^2/(2*$C$10*BL109),0)) ->  | CE109: =IF(CB109<=0,0,$C$34*($C$35-10*$C$19/10)*($C$19/10)^2/(2*$C$10*BL109)) -> 0 | CF109: =IF(CB109<=0,0,$C$34*($C$35-10*$C$19/10)*$C$19/10/($C$10*BL109)) -> 0 | CH109: | | CI109: =$C$37-10*$C$19/10 -> 0 | CJ109: =IF(CI109>=0,$C$36*($C$19/10)^3/(3*$C$10*BL109),IF(CI109>(-$C$19/10),$C$36*($C$37-10*$C$19/10)^3/(3*$C$10*BL109)+$C$36*($C$37-10*$C$19/10)^2/(2*$C$10*BL109)*ABS($C$37-10*$C$19/10),0)) ->  | CK109: =IF(CI109>=0,$C$36*($C$19/10)^2/(2*$C$10*BL109),IF(CI109>(-$C$19/10),$C$36*($C$37-10*$C$19/10)^2/(2*$C$10*BL109),0)) ->  | CL109: =IF(CI109<=0,0,$C$36*($C$37-10*$C$19/10)*($C$19/10)^2/(2*$C$10*BL109)) -> 0 | CM109: =IF(CI109<=0,0,$C$36*($C$37-10*$C$19/10)*$C$19/10/($C$10*BL109)) -> 0 | CO109: | | CP109: =$C$39-10*$C$19/10 -> 0 | CQ109: =IF(CP109>=0,$C$38*($C$19/10)^3/(3*$C$10*BL109),IF(CP109>(-$C$19/10),$C$38*($C$39-10*$C$19/10)^3/(3*$C$10*BL109)+$C$38*($C$39-10*$C$19/10)^2/(2*$C$10*BL109)*ABS($C$39-10*$C$19/10),0)) ->  | CR109: =IF(CP109>=0,$C$38*($C$19/10)^2/(2*$C$10*BL109),IF(CP109>(-$C$19/10),$C$38*($C$39-10*$C$19/10)^2/(2*$C$10*BL109),0)) ->  | CS109: =IF(CP109<=0,0,$C$38*($C$39-10*$C$19/10)*($C$19/10)^2/(2*$C$10*BL109)) -> 0 | CT109: =IF(CP109<=0,0,$C$38*($C$39-10*$C$19/10)*$C$19/10/($C$10*BL109)) -> 0 | CV109: | | CW109: =$C$41-10*$C$19/10 -> 0 | CX109: =IF(CW109>=0,$C$40*($C$19/10)^3/(3*$C$10*$BL109),IF(CW109>(-$C$19/10),$C$40*($C$41-10*$C$19/10)^3/(3*$C$10*$BL109)+$C$40*($C$41-10*$C$19/10)^2/(2*$C$10*$BL109)*ABS($C$41-10*$C$19/10),0)) ->  | CY109: =IF(CW109>=0,$C$40*($C$19/10)^2/(2*$C$10*$BL109),IF(CW109>(-$C$19/10),$C$40*($C$41-10*$C$19/10)^2/(2*$C$10*$BL109),0)) ->  | CZ109: =IF(CW109<=0,0,$C$40*($C$41-10*$C$19/10)*($C$19/10)^2/(2*$C$10*$BL109)) -> 0 | DA109: =IF(CW109<=0,0,$C$40*($C$41-10*$C$19/10)*$C$19/10/($C$10*$BL109)) -> 0 | DC109: | | DD109: =$C$43-10*$C$19/10 -> 0 | DE109: =IF(DD109>=0,$C$42*($C$19/10)^3/(3*$C$10*$BL109),IF(DD109>(-$C$19/10),$C$42*($C$43-10*$C$19/10)^3/(3*$C$10*$BL109)+$C$42*($C$43-10*$C$19/10)^2/(2*$C$10*$BL109)*ABS($C$43-10*$C$19/10),0)) ->  | DF109: =IF(DD109>=0,$C$42*($C$19/10)^2/(2*$C$10*$BL109),IF(DD109>(-$C$19/10),$C$42*($C$43-10*$C$19/10)^2/(2*$C$10*$BL109),0)) ->  | DG109: =IF(DD109<=0,0,$C$42*($C$43-10*$C$19/10)*($C$19/10)^2/(2*$C$10*$BL109)) -> 0 | DH109: =IF(DD109<=0,0,$C$42*($C$43-10*$C$19/10)*$C$19/10/($C$10*$BL109)) -> 0 | DJ109: | | DK109: =$C$45-10*$C$19/10 -> 0 | DL109: =IF(DK109>=0,$C$44*($C$19/10)^3/(3*$C$10*$BL109),IF(DK109>(-$C$19/10),$C$44*($C$45-10*$C$19/10)^3/(3*$C$10*$BL109)+$C$44*($C$45-10*$C$19/10)^2/(2*$C$10*$BL109)*ABS($C$45-10*$C$19/10),0)) ->  | DM109: =IF(DK109>=0,$C$44*($C$19/10)^2/(2*$C$10*$BL109),IF(DK109>(-$C$19/10),$C$44*($C$45-10*$C$19/10)^2/(2*$C$10*$BL109),0)) ->  | DN109: =IF(DK109<=0,0,$C$44*($C$45-10*$C$19/10)*($C$19/10)^2/(2*$C$10*$BL109)) -> 0 | DO109: =IF(DK109<=0,0,$C$44*($C$45-10*$C$19/10)*$C$19/10/($C$10*$BL109)) -> 0 | DQ109: | | DU109: =BK109*DR109*19*LC/20 ->  | EE109: =SUM(ED$100:ED109)+$C$19/10*(EC100*9+EC101*8+EC102*7+EC103*6+EC104*5+EC105*4+EC106*3+EC107*2+EC108) -> 
BI110: =C19 -> 0 | BM110: | | BT110: | | CA110: | | CH110: | | CO110: | | CV110: | | DC110: | | DJ110: | | DQ110: |
BM111: | | BT111: | | CA111: | | CH111: | | CO111: | | CV111: | | DC111: | | DJ111: | | DQ111: |
BM112: | | BT112: | | CA112: | | CH112: | | CO112: | | CV112: | | DC112: | | DJ112: | | DQ112: | | DR112: =SUM(DR100:DR109) ->  | DS112: =SUM(DS100:DS109) ->  | DT112: =SUM(DT100:DT109) ->  | DU112: =SUM(DU100:DU109) ->  | DV112: =SUM(DV100:DV109) ->  | DX112: =SUM(DX100:DX109) ->  | DY112: =SUM(DY100:DY109) ->  | EA112: =SUM(EA100:EA109) ->  | EB112: =SUM(EB100:EB109) ->  | EC112: =SUM(EC100:EC109) -> 
BM113: | | BT113: | | CA113: | | CH113: | | CO113: | | CV113: | | DC113: | | DJ113: | | DQ113: | | DV113: =DU112/DV112 -> 

Sheet MACRO1 (hidden)
A1: clean (a)
A2: =SELECT("R3C5:R5C5") -> TRUE
A3: =CLEAR(3) -> TRUE
A4: =SELECT("R8C5") -> TRUE
A5: =CLEAR(3) -> TRUE
A6: =SELECT("R10C1:R12C1") -> TRUE
A7: =CLEAR(3) -> TRUE
A8: =SELECT("R15C1:R17C1") -> TRUE
A9: =CLEAR(3) -> TRUE
A10: =VLINE(18) -> TRUE
A11: =SELECT("R21C1:R22C1") -> TRUE
A12: =CLEAR(3) -> TRUE
A13: =SELECT("R25C1:R29C1") -> TRUE
A14: =CLEAR(3) -> TRUE
A15: =SELECT("R31C1:R33C1") -> TRUE
A16: =CLEAR(3) -> TRUE
A17: =SELECT("R31C4:R33C4") -> TRUE
A18: =CLEAR(3) -> TRUE
A19: =SELECT("R31C6:R33C6") -> TRUE
A20: =CLEAR(3) -> TRUE
A21: =SELECT("R31C8:R33C8") -> TRUE
A22: =CLEAR(3) -> TRUE
A23: =HLINE(8) -> TRUE
A24: =SELECT("R31C12:R33C12") -> TRUE
A25: =CLEAR(3) -> TRUE
A26: =SELECT("R25C14:R29C14") -> TRUE
A27: =CLEAR(3) -> TRUE
A28: =SELECT("R25C12:R29C12") -> TRUE
A29: =CLEAR(3) -> TRUE
A30: =SELECT("R25C10:R29C10") -> TRUE
A31: =CLEAR(3) -> TRUE
A32: =SELECT("R21C9:R22C9") -> TRUE
A33: =CLEAR(3) -> TRUE
A34: =VLINE(-18) -> TRUE
A35: =SELECT("R3C10:R6C10") -> TRUE
A36: =CLEAR(3) -> TRUE
A37: =SELECT("R1C1") -> TRUE
A38: =RETURN() -> TRUE
